{"text_format":"1","workbook":"xlsx","n_sheets":10,"sheets":["MENU","ICBF es Ddante.","ICBF es Ddo.","DETALLE ","Incluir VS Excluir","VALIDACION","CUENTAS","T.1","Oficio","F9"],"not_rendered":{"charts":0,"images":9,"macros":1,"external_links":0,"defined_names":2,"comments":0,"pivot_tables":0},"unopened":[],"bounds":{"document_bytes":16777216,"sheet_cells":100000,"rows_first":2000,"rows_last":500,"rows_between":2000,"halvings":0,"cell_chars":16384,"cell_head_chars":4096},"cells_cut":0,"cells_raw":0,"read":"whole","date_system":"1900"}

{"sheet":"MENU","index":0,"n_rows":0,"n_cols":0,"rows_kept":0,"cut":false,"hidden":false,"merged":[]}

{"sheet":"ICBF es Ddante.","index":1,"n_rows":525,"n_cols":6,"rows_kept":525,"cut":false,"hidden":false,"merged":[[7,1,7,5],[8,1,8,5],[4,1,4,3],[4,4,4,5],[1,1,1,3],[21,1,21,2],[23,1,23,5],[28,1,28,2],[29,1,29,5],[10,2,10,3],[11,2,11,3],[12,2,12,3],[30,1,30,5],[35,1,35,2],[256,1,256,5],[263,1,263,5],[13,2,13,5],[15,1,15,5],[16,1,16,5],[87,1,87,2],[89,1,89,5],[94,1,94,2],[75,1,75,5],[80,1,80,2],[82,1,82,5],[73,1,73,2],[14,1,14,5],[22,1,22,5],[36,1,36,5],[37,1,37,5],[42,1,42,2],[43,1,43,5],[44,1,44,5],[49,1,49,2],[102,1,102,5],[103,1,103,5],[104,1,104,5],[74,1,74,5],[81,1,81,5],[72,1,72,5],[88,1,88,5],[50,1,50,5],[70,1,70,2],[51,1,51,5],[56,1,56,2],[57,1,57,5],[65,1,65,5],[58,1,58,5],[63,1,63,2],[64,1,64,5],[109,1,109,2],[111,1,111,5],[116,1,116,2],[95,1,95,5],[96,1,96,5],[101,1,101,2],[171,1,171,2],[135,1,135,5],[140,1,140,2],[142,1,142,5],[147,1,147,2],[149,1,149,2],[151,1,151,5],[118,1,118,5],[123,1,123,2],[125,1,125,2],[127,1,127,5],[128,1,128,5],[133,1,133,2],[110,1,110,5],[117,1,117,5],[124,1,124,5],[126,1,126,5],[152,1,152,5],[275,1,275,5],[276,1,276,5],[281,1,281,2],[198,1,198,5],[190,1,190,5],[195,1,195,2],[189,1,189,5],[197,1,197,2],[196,1,196,5],[227,1,227,2],[229,1,229,5],[234,1,234,2],[215,1,215,5],[220,1,220,2],[222,1,222,5],[257,1,257,5],[262,1,262,2],[264,1,264,5],[248,1,248,2],[250,1,250,5],[255,1,255,2],[236,1,236,5],[241,1,241,2],[243,1,243,5],[175,1,175,5],[176,1,176,5],[181,1,181,2],[183,1,183,5],[188,1,188,2],[269,1,269,2],[270,1,270,2],[214,1,214,5],[221,1,221,5],[228,1,228,5],[235,1,235,5],[242,1,242,5],[249,1,249,5],[213,1,213,5],[283,1,283,5],[272,1,272,5],[273,1,273,5],[134,1,134,5],[141,1,141,5],[148,1,148,5],[150,1,150,5],[158,1,158,5],[165,1,165,5],[212,1,212,2],[271,1,271,2],[204,1,204,2],[206,1,206,5],[211,1,211,2],[205,1,205,5],[199,1,199,5],[157,1,157,2],[159,1,159,5],[164,1,164,2],[166,1,166,5],[174,1,174,5],[182,1,182,5],[173,1,173,2],[172,1,172,5],[300,1,300,5],[305,1,305,2],[307,1,307,5],[312,1,312,2],[314,1,314,5],[288,1,288,2],[290,1,290,5],[295,1,295,2],[297,1,297,2],[299,1,299,5],[344,1,344,5],[319,1,319,2],[321,1,321,2],[323,1,323,5],[324,1,324,5],[329,1,329,2],[331,1,331,5],[320,1,320,5],[330,1,330,5],[322,1,322,5],[367,1,367,2],[368,1,368,2],[370,1,370,2],[274,1,274,5],[282,1,282,5],[289,1,289,5],[296,1,296,5],[298,1,298,5],[306,1,306,5],[313,1,313,5],[348,1,348,5],[353,1,353,2],[355,1,355,5],[360,1,360,2],[362,1,362,5],[354,1,354,5],[361,1,361,5],[336,1,336,2],[338,1,338,5],[343,1,343,2],[345,1,345,2],[347,1,347,5],[346,1,346,5],[337,1,337,5],[416,1,416,5],[388,1,388,5],[389,1,389,5],[394,1,394,2],[395,1,395,5],[396,1,396,5],[401,1,401,2],[374,1,374,5],[375,1,375,5],[380,1,380,2],[382,1,382,5],[387,1,387,2],[518,1,518,5],[434,1,434,5],[435,1,435,5],[443,1,443,5],[471,1,471,2],[474,1,474,5],[473,1,473,5],[482,1,482,5],[483,1,483,5],[507,1,507,5],[481,1,481,2],[484,1,484,5],[485,1,485,5],[490,1,490,2],[491,1,491,2],[492,1,492,2],[505,1,505,3],[512,1,512,3],[513,1,513,3],[514,1,514,3],[509,1,509,3],[436,1,436,5],[510,1,510,3],[511,1,511,3],[470,1,470,2],[472,1,472,2],[475,1,475,5],[480,1,480,2],[456,1,456,2],[457,1,457,5],[458,1,458,5],[463,1,463,2],[464,1,464,5],[465,1,465,5],[495,1,495,5],[497,2,497,3],[493,1,493,5],[437,1,437,5],[442,1,442,2],[444,1,444,5],[449,1,449,2],[450,1,450,5],[451,1,451,5],[423,1,423,5],[369,1,369,2],[430,1,430,2],[417,1,417,5],[424,1,424,5],[429,1,429,2],[431,1,431,2],[432,1,432,2],[371,1,371,5],[372,1,372,5],[373,1,373,5],[381,1,381,5],[409,1,409,5],[402,1,402,5],[403,1,403,5],[408,1,408,2],[410,1,410,5],[415,1,415,2]]}
[]
[null,"PROCESO DE GESTION FINANCIERA"]
[null,null,null,null,null,"xx/xx/xxxx"]
[null,null,null,null,"Version 1","Pagina 1 de 1"]
[null,"INFORME FINANCIERO DE PROCESOS JURIDICOS DEL ICBF",null,null,"Clasificacion de la Informacion Publica:"]
[]
[]
[null,"LITIGIOS Y MECANISMOS ALTERNATIVOS DE SOLUCIÓN DE CONFLICTOS"]
[null,"INFORME FINANCIERO DE PROCESOS JURIDICOS DONDE EL ICBF ES DEMANDANTE"]
[]
[null,"REGIONAL:  "]
[null,"MES DE CORTE:"]
[null,"FECHA DE ELABORACION:"]
[null,"PROCESOS CIVILES:"]
[null,"812001 CIVILES"]
[null,"1. LITIGIOS Y DEMANDAS CIVILES"]
[null,"RESTITUCIÓN DEL BIEN INMUEBLE"]
[null,"Nombre del demandado","Identificación ","No. de Proceso (23 Digitos)","Cantidad","Valor"]
[null,null,null,null,0,0]
[null,null,null,null,null,0]
[null,null,null,null,0,0]
[null,"Total No procesos y valor Restitución del bien inmueble",null,null,{"$f":"SUM(E19:E21)","v":0},{"$f":"SUM(F19:F21)","v":0}]
[]
[null,"EXPROPIACIÓN DEL BIEN INMUEBLE"]
[null,"Nombre del demandado","Identificación ","No. de Proceso (23 Digitos)","Cantidad","Valor"]
[null,null,null,null,0,"0"]
[null,null,null,null,0,0]
[null,null,null,null,0,0]
[null,"Total No procesos y valor Expropiación del bien inmueble",null,null,{"$f":"SUM(E27:E28)","v":0},{"$f":"SUM(F27:F28)","v":0}]
[]
[null,"ENTREGA MATERIAL DEL INMUEBLE"]
[null,"Nombre del demandado","Identificación ","No. de Proceso (23 Digitos)","Cantidad","Valor"]
[null,null,null,null,0,0]
[null,null,null,null,0,0]
[null,null,null,null,0,0]
[null,"Total No procesos y valor Entrega Material del Inmueble",null,null,{"$f":"SUM(E33:E35)","v":0},{"$f":"SUM(F33:F35)","v":0}]
[]
[null,"DECLARATORIA DE PERTENENCIA DEL INMUEBLE"]
[null,"Nombre del demandado","Identificación ","No. de Proceso (23 Digitos)","Cantidad","Valor"]
[null,null,null,null,0,0]
[null,null,null,null,0,0]
[null,null,null,null,0,0]
[null,"Total No procesos y valor Declaratoria de Pertenencia del inmueble",null,null,{"$f":"SUM(E40:E42)","v":0},{"$f":"SUM(F40:F42)","v":0}]
[]
[null,"REIVINDICATORIA DE DOMINIO"]
[null,"Nombre del demandado","Identificación ","No. de Proceso (23 Digitos)","Cantidad","Valor"]
[null,null,null,null,0,0]
[null,null,null,null,0,0]
[null,null,null,null,0,0]
[null,"Total No procesos y valor Reivindicatoria de Dominio",null,null,{"$f":"SUM(E47:E49)","v":0},{"$f":"SUM(F47:F49)","v":0}]
[]
[null,"PAGO DE TÍTULOS VALORES"]
[null,"Nombre del demandado","Identificación ","No. de Proceso (23 Digitos)","Cantidad","Valor"]
[null,null,null,null,0,0]
[null,null,null,null,0]
[null,null,null,null,0,0]
[null,"Total No procesos y valor Pago de títulos valores",null,null,{"$f":"SUM(E54:E56)","v":0},{"$f":"SUM(F54:F56)","v":0}]
[]
[null,"EJECUTIVOS"]
[null,"Nombre del demandado","Identificación ","No. de Proceso (23 Digitos)","Cantidad","Valor"]
[null,null,null,null,0,0]
[null,null,null,null,0]
[null,null,null,null,0,0]
[null,"Total No procesos y valor Ejecutivos",null,null,{"$f":"SUM(E61:E63)","v":0},{"$f":"SUM(F61:F63)","v":0}]
[]
[null,"OTROS"]
[null,"Nombre del demandado","Identificación ","No. de Proceso (23 Digitos)","Cantidad","Valor"]
[null,null,null,null,0,0]
[null,null,null,null,0]
[null,null,null,null,0,0]
[null,"Total No procesos y valor Otros",null,null,{"$f":"SUM(E68:E70)","v":0},{"$f":"SUM(F68:F70)","v":0}]
[]
[]
[null,"TOTAL LITIGIOS Y DEMANDAS CIVILES",null,null,{"$f":"E22+E29+E36+E43+E50+E57+E71+E64","v":0},{"$f":"F22+F29+F36+F43+F50+F57+F71+F64","v":0}]
[]
[null,"2. BIENES MOSTRENCOS EN DINERO"]
[null,"Nombre del demandado","Identificación ","No. de Proceso (23 Digitos)","Cantidad","Valor"]
[null,null,null,null,0,0]
[null,null,null,null,0,0]
[null,null,null,null,0,0]
[null,"Total No procesos y valor bienes mostrencos en dinero",null,null,{"$f":"SUM(E78:E80)","v":0},{"$f":"SUM(F78:F80)","v":0}]
[]
[null,"3. BIENES MOSTRENCOS - BIENES MUEBLES O EN ESPECIE"]
[null,"Nombre del demandado","Identificación ","No. de Proceso (23 Digitos)","Cantidad","Valor"]
[null,null,null,null,0,0]
[null,null,null,null,0,0]
[null,null,null,null,0,0]
[null,"Total No procesos y valor bien mostrenco - bienes muebles o en especie",null,null,{"$f":"SUM(E85:E87)","v":0},{"$f":"SUM(F85:F87)","v":0}]
[]
[null,"4. BIENES VACANTES - TERRENOS Y EDIFICACIONES"]
[null,"Nombre del demandado","Identificación ","No. de Proceso (23 Digitos)","Cantidad","Valor"]
[null,null,null,null,0,0]
[null,null,null,null,0,0]
[null,null,null,null,0,0]
[null,"Total No procesos y valor bienes vacantes - terrenos y edificaciones",null,null,{"$f":"SUM(E92:E94)","v":0},{"$f":"SUM(F92:F94)","v":0}]
[]
[null,"5. BIENES MOSTRENCOS - INVERSIONES"]
[null,"Nombre del demandado","Identificación ","No. de Proceso (23 Digitos)","Cantidad","Valor"]
[null,null,null,null,0,0]
[null,null,null,null,0,0]
[null,null,null,null,0,0]
[null,"Total No procesos y valor bienes mostrencos - inversiones",null,null,{"$f":"SUM(E99:E101)","v":0},{"$f":"SUM(F99:F101)","v":0}]
[]
[null,"6. VOCACIONES HEREDITARIAS EN DINERO"]
[null,"PETICIÓN DE HERENCIA"]
[null,"Nombre del demandado","Identificación ","No. de Proceso (23 Digitos)","Cantidad","Valor"]
[null,null,null,null,0,0]
[null,null,null,null,0,0]
[null,null,null,null,0,0]
[null,"Total No procesos y valor petición de Herencia",null,null,{"$f":"SUM(E107:E109)","v":0},{"$f":"SUM(F107:F109)","v":0}]
[]
[null,"SUCESIÓN O VOCACIÓN HEREDITARIA"]
[null,"Nombre del demandado","Identificación ","No. de Proceso (23 Digitos)","Cantidad","Valor"]
[null,null,null,null,0,0]
[null,null,null,null,0,0]
[null,null,null,null,0,0]
[null,"Total No procesos y valor Sucesión o Vocación Hereditaria",null,null,{"$f":"SUM(E114:E116)","v":0},{"$f":"SUM(F114:F116)","v":0}]
[]
[null,"OTRAS"]
[null,"Nombre del demandado","Identificación ","No. de Proceso (23 Digitos)","Cantidad","Valor"]
[null,null,null,null,0,0]
[null,null,null,null,0,0]
[null,null,null,null,0,0]
[null,"Total No procesos y valor Otras",null,null,{"$f":"SUM(E121:E123)","v":0},{"$f":"SUM(F121:F123)","v":0}]
[]
[null,"TOTAL VOCACIONES HEREDITARIAS EN DINERO",null,null,{"$f":"+E110+E117+E124","v":0},{"$f":"+F110+F117+F124","v":0}]
[]
[null,"7. VOCACIONES HEREDITARIAS INVERSIONES"]
[null,"PETICIÓN DE HERENCIA"]
[null,"Nombre del demandado","Identificación ","No. de Proceso (23 Digitos)","Cantidad","Valor"]
[null,null,null,null,0,0]
[null,null,null,null,0,0]
[null,null,null,null,0,0]
[null,"Total No procesos y valor Petición de Herencia",null,null,{"$f":"SUM(E131:E133)","v":0},{"$f":"SUM(F131:F133)","v":0}]
[]
[null,"SUCESIÓN O VOCACIÓN HEREDITARIA"]
[null,"Nombre del demandado","Identificación ","No. de Proceso (23 Digitos)","Cantidad","Valor"]
[null,null,null,null,0,0]
[null,null,null,null,0,0]
[null,null,null,null,0,0]
[null,"Total No procesos y valor Sucesión o Vocación Hereditaria",null,null,{"$f":"SUM(E138:E140)","v":0},{"$f":"SUM(F138:F140)","v":0}]
[]
[null,"OTRAS"]
[null,"Nombre del demandado","Identificación ","No. de Proceso (23 Digitos)","Cantidad","Valor"]
[null,null,null,null,0,0]
[null,null,null,null,0,0]
[null,null,null,null,0,0]
[null,"Total No procesos y valor Otras",null,null,{"$f":"SUM(E145:E147)","v":0},{"$f":"SUM(F145:F147)","v":0}]
[]
[null,"TOTAL VOCACIONES HEREDITARIAS INVERSIONES",null,null,{"$f":"+E134+E141+E148","v":0},{"$f":"+F134+F141+F148","v":0}]
[]
[null,"8. VOCACIONES HEREDITARIAS BIENES MUEBLES O EN ESPECIE"]
[null,"PETICIÓN DE HERENCIA"]
[null,"Nombre del demandado","Identificación ","No. de Proceso (23 Digitos)","Cantidad","Valor"]
[null,null,null,null,0,0]
[null,null,null,null,0,0]
[null,null,null,null,0,0]
[null,"Total No procesos y valor  Petición de Herencia",null,null,{"$f":"SUM(E155:E157)","v":0},{"$f":"SUM(F155:F157)","v":0}]
[]
[null,"SUCESIÓN O VOCACIÓN HEREDITARIA"]
[null,"Nombre del demandado","Identificación ","No. de Proceso (23 Digitos)","Cantidad","Valor"]
[null,null,null,null,0,0]
[null,null,null,null,0,0]
[null,null,null,null,0,0]
[null,"Total No procesos y valor  Sucesión de Vocación Hereditaria",null,null,{"$f":"SUM(E162:E164)","v":0},{"$f":"SUM(F162:F164)","v":0}]
[]
[null,"OTRAS"]
[null,"Nombre del demandado","Identificación ","No. de Proceso (23 Digitos)","Cantidad","Valor"]
[null,null,null,null,0,0]
[null,null,null,null,0,0]
[null,null,null,null,0,0]
[null,"Total No procesos y valor  Otras",null,null,{"$f":"SUM(E169:E171)","v":0},{"$f":"SUM(F169:F171)","v":0}]
[]
[null,"TOTAL VOCACIONES HEREDITARIAS BIENES MUEBLES O EN ESPECIE",null,null,{"$f":"+E158+E165+E172","v":0},{"$f":"F158+F165+F172","v":0}]
[]
[null,"9. VOCACIONES HEREDITARIAS  TERRENOS Y EDIFICACIONES"]
[null,"PETICIÓN DE HERENCIA"]
[null,"Nombre del demandado","Identificación ","No. de Proceso (23 Digitos)","Cantidad","Valor"]
[null,null,null,null,0,0]
[null,null,null,null,0,0]
[null,null,null,null,0,0]
[null,"Total No procesos y valor  Petición de Herencia",null,null,{"$f":"SUM(E179:E181)","v":0},{"$f":"SUM(F179:F181)","v":0}]
[]
[null,"SUCESIÓN O VOCACIÓN HEREDITARIA"]
[null,"Nombre del demandado","Identificación ","No. de Proceso (23 Digitos)","Cantidad","Valor"]
[null,null,null,null,0,0]
[null,null,null,null,null,0]
[null,null,null,null,null,0]
[null,"Total No procesos y valor  Sucesión o Vocación Hereditaria",null,null,{"$f":"SUM(E186:E188)","v":0},{"$f":"SUM(F186:F188)","v":0}]
[]
[null,"OTRAS"]
[null,"Nombre del demandado","Identificación ","No. de Proceso (23 Digitos)","Cantidad","Valor"]
[null,null,null,null,0,0]
[null,null,null,null,0,0]
[null,null,null,null,0,0]
[null,"Total No procesos y valor  Otras",null,null,{"$f":"SUM(E193:E195)","v":0},{"$f":"SUM(F193:F195)","v":0}]
[]
[null,"TOTAL VOCACIONES HEREDITARIAS TERRENOS Y EDIFICACIONES",null,null,{"$f":"+E182+E189+E196","v":0},{"$f":"F182+F189+F196","v":0}]
[]
[null,"10. BIENES VACANTES - INCAUTADOS POR LA FISCALIA"]
[null,"Nombre del demandado","Identificación ","No. de Proceso (23 Digitos)","Cantidad","Valor"]
[null,null,null,null,0,0]
[null,null,null,null,0,0]
[null,null,null,null,0,0]
[null,"Total No procesos y valor  bienes vacantes - incautados por la Fiscalía",null,null,{"$f":"SUM(E202:E204)","v":0},{"$f":"SUM(F202:F204)","v":0}]
[]
[null,"11. BIENES MOSTRENCOS-INCAUTADOS POR FISCALIA"]
[null,"Nombre del demandado","Identificación ","No. de Proceso (23 Digitos)","Cantidad","Valor"]
[null,null,null,null,0,0]
[null,null,null,null,0,0]
[null,null,null,null,0,0]
[null,"Total No procesos y valor bienes mostrencos - incautados por la Fiscalía",null,null,{"$f":"SUM(E209:E211)","v":0},{"$f":"SUM(F209:F211)","v":0}]
[null,"TOTAL CUENTA 812001 CIVILES",null,null,{"$f":"E74+E81+E88+E95+E102+E126+E150+E174+E198+E205+E212","v":0},{"$f":"F74+F81+F88+F95+F102+F126+F150+F174+F198+F205+F212","v":0}]
[]
[null,"147502 PRÉSTAMOS CONCEDIDOS"]
[null,"1. PRÉSTAMOS DE VIVIENDA NUEVOS JURISDICCIÓN ORDINARIA"]
[null,"Nombre del demandado","Identificación ","No. de Proceso (23 Digitos)","Cantidad","Valor"]
[null,null,null,null,0,0]
[null,null,null,null,0,0]
[null,null,null,null,0,0]
[null,"Total No procesos y valor préstamos de vivienda nuevos jurisdicción ordinaria",null,null,{"$f":"SUM(E218:E220)","v":0},{"$f":"SUM(F218:F220)","v":0}]
[]
[null,"2. PRÉSTAMOS DE VIVIENDA ANTIGUOS JURISDICCIÓN ORDINARIA "]
[null,"Nombre del demandado","Identificación ","No. de Proceso (23 Digitos)","Cantidad","Valor"]
[null,null,null,null,0,0]
[null,null,null,null,0,0]
[null,null,null,null,0,0]
[null,"Total No procesos y valor préstamos de vivienda antiguos jurisdicción ordinaria",null,null,{"$f":"SUM(E225:E227)","v":0},{"$f":"SUM(F225:F227)","v":0}]
[]
[null,"3. INTERESES PRÉSTAMOS DE VIVIENDA NUEVOS JURISDICCIÓN ORDINARIA"]
[null,"Nombre del demandado","Identificación ","No. de Proceso (23 Digitos)","Cantidad","Valor"]
[null,null,null,null,0,0]
[null,null,null,null,0,0]
[null,null,null,null,0,0]
[null,"Total No procesos y valor vivienda",null,null,{"$f":"SUM(E232:E234)","v":0},{"$f":"SUM(F232:F234)","v":0}]
[]
[null,"4. INTERESES PRÉSTAMOS DE VIVIENDA ANTIGUOS JURISDICCIÓN ORDINARIA"]
[null,"Nombre del demandado","Identificación ","No. de Proceso (23 Digitos)","Cantidad","Valor"]
[null,null,null,null,0,0]
[null,null,null,null,0,0]
[null,null,null,null,0,0]
[null,"Total No procesos y valor intereses préstamos de vivienda antiguos jurisdicción ordinaria",null,null,{"$f":"SUM(E239:E241)","v":0},{"$f":"SUM(F239:F241)","v":0}]
[]
[null,"5. PRESTAMOS DE CALAMIDAD DOMESTICA NUEVOS JURISDICCIÓN ORDINARIA"]
[null,"Nombre del demandado","Identificación ","No. de Proceso (23 Digitos)","Cantidad","Valor"]
[null,null,null,null,0,0]
[null,null,null,null,0,0]
[null,null,null,null,0,0]
[null,"Total No procesos y valor préstamos de calamidad doméstica nuevos jurisdicción ordinaria",null,null,{"$f":"SUM(E246:E248)","v":0},{"$f":"SUM(F246:F248)","v":0}]
[]
[null,"6. PRESTAMOS DE CALAMIDAD DOMESTICA ANTIGUOS JURISDICCIÓN  ORDINARIA "]
[null,"Nombre del demandado","Identificación ","No. de Proceso (23 Digitos)","Cantidad","Valor"]
[null,null,null,null,0,0]
[null,null,null,null,0,0]
[null,null,null,null,0,0]
[null,"Total No procesos y valor préstamos de calamidad doméstica antiguos jurisdicción ordinaria",null,null,{"$f":"SUM(E253:E255)","v":0},{"$f":"SUM(F253:F255)","v":0}]
[]
[null,"7. INTERESES PRESTAMOS DE CALAMIDAD DOMESTICA NUEVOS JURISDICCIÓN ORDINARIA"]
[null,"Nombre del demandado","Identificación ","No. de Proceso (23 Digitos)","Cantidad","Valor"]
[null,null,null,null,0,0]
[null,null,null,null,null,0]
[null,null,null,null,null,0]
[null,"Total No procesos y valor intereses préstamos de calamidad doméstica nuevos jurisdicción ordinaria",null,null,{"$f":"SUM(E260:E262)","v":0},{"$f":"SUM(F260:F262)","v":0}]
[]
[null,"8. INTERESES PRESTAMOS DE CALAMIDAD DOMESTICA ANTIGUOS JURISDICCIÓN ORDINARIA"]
[null,"Nombre del demandado","Identificación ","No. de Proceso (23 Digitos)","Cantidad","Valor"]
[null,null,null,null,0,0]
[null,null,null,null,0,0]
[null,null,null,null,0,0]
[null,"Total No procesos y valor intereses préstamos de calamidad doméstica antiguos jurisdicción ordinaria",null,null,{"$f":"SUM(E267:E269)","v":0},{"$f":"SUM(F267:F269)","v":0}]
[null,"TOTAL CUENTA 147502 PRÉSTAMOS CONCEDIDOS",null,null,{"$f":"E221+E228+E235+E242+E249+E256+E263+E270","v":0},{"$f":"F221+F228+F235+F242+F249+F256+F263+F270","v":0}]
[null,"TOTAL PROCESOS CIVILES",null,null,{"$f":"E213+E271","v":0},{"$f":"F213+F271","v":0}]
[]
[null,"PROCESOS LABORALES:"]
[null,"831536 DEUDORES"]
[null,"1. JURISDICCIÓN LABORAL ORDINARIA APORTES 3% RESOLUCIONES"]
[null,"COBRO DE APORTES PARAFISCALES 3%"]
[null,"Nombre del demandado","Identificación ","No. de Proceso (23 Digitos)","Cantidad","Valor"]
[null,null,null,null,null,0]
[null,null,null,null,null,0]
[null,null,null,null,null,0]
[null,"Total No procesos y valor  Aportes Parafiscales 3%",null,null,{"$f":"SUM(E279:E281)","v":0},{"$f":"SUM(F279:F281)","v":0}]
[]
[null,"EJECUTIVOS"]
[null,"Nombre del demandado","Identificación ","No. de Proceso (23 Digitos)","Cantidad","Valor"]
[null,null,null,null,0,0]
[null,null,null,null,0,0]
[null,null,null,null,0,0]
[null,"Total No procesos y valor  Ejecutivos",null,null,{"$f":"SUM(E286:E288)","v":0},{"$f":"SUM(F286:F288)","v":0}]
[]
[null,"OTROS"]
[null,"Nombre del demandado","Identificación ","No. de Proceso (23 Digitos)","Cantidad","Valor"]
[null,null,null,null,0,0]
[null,null,null,null,0,0]
[null,null,null,null,0,0]
[null,"Total No procesos y valor  Otros",null,null,{"$f":"SUM(E293:E295)","v":0},{"$f":"SUM(F293:F295)","v":0}]
[]
[null,"TOTAL JURISDICCIÓN LABORAL ORDINARIA APORTES 3% RESOLUCIONES",null,null,{"$f":"+E282+E289+E296","v":0},{"$f":"+F282+F289+F296","v":0}]
[]
[null,"2. JURISDICCIÓN LABORAL ORDINARIA APORTES 3% PAGARÉS"]
[null,"COBRO DE APORTES PARAFISCALES 3%"]
[null,"Nombre del demandado","Identificación ","No. de Proceso (23 Digitos)","Cantidad","Valor"]
[null,null,null,null,0,0]
[null,null,null,null,0,0]
[null,null,null,null,0,0]
[null,"Total No procesos y valor  Aportes Parafiscales 3%",null,null,{"$f":"SUM(E303:E305)","v":0},{"$f":"SUM(F303:F305)","v":0}]
[]
[null,"EJECUTIVOS"]
[null,"Nombre del demandado","Identificación ","No. de Proceso (23 Digitos)","Cantidad","Valor"]
[null,null,null,null,0,0]
[null,null,null,null,0,0]
[null,null,null,null,0,0]
[null,"Total No procesos y valor  Ejecutivos",null,null,{"$f":"SUM(E310:E312)","v":0},{"$f":"SUM(F310:F312)","v":0}]
[]
[null,"OTROS"]
[null,"Nombre del demandado","Identificación ","No. de Proceso (23 Digitos)","Cantidad","Valor"]
[null,null,null,null,0,0]
[null,null,null,null,0,0]
[null,null,null,null,0,0]
[null,"Total No procesos y valor  Otros",null,null,{"$f":"SUM(E317:E319)","v":0},{"$f":"SUM(F317:F319)","v":0}]
[]
[null,"TOTAL JURISDICCIÓN LABORAL ORDINARIA APORTES 3% PAGARÉS",null,null,{"$f":"+E306+E313+E320","v":0},{"$f":"+F306+F313+F320","v":0}]
[]
[null,"3. JURISDICCIÓN LABORAL ORDINARIA APORTES 3% ACUERDOS O CONVENIOS DE PAGOS"]
[null,"COBRO DE APORTES PARAFISCALES 3%"]
[null,"Nombre del demandado","Identificación ","No. de Proceso (23 Digitos)","Cantidad","Valor"]
[null,null,null,null,0,0]
[null,null,null,null,0,0]
[null,null,null,null,0,0]
[null,"Total No procesos y valor  Aportes Parafiscales 3%",null,null,{"$f":"SUM(E327:E329)","v":0},{"$f":"SUM(F327:F329)","v":0}]
[]
[null,"EJECUTIVOS"]
[null,"Nombre del demandado","Identificación ","No. de Proceso (23 Digitos)","Cantidad","Valor"]
[null,null,null,null,0,0]
[null,null,null,null,0,0]
[null,null,null,null,0,0]
[null,"Total No procesos y valor  Ejecutivos",null,null,{"$f":"SUM(E334:E336)","v":0},{"$f":"SUM(F334:F336)","v":0}]
[]
[null,"OTROS"]
[null,"Nombre del demandado","Identificación ","No. de Proceso (23 Digitos)","Cantidad","Valor"]
[null,null,null,null,0,0]
[null,null,null,null,0,0]
[null,null,null,null,0,0]
[null,"Total No procesos y valor  Otros",null,null,{"$f":"SUM(E341:E343)","v":0},{"$f":"SUM(F341:F343)","v":0}]
[]
[null,"TOTAL JURISDICCIÓN LABORAL ORDINARIA APORTES 3% ACUERDOS O CONVENIOS DE PAGOS",null,null,{"$f":"+E330+E337+E344","v":0},{"$f":"+F330+F337+F344","v":0}]
[]
[null,"4. JURISDICCIÓN LABORAL ORDINARIA APORTES 3% INTERESES"]
[null,"COBRO DE APORTES PARAFISCALES 3%"]
[null,"Nombre del demandado","Identificación ","No. de Proceso (23 Digitos)","Cantidad","Valor"]
[null,null,null,null,0,0]
[null,null,null,null,0,0]
[null,null,null,null,0,0]
[null,"Total No procesos y valor  Aportes Parafiscales 3%",null,null,{"$f":"SUM(E351:E353)","v":0},{"$f":"SUM(F351:F353)","v":0}]
[]
[null,"EJECUTIVOS"]
[null,"Nombre del demandado","Identificación ","No. de Proceso (23 Digitos)","Cantidad","Valor"]
[null,null,null,null,0,0]
[null,null,null,null,0,0]
[null,null,null,null,0,0]
[null,"Total No procesos y valor  Ejecutivos",null,null,{"$f":"SUM(E358:E360)","v":0},{"$f":"SUM(F358:F360)","v":0}]
[]
[null,"OTROS"]
[null,"Nombre del demandado","Identificación ","No. de Proceso (23 Digitos)","Cantidad","Valor"]
[null,null,null,null,0,0]
[null,null,null,null,0,0]
[null,null,null,null,0,0]
[null,"Total No procesos y valor  Otros",null,null,{"$f":"SUM(E365:E367)","v":0},{"$f":"SUM(F365:F367)","v":0}]
[null,"TOTAL JURISDICCIÓN LABORAL ORDINARIA APORTES 3% INTERESES",null,null,{"$f":"+E354+E361+E368","v":0},{"$f":"+F354+F361+F368","v":0}]
[null,"TOTAL CUENTA 831536 DEUDORES",null,null,{"$f":"E298+E322+E346+E369","v":0},{"$f":"F298+F322+F346+F369","v":0}]
[null,"TOTAL PROCESOS LABORALES",null,null,{"$f":"E370","v":0},{"$f":"F370","v":0}]
[]
[null,"PROCESOS PENALES:"]
[null,"812003 PENALES"]
[null,"1. LITIGIOS Y DEMANDAS PENALES"]
[null,"ESTAFA"]
[null,"Nombre del demandado","Identificación ","No. de Proceso (23 Digitos)","Cantidad","Valor"]
[null,null,null,null,0]
[null,null,null,null,0,0]
[null,null,null,null,0,0]
[null,"Total No procesos y valor Estafa",null,null,{"$f":"SUM(E378:E380)","v":0},{"$f":"SUM(F378:F380)","v":0}]
[]
[null,"HURTO"]
[null,"Nombre del demandado","Identificación ","No. de Proceso (23 Digitos)","Cantidad","Valor"]
[null,null,null,null,0,0]
[null,null,null,null,0,0]
[null,null,null,null,0,0]
[null,"Total No procesos y valor Hurto",null,null,{"$f":"SUM(E385:E387)","v":0},{"$f":"SUM(F385:F387)","v":0}]
[]
[null,"PECULADO"]
[null,"Nombre del demandado","Identificación ","No. de Proceso (23 Digitos)","Cantidad","Valor"]
[null,null,null,null,0,0]
[null,null,null,null,0,0]
[null,null,null,null,0,0]
[null,"Total No procesos y valor Peculado",null,null,{"$f":"SUM(E392:E394)","v":0},{"$f":"SUM(F392:F394)","v":0}]
[]
[null,"ABUSO DE CONFIANZA CALIFICADO"]
[null,"Nombre del demandado","Identificación ","No. de Proceso (23 Digitos)","Cantidad","Valor"]
[null,null,null,null,0,0]
[null,null,null,null,0,0]
[null,null,null,null,0,0]
[null,"Total No procesos y valor Abuso de confianza Calificado",null,null,{"$f":"SUM(E399:E401)","v":0},{"$f":"SUM(F399:F401)","v":0}]
[]
[null,"APROPIACIÓN INDEBIDA"]
[null,"Nombre del demandado","Identificación ","No. de Proceso (23 Digitos)","Cantidad","Valor"]
[null,null,null,null,0,0]
[null,null,null,null,0,0]
[null,null,null,null,0,0]
[null,"Total No procesos y valor Apropiación Indebida",null,null,{"$f":"SUM(E406:E408)","v":0},{"$f":"SUM(F406:F408)","v":0}]
[]
[null,"FALSEDAD EN DOCUMENTO"]
[null,"Nombre del demandado","Identificación ","No. de Proceso (23 Digitos)","Cantidad","Valor"]
[null,null,null,null,0,0]
[null,null,null,null,0,0]
[null,null,null,null,0,0]
[null,"Total No procesos y valor Falsedad en Documento",null,null,{"$f":"SUM(E413:E415)","v":0},{"$f":"SUM(F413:F415)","v":0}]
[]
[null,"MANEJO INDEBIDO DE CONTRATOS"]
[null,"Nombre del demandado","Identificación ","No. de Proceso (23 Digitos)","Cantidad","Valor"]
[null,null,null,null,0,0]
[null,null,null,null,0,0]
[null,null,null,null,0,0]
[null,"Total No procesos y valor  Manejo indebido de contratos",null,null,{"$f":"SUM(E420:E422)","v":0},{"$f":"SUM(F420:F422)","v":0}]
[]
[null,"OTROS"]
[null,"Nombre del demandado","Identificación ","No. de Proceso (23 Digitos)","Cantidad","Valor"]
[null,null,null,null,0]
[null,null,null,null,0]
[null,null,null,null,0,0]
[null,"Total No procesos y valor Otros",null,null,{"$f":"SUM(E427:E429)","v":0},{"$f":"SUM(F427:F429)","v":0}]
[null,"TOTAL LITIGIOS Y DEMANDAS PENALES",null,null,{"$f":"E381+E388+E395+E402+E409+E416+E423+E430","v":0},{"$f":"F381+F388+F395+F402+F409+F416+F423+F430","v":0}]
[null,"TOTAL CUENTA 812003 PENALES",null,null,{"$f":"E431","v":0},{"$f":"F431","v":0}]
[null,"TOTAL PROCESOS PENALES",null,null,{"$f":"E432","v":0},{"$f":"F432","v":0}]
[]
[null,"PROCESOS ADMINISTRATIVOS:"]
[null,"812004 ADMNISTRATIVAS"]
[null,"1. LITIGIOS Y DEMANDAS ADMINISTRATIVAS"]
[null," CONTRACTUAL DECLARATORIA DE INCUMPLIMIENTO"]
[null,"Nombre del demandado","Identificación ","No. de Proceso (23 Digitos)","Cantidad","Valor"]
[null,null,null,null,0,0]
[null,null,null,null,0,0]
[null,null,null,null,0,0]
[null,"Total No procesos y valor  Contractual decalratoria de incumplimiento",null,null,{"$f":"SUM(E440:E442)","v":0},{"$f":"SUM(F440:F442)","v":0}]
[]
[null,"NULIDAD DE ACTOS ADMINISTRATIVOS (NO TIENE VALOR)"]
[null,"Nombre del demandado","Identificación ","No. de Proceso (23 Digitos)","Cantidad","Valor"]
[null,null,null,null,0,0]
[null,null,null,null,0,0]
[null,null,null,null,0,0]
[null,"Total No procesos y valor Nulidad de actos administrativos sin valor",null,null,{"$f":"SUM(E447:E449)","v":0},{"$f":"SUM(F447:F449)","v":0}]
[]
[null,"NULIDAD DE ACTOS ADMINISTRATIVOS CON VALOR"]
[null,"Nombre del demandado","Identificación ","No. de Proceso (23 Digitos)","Cantidad","Valor"]
[null,null,null,null,0,0]
[null,null,null,null,0,0]
[null,null,null,null,0,0]
[null,"Total No procesos y valor Nulidad de Actos Administrativos con valor",null,null,{"$f":"SUM(E454:E456)","v":0},{"$f":"SUM(F454:F456)","v":0}]
[]
[null,"REPARACIÓN DIRECTA"]
[null,"Nombre del demandado","Identificación ","No. de Proceso (23 Digitos)","Cantidad","Valor"]
[null,null,null,null,0,0]
[null,null,null,null,0,0]
[null,null,null,null,0,0]
[null,"Total No procesos y valor Reparación directa",null,null,{"$f":"SUM(E461:E463)","v":0},{"$f":"SUM(F461:F463)","v":0}]
[]
[null,"OTRAS ACCIONES CONTENCIOSAS ADMINISTRATIVAS"]
[null,"Nombre del demandado","Identificación ","No. de Proceso (23 Digitos)","Cantidad","Valor"]
[null,null,null,null,0,0]
[null,null,null,null,0,0]
[null,null,null,null,0,0]
[null,"Total No procesos y valor Otras Acciones Contenciosas Administrativas",null,null,{"$f":"SUM(E468:E470)","v":0},{"$f":"SUM(F468:F470)","v":0}]
[null,"TOTAL LITIGIOS Y DEMANDAS ADMINISTRATIVAS",null,null,{"$f":"E443+E450+E457+E464+E471","v":0},{"$f":"F443+F450+F457+F464+F471","v":0}]
[null,"TOTAL CUENTA  812004 ADMINISTRATIVAS",null,null,{"$f":"E472","v":0},{"$f":"F472","v":0}]
[]
[null,"836101 INTERNAS"]
[null,"2. ACCIONES DE REPETICIÓN"]
[null,"Nombre del demandado","Identificación ","No. de Proceso (23 Digitos)","Cantidad","Valor"]
[null,null,null,null,0,0]
[null,null,null,null,0,0]
[null,null,null,null,0,0]
[null,"Total No procesos y valor  Acción de Repetición",null,null,{"$f":"SUM(E478:E480)","v":0},{"$f":"SUM(F478:F480)","v":0}]
[null,"TOTAL CUENTA 836101 INTERNAS",null,null,{"$f":"+E481","v":0},{"$f":"+F481","v":0}]
[]
[null,"147509 PRESTACIÓN DE SERVICIOS"]
[null,"3. MULTAS A PROVEEDORES Y CONTRATISTAS JURISDICCIÓN ORDINARIA"]
[null,"CONTRACTUAL DECLARATORIA DE INCUMPLIMIENTO"]
[null,"Nombre del demandado","Identificación ","No. de Proceso (23 Digitos)","Cantidad","Valor"]
[null,null,null,null,0,0]
[null,null,null,null,0,0]
[null,null,null,null,0,0]
[null,"Total No procesos y valor  Contractual decalratoria de incumplimiento",null,null,{"$f":"SUM(E488:E490)","v":0},{"$f":"SUM(F488:F490)","v":0}]
[null,"TOTAL CUENTA  147509 PRESTACIÓN DE SERVICIOS",null,null,{"$f":"E491","v":0},{"$f":"F491","v":0}]
[null,"TOTAL PROCESOS ADMINISTRATIVOS",null,null,{"$f":"E473+E482+E492","v":0},{"$f":"F473+F482+F492","v":0}]
[]
[]
[null,"RESUMEN POR CUENTA"]
[]
[null,"TOTAL CUENTA","DESCRIPCION CUENTA",null,"Q","VALOR"]
[null,812001,"CIVILES",null,{"$f":"E213","v":0},{"$f":"F213","v":0}]
[null,147502,"PRÉSTAMOS CONCEDIDOS",null,{"$f":"E271","v":0},{"$f":"F271","v":0}]
[null,831536,"DEUDORES",null,{"$f":"E370","v":0},{"$f":"F370","v":0}]
[null,812003,"PENALES",null,{"$f":"E432","v":0},{"$f":"F432","v":0}]
[null,812004,"ADMINISTRATIVAS",null,{"$f":"E473","v":0},{"$f":"F473","v":0}]
[null,836101,"INTERNAS",null,{"$f":"E482","v":0},{"$f":"F482","v":0}]
[null,147509,"PRESTACIÓN DE SERVICIOS",null,{"$f":"E492","v":0},{"$f":"F492","v":0}]
[null,"TOTAL",null,null,{"$f":"SUM(E499:E505)","v":0},{"$f":"SUM(F499:F505)","v":0}]
[]
[null,"RESUMEN INFORME FINANCIERO DE PROCESOS JURDICOS DONDE EL ICBE ES DEMANDANTE"]
[]
[null,"CONCEPTO",null,null,"Q","VALOR"]
[null,"PROCESOS CIVILES",null,null,{"$f":"E272","v":0},{"$f":"F272","v":0}]
[null,"PROCESOS LABORALES",null,null,{"$f":"E371","v":0},{"$f":"F371","v":0}]
[null,"PROCESOS PENALES",null,null,{"$f":"E433","v":0},{"$f":"F433","v":0}]
[null,"PROCESOS ADMINISTRATIVOS",null,null,{"$f":"E493","v":0},{"$f":"F493","v":0}]
[null,"TOTAL",null,null,{"$f":"SUM(E511:E514)","v":0},{"$f":"SUM(F511:F514)","v":0}]
[]
[]
[]
[null,"              Coordinador Grupo Jurídico"]
[]
[]
[]
[null,"Elaboro:"]
[null,"Reviso:"]
[null,"Aprobo:"]

{"sheet":"ICBF es Ddo.","index":2,"n_rows":764,"n_cols":6,"rows_kept":764,"cut":false,"hidden":false,"merged":[[6,1,6,5],[762,1,762,5],[763,1,763,5],[4,1,4,3],[1,1,1,3],[4,4,4,5],[9,2,9,3],[7,1,8,5],[10,2,10,3],[669,1,669,5],[670,1,670,5],[50,1,50,5],[75,1,75,5],[80,1,80,2],[81,1,81,5],[82,1,82,5],[87,1,87,2],[88,1,88,5],[65,1,65,5],[70,1,70,2],[71,1,71,2],[72,1,72,5],[73,1,73,5],[74,1,74,5],[51,1,51,5],[56,1,56,2],[57,1,57,5],[58,1,58,5],[63,1,63,2],[64,1,64,5],[37,1,37,5],[42,1,42,2],[43,1,43,5],[44,1,44,5],[49,1,49,2],[23,1,23,5],[28,1,28,2],[29,1,29,5],[30,1,30,5],[35,1,35,2],[36,1,36,5],[11,2,11,3],[13,2,13,5],[14,1,14,5],[16,1,16,5],[21,1,21,2],[22,1,22,5],[15,1,15,5],[109,1,109,5],[110,1,110,5],[115,1,115,2],[116,1,116,5],[89,1,89,5],[94,1,94,2],[95,1,95,5],[96,1,96,5],[101,1,101,2],[102,1,102,5],[103,1,103,5],[108,1,108,2],[132,1,132,5],[133,1,133,5],[134,1,134,5],[135,1,135,5],[140,1,140,2],[141,1,141,5],[117,1,117,5],[123,1,123,5],[124,1,124,5],[129,1,129,2],[130,1,130,2],[131,1,131,2],[156,1,156,5],[161,1,161,2],[162,1,162,5],[163,1,163,5],[168,1,168,2],[169,1,169,5],[142,1,142,5],[147,1,147,2],[148,1,148,5],[149,1,149,5],[154,1,154,2],[155,1,155,5],[189,1,189,2],[190,1,190,2],[191,1,191,2],[192,1,192,5],[193,1,193,5],[194,1,194,5],[170,1,170,5],[175,1,175,2],[176,1,176,5],[177,1,177,5],[183,1,183,5],[184,1,184,5],[209,1,209,5],[214,1,214,2],[215,1,215,5],[216,1,216,5],[221,1,221,2],[222,1,222,5],[195,1,195,5],[200,1,200,2],[201,1,201,5],[202,1,202,5],[207,1,207,2],[208,1,208,5],[237,1,237,5],[243,1,243,5],[244,1,244,5],[249,1,249,2],[250,1,250,2],[251,1,251,2],[223,1,223,5],[228,1,228,2],[229,1,229,5],[230,1,230,5],[235,1,235,2],[236,1,236,5],[262,1,262,5],[267,1,267,2],[268,1,268,5],[269,1,269,5],[274,1,274,2],[275,1,275,5],[252,1,252,5],[253,1,253,5],[254,1,254,5],[255,1,255,5],[260,1,260,2],[261,1,261,5],[290,1,290,5],[295,1,295,2],[296,1,296,5],[297,1,297,5],[303,1,303,5],[304,1,304,5],[276,1,276,5],[281,1,281,2],[282,1,282,5],[283,1,283,5],[288,1,288,2],[289,1,289,5],[315,1,315,5],[316,1,316,5],[321,1,321,2],[322,1,322,5],[323,1,323,5],[328,1,328,2],[309,1,309,2],[310,1,310,2],[311,1,311,2],[312,1,312,5],[313,1,313,5],[314,1,314,5],[339,1,339,5],[340,1,340,5],[345,1,345,2],[346,1,346,5],[347,1,347,5],[352,1,352,2],[329,1,329,5],[330,1,330,5],[335,1,335,2],[336,1,336,2],[337,1,337,5],[338,1,338,5],[363,1,363,5],[364,1,364,5],[365,1,365,5],[370,1,370,2],[371,1,371,5],[372,1,372,5],[353,1,353,5],[354,1,354,5],[359,1,359,2],[360,1,360,2],[361,1,361,2],[362,1,362,5],[387,1,387,5],[388,1,388,5],[389,1,389,5],[390,1,390,5],[395,1,395,2],[396,1,396,5],[377,1,377,2],[378,1,378,5],[379,1,379,5],[384,1,384,2],[385,1,385,2],[386,1,386,2],[411,1,411,2],[412,1,412,5],[413,1,413,5],[414,1,414,5],[415,1,415,5],[420,1,420,2],[397,1,397,5],[402,1,402,2],[403,1,403,5],[404,1,404,5],[409,1,409,2],[410,1,410,2],[435,1,435,2],[436,1,436,2],[437,1,437,2],[438,1,438,5],[439,1,439,5],[440,1,440,5],[421,1,421,5],[422,1,422,5],[427,1,427,2],[428,1,428,5],[429,1,429,5],[434,1,434,2],[455,1,455,5],[456,1,456,5],[461,1,461,2],[462,1,462,5],[463,1,463,5],[468,1,468,2],[441,1,441,5],[442,1,442,5],[447,1,447,2],[448,1,448,5],[449,1,449,5],[454,1,454,2],[484,1,484,2],[485,1,485,2],[486,1,486,5],[487,1,487,5],[488,1,488,5],[489,1,489,5],[469,1,469,5],[470,1,470,5],[476,1,476,2],[477,1,477,5],[478,1,478,5],[483,1,483,2],[508,1,508,2],[509,1,509,5],[510,1,510,5],[515,1,515,2],[516,1,516,5],[517,1,517,5],[494,1,494,2],[495,1,495,5],[496,1,496,5],[501,1,501,2],[502,1,502,5],[503,1,503,5],[532,1,532,5],[533,1,533,5],[534,1,534,5],[535,1,535,5],[540,1,540,2],[541,1,541,5],[522,1,522,2],[523,1,523,5],[524,1,524,5],[529,1,529,2],[530,1,530,2],[531,1,531,2],[556,1,556,5],[561,1,561,2],[562,1,562,5],[563,1,563,5],[568,1,568,2],[569,1,569,5],[542,1,542,5],[547,1,547,2],[548,1,548,5],[549,1,549,5],[554,1,554,2],[555,1,555,5],[580,1,580,5],[581,1,581,5],[586,1,586,2],[587,1,587,5],[588,1,588,5],[593,1,593,2],[570,1,570,5],[575,1,575,2],[576,1,576,2],[577,1,577,2],[578,1,578,5],[579,1,579,5],[608,1,608,5],[609,1,609,5],[614,1,614,2],[615,1,615,5],[616,1,616,5],[621,1,621,2],[594,1,594,5],[595,1,595,5],[600,1,600,2],[601,1,601,5],[602,1,602,5],[607,1,607,2],[632,1,632,2],[633,1,633,5],[634,1,634,5],[639,1,639,2],[640,1,640,5],[641,1,641,5],[622,1,622,2],[623,1,623,2],[624,1,624,5],[625,1,625,5],[626,1,626,5],[627,1,627,5],[660,1,660,2],[661,1,661,5],[662,1,662,5],[667,1,667,2],[668,1,668,2],[685,1,685,2],[646,1,646,2],[647,1,647,5],[648,1,648,5],[653,1,653,2],[654,1,654,5],[655,1,655,5],[677,1,677,2],[678,1,678,5],[683,1,683,2],[671,1,671,5],[672,1,672,5],[747,1,747,3],[751,1,751,5],[739,1,739,3],[742,1,742,5],[743,1,743,3],[744,1,744,3],[745,1,745,3],[746,1,746,3],[718,1,718,2],[720,1,720,5],[704,1,704,5],[709,1,709,2],[710,1,710,5],[715,1,715,2],[717,1,717,2],[686,1,686,5],[687,1,687,5],[688,1,688,5],[693,1,693,2],[694,1,694,5],[699,1,699,2],[701,1,701,2],[702,1,702,5],[703,1,703,5]]}
[]
[null,"PROCESO DE GESTION FINANCIERA"]
[null,null,null,null,null,"xx/xx/xxxx"]
[null,null,null,null,"Version 1","Pagina 1 de 1"]
[null,"FORMATO FINANCIERO DE PROCESOS JURIDICOS ICBF",null,null,"Clasificacion de la Informacion Publica:"]
[]
[null,"LITIGIOS Y MECANISMOS ALTERNATIVOS DE SOLUCIÓN DE CONFLICTOS"]
[null,"INFORME FINANCIERO DE PROCESOS JURIDICOS DONDE EL ICBF ES DEMANDADO"]
[]
[null,"REGIONAL:  "]
[null,"MES DE CORTE:"]
[null,"FECHA DE ELABORACION:"]
[]
[null,"PROCESOS CIVILES:"]
[null,"912001 CIVILES"]
[null,"1. LITIGIOS Y DEMANDAS CIVILES"]
[null,"RESTITUCIÓN DE BIEN INMUEBLE"]
[null,"Nombre del demandante","Identificación ","No. de Proceso (23 Digitos)","Cantidad","Valor"]
[null,null,null,null,0,0]
[null,null,null,null,null,0]
[null,null,null,null,null,0]
[null,"Total No procesos y valor Restitución del bien inmueble",null,null,{"$f":"SUM(E19:E21)","v":0},{"$f":"SUM(F19:F21)","v":0}]
[]
[null,"EXPROPIACIÓN DEL BIEN INMUEBLE"]
[null,"Nombre del demandante","Identificación ","No. de Proceso (23 Digitos)","Cantidad","Valor"]
[null,null,null,null,null,0]
[null,null,null,null,null,0]
[null,null,null,null,null,0]
[null,"Total No procesos y valor Expropiación del bien inmueble",null,null,{"$f":"SUM(E26:E28)","v":0},{"$f":"SUM(F26:F28)","v":0}]
[]
[null,"ENTREGA MATERIAL DEL INMUEBLE"]
[null,"Nombre del demandante","Identificación ","No. de Proceso (23 Digitos)","Cantidad","Valor"]
[null,null,null,null,null,0]
[null,null,null,null,null,0]
[null,null,null,null,null,0]
[null,"Total No procesos y valor Entrega Material del Inmueble",null,null,{"$f":"SUM(E33:E35)","v":0},{"$f":"SUM(F33:F35)","v":0}]
[]
[null,"DECLARATORIA DE PERTENENCIA DEL INMUEBLE"]
[null,"Nombre del demandante","Identificación ","No. de Proceso (23 Digitos)","Cantidad","Valor"]
[null,null,null,null,null,0]
[null,null,null,null,null,0]
[null,null,null,null,null,0]
[null,"Total No procesos y valor Declaratoria de Pertenencia del inmueble",null,null,{"$f":"SUM(E40:E42)","v":0},{"$f":"SUM(F40:F42)","v":0}]
[]
[null,"REIVINDICATORIA DE DOMINIO"]
[null,"Nombre del demandante","Identificación ","No. de Proceso (23 Digitos)","Cantidad","Valor"]
[null,null,null,null,null,0]
[null,null,null,null,null,0]
[null,null,null,null,null,0]
[null,"Total No procesos y valor Reivindicatoria de Dominio",null,null,{"$f":"SUM(E47:E49)","v":0},{"$f":"SUM(F47:F49)","v":0}]
[]
[null,"PAGO DE TÍTULOS VALORES"]
[null,"Nombre del demandante","Identificación ","No. de Proceso (23 Digitos)","Cantidad","Valor"]
[null,null,null,null,null,0]
[null,null,null,null,null,0]
[null,null,null,null,null,0]
[null,"Total No procesos y valor Pago de títulos valores",null,null,{"$f":"SUM(E54:E56)","v":0},{"$f":"SUM(F54:F56)","v":0}]
[]
[null,"PETICIÓN DE HERENCIA"]
[null,"Nombre del demandante","Identificación ","No. de Proceso (23 Digitos)","Cantidad","Valor"]
[null,null,null,null,null,0]
[null,null,null,null,null,0]
[null,null,null,null,null,0]
[null,"Total No procesos y valor Peticiòn de Herencia",null,null,{"$f":"SUM(E61:E63)","v":0},{"$f":"SUM(F61:F63)","v":0}]
[]
[null,"OTROS"]
[null,"Nombre del demandante","Identificación ","No. de Proceso (23 Digitos)","Cantidad","Valor"]
[null,null,null,null,null,0]
[null,null,null,null,null,0]
[null,null,null,null,null,0]
[null,"Total No procesos y valor otros",null,null,{"$f":"SUM(E68:E70)","v":0},{"$f":"SUM(F68:F70)","v":0}]
[null,"TOTAL CUENTA  912001 CIVILES",null,null,{"$f":"+E22+E29+E36+E43+E50+E57+E64+E71","v":0},{"$f":"+F22+F29+F36+F43+F50+F57+F64+F71","v":0}]
[]
[null,"271005 LITIGIOS O DEMANDAS"]
[null,"2. PROVISION PARA CONTIGENCIAS - LITIGIOS Y DEMANDAS CIVILES"]
[null,"RESTITUCIÓN DEL BIEN INMUEBLE"]
[null,"Nombre del demandante","Identificación ","No. de Proceso (23 Digitos)","Cantidad","Valor"]
[null,null,null,null,null,0]
[null,null,null,null,null,0]
[null,null,null,null,null,0]
[null,"Total No procesos y valor Restitución del bien inmueble",null,null,{"$f":"SUM(E78:E80)","v":0},{"$f":"SUM(F78:F80)","v":0}]
[]
[null,"EXPROPIACIÓN DEL BIEN INMUEBLE"]
[null,"Nombre del demandante","Identificación ","No. de Proceso (23 Digitos)","Cantidad","Valor"]
[null,null,null,null,null,0]
[null,null,null,null,null,0]
[null,null,null,null,null,0]
[null,"Total No procesos y valor Expropiación del bien inmueble",null,null,{"$f":"SUM(E85:E87)","v":0},{"$f":"SUM(F85:F87)","v":0}]
[]
[null,"ENTREGA MATERIAL DEL INMUEBLE"]
[null,"Nombre del demandante","Identificación ","No. de Proceso (23 Digitos)","Cantidad","Valor"]
[null,null,null,null,null,0]
[null,null,null,null,null,0]
[null,null,null,null,null,0]
[null,"Total No procesos y valor Entrega Material del Inmueble",null,null,{"$f":"SUM(E92:E94)","v":0},{"$f":"SUM(F92:F94)","v":0}]
[]
[null,"DECLARATORIA DE PERTENENCIA DEL INMUEBLE"]
[null,"Nombre del demandante","Identificación ","No. de Proceso (23 Digitos)","Cantidad","Valor"]
[null,null,null,null,null,0]
[null,null,null,null,null,0]
[null,null,null,null,null,0]
[null,"Total No procesos y valor Declaratoria de Pertenencia del inmueble",null,null,{"$f":"SUM(E99:E101)","v":0},{"$f":"SUM(F99:F101)","v":0}]
[]
[null,"REIVINDICATORIA DE DOMINIO"]
[null,"Nombre del demandante","Identificación ","No. de Proceso (23 Digitos)","Cantidad","Valor"]
[null,null,null,null,null,0]
[null,null,null,null,null,0]
[null,null,null,null,null,0]
[null,"Total No procesos y valor Reivindicatoria de Dominio",null,null,{"$f":"SUM(E106:E108)","v":0},{"$f":"SUM(F106:F108)","v":0}]
[]
[null,"PAGO DE TÍTULOS VALORES"]
[null,"Nombre del demandante","Identificación ","No. de Proceso (23 Digitos)","Cantidad","Valor"]
[null,null,null,null,null,0]
[null,null,null,null,null,0]
[null,null,null,null,null,0]
[null,"Total No procesos y valor Pago de títulos valores",null,null,{"$f":"SUM(E113:E115)","v":0},{"$f":"SUM(F113:F115)","v":0}]
[]
[null,"PETICIÓN DE HERENCIA"]
[null,"Nombre del demandante","Identificación ","No. de Proceso (23 Digitos)","Cantidad","Valor"]
[null,null,null,null,null,0]
[null,null,null,null,null,0]
[null,null,null,null,null,0]
[null,"Total No procesos y valor Peticiòn de Herencia",null,null,{"$f":"SUM(E120:E122)","v":0},{"$f":"SUM(F120:F122)","v":0}]
[]
[null,"OTROS"]
[null,"Nombre del demandante","Identificación ","No. de Proceso (23 Digitos)","Cantidad","Valor"]
[null,null,null,null,null,0]
[null,null,null,null,null,0]
[null,null,null,null,null,0]
[null,"Total No procesos y valor otros",null,null,{"$f":"SUM(E127:E129)","v":0},{"$f":"SUM(F127:F129)","v":0}]
[null,"TOTAL PROVISION PARA CONTIGENCIAS - LITIGIOS CIVILES",null,null,{"$f":"+E81+E88+E95+E102+E109+E116+E123+E130","v":0},{"$f":"+F81+F88+F95+F102+F109+F116+F123+F130","v":0}]
[null,"TOTAL CUENTA 271005 LITIGIOS",null,null,{"$f":"+E81+E88+E95+E102+E109+E116+E123+E130","v":0},{"$f":"F131","v":0}]
[]
[null,"246002 SENTENCIAS Y CONCILIACIONES"]
[null,"3. CAUSACION PASIVO SENTENCIAS - CIVILES"]
[null,"RESTITUCIÓN DEL BIEN INMUEBLE"]
[null,"Nombre del demandante","Identificación ","No. de Proceso (23 Digitos)","Cantidad","Valor"]
[null,null,null,null,null,0]
[null,null,null,null,null,0]
[null,null,null,null,null,0]
[null,"Total No procesos y valor Restitución del bien inmueble",null,null,{"$f":"SUM(E138:E140)","v":0},{"$f":"SUM(F138:F140)","v":0}]
[]
[null,"EXPROPIACIÓN DEL BIEN INMUEBLE"]
[null,"Nombre del demandante","Identificación ","No. de Proceso (23 Digitos)","Cantidad","Valor"]
[null,null,null,null,null,0]
[null,null,null,null,null,0]
[null,null,null,null,null,0]
[null,"Total No procesos y valor Expropiación del bien inmueble",null,null,{"$f":"SUM(E145:E147)","v":0},{"$f":"SUM(F145:F147)","v":0}]
[]
[null,"ENTREGA MATERIAL DEL INMUEBLE"]
[null,"Nombre del demandante","Identificación ","No. de Proceso (23 Digitos)","Cantidad","Valor"]
[null,null,null,null,null,0]
[null,null,null,null,null,0]
[null,null,null,null,null,0]
[null,"Total No procesos y valor Entrega Material del Inmueble",null,null,{"$f":"SUM(E152:E154)","v":0},{"$f":"SUM(F152:F154)","v":0}]
[]
[null,"DECLARATORIA DE PERTENENCIA DEL INMUEBLE"]
[null,"Nombre del demandante","Identificación ","No. de Proceso (23 Digitos)","Cantidad","Valor"]
[null,null,null,null,null,0]
[null,null,null,null,null,0]
[null,null,null,null,null,0]
[null,"Total No procesos y valor Declaratoria de Pertenencia del inmueble",null,null,{"$f":"SUM(E159:E161)","v":0},{"$f":"SUM(F159:F161)","v":0}]
[]
[null,"REIVINDICATORIA DE DOMINIO"]
[null,"Nombre del demandante","Identificación ","No. de Proceso (23 Digitos)","Cantidad","Valor"]
[null,null,null,null,null,0]
[null,null,null,null,null,0]
[null,null,null,null,null,0]
[null,"Total No procesos y valor Reivindicatoria de Dominio",null,null,{"$f":"SUM(E166:E168)","v":0},{"$f":"SUM(F166:F168)","v":0}]
[]
[null,"PAGO DE TÍTULOS VALORES"]
[null,"Nombre del demandante","Identificación ","No. de Proceso (23 Digitos)","Cantidad","Valor"]
[null,null,null,null,null,0]
[null,null,null,null,null,0]
[null,null,null,null,null,0]
[null,"Total No procesos y valor Pago de títulos valores",null,null,{"$f":"SUM(E173:E175)","v":0},{"$f":"SUM(F173:F175)","v":0}]
[]
[null,"PETICIÓN DE HERENCIA"]
[null,"Nombre del demandante","Identificación ","No. de Proceso (23 Digitos)","Cantidad","Valor"]
[null,null,null,null,null,0]
[null,null,null,null,null,0]
[null,null,null,null,null,0]
[null,"Total No procesos y valor Peticiòn de Herencia",null,null,{"$f":"SUM(E180:E182)","v":0},{"$f":"SUM(F180:F182)","v":0}]
[]
[null,"OTROS"]
[null,"Nombre del demandante","Identificación ","No. de Proceso (23 Digitos)","Cantidad","Valor"]
[null,null,null,null,null,0]
[null,null,null,null,null,0]
[null,null,null,null,null,0]
[null,"Total No procesos y valor otros",null,null,{"$f":"SUM(E187:E189)","v":0},{"$f":"SUM(F187:F189)","v":0}]
[null,"TOTAL SENTENCIAS CIVILES",null,null,{"$f":"+E141+E148+E155+E162+E169+E176+E183+E190","v":0},{"$f":"+F141+F148+F155+F162+F169+F176+F183+F190","v":0}]
[null,"TOTAL CUENTA 246002 SENTENCIAS",null,null,{"$f":"E191","v":0},{"$f":"F191","v":0}]
[]
[null,"271015 MECANISMOS ALTERNATIVOS DE SOLUCIÓN DE CONFLICTOS"]
[null,"4. PROVISION CONTINGENTE MECANISMOS ALTERNATIVOS DE SOLUCIÓN DE CONFLICTOS - CIVILES"]
[null,"RESTITUCIÓN DEL BIEN INMUEBLE"]
[null,"Nombre del demandante","Identificación ","No. de Proceso (23 Digitos)","Cantidad","Valor"]
[null,null,null,null,null,0]
[null,null,null,null,null,0]
[null,null,null,null,null,0]
[null,"Total No procesos y valor Restitución del bien inmueble",null,null,{"$f":"SUM(E198:E200)","v":0},{"$f":"SUM(F198:F200)","v":0}]
[]
[null,"EXPROPIACIÓN DEL BIEN INMUEBLE"]
[null,"Nombre del demandante","Identificación ","No. de Proceso (23 Digitos)","Cantidad","Valor"]
[null,null,null,null,null,0]
[null,null,null,null,null,0]
[null,null,null,null,null,0]
[null,"Total No procesos y valor Expropiación del bien inmueble",null,null,{"$f":"SUM(E205:E207)","v":0},{"$f":"SUM(F205:F207)","v":0}]
[]
[null,"ENTREGA MATERIAL DEL INMUEBLE"]
[null,"Nombre del demandante","Identificación ","No. de Proceso (23 Digitos)","Cantidad","Valor"]
[null,null,null,null,null,0]
[null,null,null,null,null,0]
[null,null,null,null,null,0]
[null,"Total No procesos y valor Entrega Material del Inmueble",null,null,{"$f":"SUM(E212:E214)","v":0},{"$f":"SUM(F212:F214)","v":0}]
[]
[null,"DECLARATORIA DE PERTENENCIA DEL INMUEBLE"]
[null,"Nombre del demandante","Identificación ","No. de Proceso (23 Digitos)","Cantidad","Valor"]
[null,null,null,null,null,0]
[null,null,null,null,null,0]
[null,null,null,null,null,0]
[null,"Total No procesos y valor Declaratoria de Pertenencia del inmueble",null,null,{"$f":"SUM(E219:E221)","v":0},{"$f":"SUM(F219:F221)","v":0}]
[]
[null,"REIVINDICATORIA DE DOMINIO"]
[null,"Nombre del demandante","Identificación ","No. de Proceso (23 Digitos)","Cantidad","Valor"]
[null,null,null,null,null,0]
[null,null,null,null,null,0]
[null,null,null,null,null,0]
[null,"Total No procesos y valor Reivindicatoria de Dominio",null,null,{"$f":"SUM(E226:E228)","v":0},{"$f":"SUM(F226:F228)","v":0}]
[]
[null,"PAGO DE TÍTULOS VALORES"]
[null,"Nombre del demandante","Identificación ","No. de Proceso (23 Digitos)","Cantidad","Valor"]
[null,null,null,null,null,0]
[null,null,null,null,null,0]
[null,null,null,null,null,0]
[null,"Total No procesos y valor Pago de títulos valores",null,null,{"$f":"SUM(E233:E235)","v":0},{"$f":"SUM(F233:F235)","v":0}]
[]
[null,"PETICIÓN DE HERENCIA"]
[null,"Nombre del demandante","Identificación ","No. de Proceso (23 Digitos)","Cantidad","Valor"]
[null,null,null,null,null,0]
[null,null,null,null,null,0]
[null,null,null,null,null,0]
[null,"Total No procesos y valor Peticiòn de Herencia",null,null,{"$f":"SUM(E240:E242)","v":0},{"$f":"SUM(F240:F242)","v":0}]
[]
[null,"OTROS"]
[null,"Nombre del demandante","Identificación ","No. de Proceso (23 Digitos)","Cantidad","Valor"]
[null,null,null,null,null,0]
[null,null,null,null,null,0]
[null,null,null,null,null,0]
[null,"Total No procesos y valor otros",null,null,{"$f":"SUM(E247:E249)","v":0},{"$f":"SUM(F247:F249)","v":0}]
[null,"TOTAL MECANISMOS ALTERNATIVOS DE SOLUCIÓN DE CONFLICTOS - CIVILES",null,null,{"$f":"+E201+E208+E215+E222+E229+E236+E243+E250","v":0},{"$f":"+F201+F208+F215+F222+F229+F236+F243+F250","v":0}]
[null,"TOTAL CUENTA 271015 MECANISMOS ALTERNATIVOS DE SOLUCIÓN DE CONFLICTOS",null,null,{"$f":"E251","v":0},{"$f":"F251","v":0}]
[]
[null,"246003 LAUDOS ARBITRALES Y CONCILIACIONES EXTRAJUDICIALES"]
[null,"5. CAUSACION PASIVO LAUDOS ARBITRALES Y CONCILIACIONES EXTRAJUDICIALES-CIVILES"]
[null,"RESTITUCIÓN DEL BIEN INMUEBLE"]
[null,"Nombre del demandante","Identificación ","No. de Proceso (23 Digitos)","Cantidad","Valor"]
[null,null,null,null,null,0]
[null,null,null,null,null,0]
[null,null,null,null,null,0]
[null,"Total No procesos y valor Restitución del bien inmueble",null,null,{"$f":"SUM(E258:E260)","v":0},{"$f":"SUM(F258:F260)","v":0}]
[]
[null,"EXPROPIACIÓN DEL BIEN INMUEBLE"]
[null,"Nombre del demandante","Identificación ","No. de Proceso (23 Digitos)","Cantidad","Valor"]
[null,null,null,null,null,0]
[null,null,null,null,null,0]
[null,null,null,null,null,0]
[null,"Total No procesos y valor Expropiación del bien inmueble",null,null,{"$f":"SUM(E265:E267)","v":0},{"$f":"SUM(F265:F267)","v":0}]
[]
[null,"ENTREGA MATERIAL DEL INMUEBLE"]
[null,"Nombre del demandante","Identificación ","No. de Proceso (23 Digitos)","Cantidad","Valor"]
[null,null,null,null,null,0]
[null,null,null,null,null,0]
[null,null,null,null,null,0]
[null,"Total No procesos y valor Entrega Material del Inmueble",null,null,{"$f":"SUM(E272:E274)","v":0},{"$f":"SUM(F272:F274)","v":0}]
[]
[null,"DECLARATORIA DE PERTENENCIA DEL INMUEBLE"]
[null,"Nombre del demandante","Identificación ","No. de Proceso (23 Digitos)","Cantidad","Valor"]
[null,null,null,null,null,0]
[null,null,null,null,null,0]
[null,null,null,null,null,0]
[null,"Total No procesos y valor Declaratoria de Pertenencia del inmueble",null,null,{"$f":"SUM(E279:E281)","v":0},{"$f":"SUM(F279:F281)","v":0}]
[]
[null,"REIVINDICATORIA DE DOMINIO"]
[null,"Nombre del demandante","Identificación ","No. de Proceso (23 Digitos)","Cantidad","Valor"]
[null,null,null,null,null,0]
[null,null,null,null,null,0]
[null,null,null,null,null,0]
[null,"Total No procesos y valor Reivindicatoria de Dominio",null,null,{"$f":"SUM(E286:E288)","v":0},{"$f":"SUM(F286:F288)","v":0}]
[]
[null,"PAGO DE TÍTULOS VALORES"]
[null,"Nombre del demandante","Identificación ","No. de Proceso (23 Digitos)","Cantidad","Valor"]
[null,null,null,null,null,0]
[null,null,null,null,null,0]
[null,null,null,null,null,0]
[null,"Total No procesos y valor Pago de títulos valores",null,null,{"$f":"SUM(E293:E295)","v":0},{"$f":"SUM(F293:F295)","v":0}]
[]
[null,"PETICIÓN DE HERENCIA"]
[null,"Nombre del demandante","Identificación ","No. de Proceso (23 Digitos)","Cantidad","Valor"]
[null,null,null,null,null,0]
[null,null,null,null,null,0]
[null,null,null,null,null,0]
[null,"Total No procesos y valor Peticiòn de Herencia",null,null,{"$f":"SUM(E300:E302)","v":0},{"$f":"SUM(F300:F302)","v":0}]
[]
[null,"OTROS"]
[null,"Nombre del demandante","Identificación ","No. de Proceso (23 Digitos)","Cantidad","Valor"]
[null,null,null,null,null,0]
[null,null,null,null,null,0]
[null,null,null,null,null,0]
[null,"Total No procesos y valor otros",null,null,{"$f":"SUM(E307:E309)","v":0},{"$f":"SUM(F307:F309)","v":0}]
[null,"TOTAL CUENTA  246003 LAUDOS ARTIBITRALES Y CONCILIACIONES EXTRAJUDICIALES",null,null,{"$f":"+E261+E268++E275+E282+E289+E296+E303+E310","v":0},{"$f":"+F261+F268++F275+F282+F289+F296+F303+F310","v":0}]
[null,"TOTAL PROCESOS CIVILES",null,null,{"$f":"E311+E192+E252+E72+E132","v":0},{"$f":"F311+F192+F252+F72+F132","v":0}]
[]
[null,"PROCESOS LABORALES :"]
[null,"912002 LABORALES"]
[null,"6. LITIGIOS O DEMANDAS LABORALES"]
[null,"DECLARATORIA DE RELACIÓN LABORAL"]
[null,"Nombre del demandante","Identificación ","No. de Proceso (23 Digitos)","Cantidad","Valor"]
[null,null,null,null,null,0]
[null,null,null,null,null,0]
[null,null,null,null,null,0]
[null,"Total No procesos y valor  Declaratoria de Relación Laboral",null,null,{"$f":"SUM(E319:E321)","v":0},{"$f":"SUM(F319:F321)","v":0}]
[]
[null,"EJECUTIVOS"]
[null,"Nombre del demandante","Identificación ","No. de Proceso (23 Digitos)","Cantidad","Valor"]
[null,null,null,null,null,0]
[null,null,null,null,null,0]
[null,null,null,null,null,0]
[null,"Total No procesos y valor  Sucesión Ejecutivos",null,null,{"$f":"SUM(E326:E328)","v":0},{"$f":"SUM(F326:F328)","v":0}]
[]
[null,"OTROS"]
[null,"Nombre del demandante","Identificación ","No. de Proceso (23 Digitos)","Cantidad","Valor"]
[null,null,null,null,null,0]
[null,null,null,null,null,0]
[null,null,null,null,null,0]
[null,"Total No procesos y valor  Otros",null,null,{"$f":"SUM(E333:E335)","v":0},{"$f":"SUM(F333:F335)","v":0}]
[null,"TOTAL CUENTA 912002 LABORALES",null,null,{"$f":"+E322+E329+E336","v":0},{"$f":"+F322+F329+F336","v":0}]
[]
[null,"271005 LITIGIOS"]
[null,"7. PROVISIÓN PARA CONTINGENCIAS LITIGIOS- LABORALES"]
[null,"DECLARATORIA DE RELACIÓN LABORAL"]
[null,"Nombre del demandante","Identificación ","No. de Proceso (23 Digitos)","Cantidad","Valor"]
[null,null,null,null,null,0]
[null,null,null,null,null,0]
[null,null,null,null,null,0]
[null,"Total No procesos y valor  Declaratoria de Relación Laboral",null,null,{"$f":"SUM(E343:E345)","v":0},{"$f":"SUM(F343:F345)","v":0}]
[]
[null,"EJECUTIVOS"]
[null,"Nombre del demandante","Identificación ","No. de Proceso (23 Digitos)","Cantidad","Valor"]
[null,null,null,null,null,0]
[null,null,null,null,null,0]
[null,null,null,null,null,0]
[null,"Total No procesos y valor  Sucesión Ejecutivos",null,null,{"$f":"SUM(E350:E352)","v":0},{"$f":"SUM(F350:F352)","v":0}]
[]
[null,"OTROS"]
[null,"Nombre del demandante","Identificación ","No. de Proceso (23 Digitos)","Cantidad","Valor"]
[null,null,null,null,null,0]
[null,null,null,null,null,0]
[null,null,null,null,null,0]
[null,"Total No procesos y valor  Otros",null,null,{"$f":"SUM(E357:E359)","v":0},{"$f":"SUM(F357:F359)","v":0}]
[null,"TOTAL PROVISIÓN PARA CONTINGENCIAS LITIGIOS - LABORALES",null,null,{"$f":"+E346+E353+E360","v":0},{"$f":"+F346+F353+F360","v":0}]
[null,"TOTAL CUENTA 271005 LITIGIOS",null,null,{"$f":"E361","v":0},{"$f":"F361","v":0}]
[]
[null,"246002 SENTENCIAS"]
[null,"8. CAUSACION PASIVO SENTENCIAS LABORALES"]
[null,"DECLARATORIA DE RELACIÓN LABORAL"]
[null,"Nombre del demandante","Identificación ","No. de Proceso (23 Digitos)","Cantidad","Valor"]
[null,null,null,null,null,0]
[null,null,null,null,null,0]
[null,null,null,null,null,0]
[null,"Total No procesos y valor  Declaratoria de Relación Laboral",null,null,{"$f":"SUM(E368:E370)","v":0},{"$f":"SUM(F368:F370)","v":0}]
[]
[null,"EJECUTIVOS"]
[null,"Nombre del demandante","Identificación ","No. de Proceso (23 Digitos)","Cantidad","Valor"]
[null,null,null,null,null,0]
[null,null,null,null,null,0]
[null,null,null,null,null,0]
[null,"Total No procesos y valor  Sucesión Ejecutivos",null,null,{"$f":"SUM(E375:E377)","v":0},{"$f":"SUM(F375:F377)","v":0}]
[]
[null,"OTROS"]
[null,"Nombre del demandante","Identificación ","No. de Proceso (23 Digitos)","Cantidad","Valor"]
[null,null,null,null,null,0]
[null,null,null,null,null,0]
[null,null,null,null,null,0]
[null,"Total No procesos y valor  Otros",null,null,{"$f":"SUM(E382:E384)","v":0},{"$f":"SUM(F382:F384)","v":0}]
[null,"TOTAL SENTENCIAS LABORALES",null,null,{"$f":"+E371+E378+E385","v":0},{"$f":"+F371+F378+F385","v":0}]
[null,"TOTAL CUENTA 246002 SENTENCIAS",null,null,{"$f":"E386","v":0},{"$f":"F386","v":0}]
[]
[null,"271015 MECANISMOS ATERNATIVOS DE SOLUCIÓN DE CONFLICTOS"]
[null,"9.  PROVISION CONTINGENTE MECANISMOS ALTERNATIVOS DE SOLUCIÓN DE CONFLICTOS  LABORALES"]
[null,"DECLARATORIA DE RELACIÓN LABORAL"]
[null,"Nombre del demandante","Identificación ","No. de Proceso (23 Digitos)","Cantidad","Valor"]
[null,null,null,null,null,0]
[null,null,null,null,null,0]
[null,null,null,null,null,0]
[null,"Total No procesos y valor  Declaratoria de Relación Laboral",null,null,{"$f":"SUM(E393:E395)","v":0},{"$f":"SUM(F393:F395)","v":0}]
[]
[null,"EJECUTIVOS"]
[null,"Nombre del demandante","Identificación ","No. de Proceso (23 Digitos)","Cantidad","Valor"]
[null,null,null,null,null,0]
[null,null,null,null,null,0]
[null,null,null,null,null,0]
[null,"Total No procesos y valor  Sucesión Ejecutivos",null,null,{"$f":"SUM(E400:E402)","v":0},{"$f":"SUM(F400:F402)","v":0}]
[]
[null,"OTROS"]
[null,"Nombre del demandante","Identificación ","No. de Proceso (23 Digitos)","Cantidad","Valor"]
[null,null,null,null,null,0]
[null,null,null,null,null,0]
[null,null,null,null,null,0]
[null,"Total No procesos y valor  Otros",null,null,{"$f":"SUM(E407:E409)","v":0},{"$f":"SUM(F407:F409)","v":0}]
[null,"TOTAL MECANISMOS ALTERNATIVOS DE SOLUCIÓN DE CONFLICTOS  LABORALES",null,null,{"$f":"+E396+E403+E410","v":0},{"$f":"+F396+F403+F410","v":0}]
[null,"TOTAL CUENTA 271015 MECANISMOS ALTERNATIVOS DE SOLUCIÓN DE CONFLICTOS",null,null,{"$f":"E411","v":0},{"$f":"F411","v":0}]
[]
[null,"246003 LAUDOS ARBRITALES Y CONCILIACIONES EXTRADUCIALES"]
[null,"10. CAUSACION PASIVO LAUDOS ARBRITALES Y CONCILIACIONES EXTRADUCIALES LABORALES"]
[null,"DECLARATORIA DE RELACIÓN LABORAL"]
[null,"Nombre del demandante","Identificación ","No. de Proceso (23 Digitos)","Cantidad","Valor"]
[null,null,null,null,null,0]
[null,null,null,null,null,0]
[null,null,null,null,null,0]
[null,"Total No procesos y valor  Declaratoria de Relación Laboral",null,null,{"$f":"SUM(E418:E420)","v":0},{"$f":"SUM(F418:F420)","v":0}]
[]
[null,"EJECUTIVOS"]
[null,"Nombre del demandante","Identificación ","No. de Proceso (23 Digitos)","Cantidad","Valor"]
[null,null,null,null,null,0]
[null,null,null,null,null,0]
[null,null,null,null,null,0]
[null,"Total No procesos y valor  Sucesión Ejecutivos",null,null,{"$f":"SUM(E425:E427)","v":0},{"$f":"SUM(F425:F427)","v":0}]
[]
[null,"OTROS"]
[null,"Nombre del demandante","Identificación ","No. de Proceso (23 Digitos)","Cantidad","Valor"]
[null,null,null,null,null,0]
[null,null,null,null,null,0]
[null,null,null,null,null,0]
[null,"Total No procesos y valor  Otros",null,null,{"$f":"SUM(E432:E434)","v":0},{"$f":"SUM(F432:F434)","v":0}]
[null,"TOTAL LAUDOS ARBITRALES Y CONCILIACIONES EXTRAJUDICIALES LABORALES",null,null,{"$f":"E421+E428+E435","v":0},{"$f":"F421+F428+F435","v":0}]
[null,"TOTAL CUENTA 246003 LAUDOS ARBRITALES Y CONCILIACIONES EXTRADUCIALES",null,null,{"$f":"E436","v":0},{"$f":"F436","v":0}]
[null,"TOTAL PROCESOS LABORALES",null,null,{"$f":"E337+E362+E387+E412+E437","v":0},{"$f":"F337+F362+F387+F412+F437","v":0}]
[]
[null,"PROCESOS ADMINISTRATIVOS:"]
[null,"912004 ADMINISTRATIVAS"]
[null,"11. LITIGIOS O DEMANDAS ADMINISTRATIVAS"]
[null,"CONTRACTUAL DECLARATORIA DE INCUMPLIMIENTO"]
[null,"Nombre del demandante","Identificación ","No. de Proceso (23 Digitos)","Cantidad","Valor"]
[null,null,null,null,null,0]
[null,null,null,null,null,0]
[null,null,null,null,null,0]
[null,"Total No procesos y valor  Contractual decalratoria de incumplimiento",null,null,{"$f":"SUM(E444:E447)","v":0},{"$f":"SUM(F444:F447)","v":0}]
[]
[null,"NULIDAD DE ACTOS ADMINISTRATIVOS (NO TIENE VALOR)"]
[null,"Nombre del demandante","Identificación ","No. de Proceso (23 Digitos)","Cantidad","Valor"]
[null,null,null,null,null,0]
[null,null,null,null,null,0]
[null,null,null,null,null,0]
[null,"Total No procesos y valor Nulidad de actos administrativos sin valor",null,null,{"$f":"SUM(E452:E454)","v":0},{"$f":"SUM(F452:F454)","v":0}]
[]
[null,"NULIDAD DE ACTOS ADMINISTRATIVOS CON VALOR"]
[null,"Nombre del demandante","Identificación ","No. de Proceso (23 Digitos)","Cantidad","Valor"]
[null,null,null,null,null,0]
[null,null,null,null,null,0]
[null,null,null,null,null,0]
[null,"Total No procesos y valor Nulidad de Actos Administrativos con valor",null,null,{"$f":"SUM(E459:E461)","v":0},{"$f":"SUM(F459:F461)","v":0}]
[]
[null,"REPARACIÓN DIRECTA"]
[null,"Nombre del demandante","Identificación ","No. de Proceso (23 Digitos)","Cantidad","Valor"]
[null,null,null,null,null,0]
[null,null,null,null,null,0]
[null,null,null,null,null,0]
[null,"Total No procesos y valor Reparación directa",null,null,{"$f":"SUM(E466:E468)","v":0},{"$f":"SUM(F466:F468)","v":0}]
[]
[null,"OTRAS ACCIONES CONTENCIOSAS ADMINISTRATIVAS"]
[null,"Nombre del demandante","Identificación ","No. de Proceso (23 Digitos)","Cantidad","Valor"]
[null,null,null,null,null,0]
[null,null,null,null,null,0]
[null,null,null,null,null,0]
[null,null,null,null,null,0]
[null,"Total No procesos y valor Otras Acciones Contenciosas Administrativas",null,null,{"$f":"SUM(E473:E476)","v":0},{"$f":"SUM(F473:F476)","v":0}]
[]
[null,"EJECUTIVOS"]
[null,"Nombre del demandante","Identificación ","No. de Proceso (23 Digitos)","Cantidad","Valor"]
[null,null,null,null,null,0]
[null,null,null,null,null,0]
[null,null,null,null,null,0]
[null,"Total No procesos y valor  Sucesión Ejecutivos",null,null,{"$f":"SUM(E481:E483)","v":0},{"$f":"SUM(F481:F483)","v":0}]
[null,"TOTAL LITIGIOS O DEMANDAS ADMINISTRATIVAS",null,null,{"$f":"+E448+E455+E462+E469+E477+E484","v":0},{"$f":"+F448+F455+F462+F469+F477+F484","v":0}]
[null,"TOTAL CUENTA 912004 ADMINISTRATIVAS",null,null,{"$f":"E485","v":0},{"$f":"F485","v":0}]
[]
[null,"271005 LITIGIOS"]
[null,"12. PROVISIÓN PARA CONTINGENCIAS LITIGIOS- ADMINISTRATIVOS"]
[null,"CONTRACTUAL DECLARATORIA DE INCUMPLIMIENTO"]
[null,"Nombre del demandante","Identificación ","No. de Proceso (23 Digitos)","Cantidad","Valor"]
[null,null,null,null,null,0]
[null,null,null,null,null,0]
[null,null,null,null,null,0]
[null,"Total No procesos y valor  Contractual decalratoria de incumplimiento",null,null,{"$f":"SUM(E491:E494)","v":0},{"$f":"SUM(F491:F494)","v":0}]
[]
[null,"NULIDAD DE ACTOS ADMINISTRTIVOS (NO TIENE VALOR)"]
[null,"Nombre del demandante","Identificación ","No. de Proceso (23 Digitos)","Cantidad","Valor"]
[null,null,null,null,null,0]
[null,null,null,null,null,0]
[null,null,null,null,null,0]
[null,"Total No procesos y valor Nulidad de actos administrativos sin valor",null,null,{"$f":"SUM(E499:E501)","v":0},{"$f":"SUM(F499:F501)","v":0}]
[]
[null,"NULIDAD DE ACTOS ADMINISTRATIVOS CON VALOR"]
[null,"Nombre del demandante","Identificación ","No. de Proceso (23 Digitos)","Cantidad","Valor"]
[null,null,null,null,null,0]
[null,null,null,null,null,0]
[null,null,null,null,null,0]
[null,"Total No procesos y valor Nulidad de Actos Administrativos con valor",null,null,{"$f":"SUM(E506:E508)","v":0},{"$f":"SUM(F506:F508)","v":0}]
[]
[null,"REPARACIÓN DIRECTA"]
[null,"Nombre del demandante","Identificación ","No. de Proceso (23 Digitos)","Cantidad","Valor"]
[null,null,null,null,null,0]
[null,null,null,null,null,0]
[null,null,null,null,null,0]
[null,"Total No procesos y valor Reparación directa",null,null,{"$f":"SUM(E513:E515)","v":0},{"$f":"SUM(F513:F515)","v":0}]
[]
[null,"OTRAS ACCIONES CONTENCIOSAS ADMINISTRATIVAS"]
[null,"Nombre del demandante","Identificación ","No. de Proceso (23 Digitos)","Cantidad","Valor"]
[]
[]
[null,null,null,null,null,0]
[null,"Total No procesos y valor Otras Acciones Contenciosas Administrativas",null,null,{"$f":"SUM(E520:E522)","v":0},{"$f":"SUM(F520:F522)","v":0}]
[]
[null,"EJECUTIVOS"]
[null,"Nombre del demandante","Identificación ","No. de Proceso (23 Digitos)","Cantidad","Valor"]
[null,null,null,null,null,0]
[null,null,null,null,null,0]
[null,null,null,null,null,0]
[null,"Total No procesos y valor  Sucesión Ejecutivos",null,null,{"$f":"SUM(E527:E529)","v":0},{"$f":"SUM(F527:F529)","v":0}]
[null,"TOTAL PROVISIÓN PARA CONTINGENCIAS - LITIGIOS - ADMINISTRATIVOS",null,null,{"$f":"+E495+E502+E509+E516+E523+E530","v":0},{"$f":"+F495+F502+F509+F516+F523+F530","v":0}]
[null,"TOTAL CUENTA 271005 LITIGIOS",null,null,{"$f":"E531","v":0},{"$f":"F531","v":0}]
[]
[null,"246002 SENTENCIAS"]
[null,"13. SENTENCIAS ADMINISTRATIVAS"]
[null,"CONTRACTUAL DECLARATORIA DE INCUMPLIMIENTO"]
[null,"Nombre del demandante","Identificación ","No. de Proceso (23 Digitos)","Cantidad","Valor"]
[null,null,null,null,null,0]
[null,null,null,null,null,0]
[null,null,null,null,null,0]
[null,"Total No procesos y valor  Contractual decalratoria de incumplimiento",null,null,{"$f":"SUM(E537:E540)","v":0},{"$f":"SUM(F537:F540)","v":0}]
[]
[null,"NULIDAD DE ACTOS ADMINISTRTIVOS (NO TIENE VALOR)"]
[null,"Nombre del demandante","Identificación ","No. de Proceso (23 Digitos)","Cantidad","Valor"]
[null,null,null,null,null,0]
[null,null,null,null,null,0]
[null,null,null,null,null,0]
[null,"Total No procesos y valor Nulidad de actos administrativos sin valor",null,null,{"$f":"SUM(E545:E547)","v":0},{"$f":"SUM(F545:F547)","v":0}]
[]
[null,"NULIDAD DE ACTOS ADMINISTRATIVOS CON VALOR"]
[null,"Nombre del demandante","Identificación ","No. de Proceso (23 Digitos)","Cantidad","Valor"]
[null,null,null,null,null,0]
[null,null,null,null,null,0]
[null,null,null,null,null,0]
[null,"Total No procesos y valor Nulidad de Actos Administrativos con valor",null,null,{"$f":"SUM(E552:E554)","v":0},{"$f":"SUM(F552:F554)","v":0}]
[]
[null,"REPARACIÓN DIRECTA"]
[null,"Nombre del demandante","Identificación ","No. de Proceso (23 Digitos)","Cantidad","Valor"]
[null,null,null,null,null,0]
[null,null,null,null,null,0]
[null,null,null,null,null,0]
[null,"Total No procesos y valor Reparación directa",null,null,{"$f":"SUM(E559:E561)","v":0},{"$f":"SUM(F559:F561)","v":0}]
[]
[null,"OTRAS ACCIONES CONTENCIOSAS ADMINISTRATIVAS"]
[null,"Nombre del demandante","Identificación ","No. de Proceso (23 Digitos)","Cantidad","Valor"]
[null,null,null,null,null,0]
[null,null,null,null,null,0]
[null,null,null,null,null,0]
[null,"Total No procesos y valor Otras Acciones Contenciosas Administrativas",null,null,{"$f":"SUM(E566:E568)","v":0},{"$f":"SUM(F566:F568)","v":0}]
[]
[null,"EJECUTIVOS"]
[null,"Nombre del demandante","Identificación ","No. de Proceso (23 Digitos)","Cantidad","Valor"]
[null,null,null,null,null,0]
[null,null,null,null,null,0]
[null,null,null,null,null,0]
[null,"Total No procesos y valor  Sucesión Ejecutivos",null,null,{"$f":"SUM(E573:E575)","v":0},{"$f":"SUM(F573:F575)","v":0}]
[null,"TOTAL SENTENCIAS ADMINISTRATIVAS",null,null,{"$f":"E541+E548+E555+E562+E569+E576","v":0},{"$f":"F541+F548+F555+F562+F569+F576","v":0}]
[null,"TOTAL CUENTA 246002 SENTENCIAS",null,null,{"$f":"E577","v":0},{"$f":"F577","v":0}]
[]
[null,"271015 MECANISMOS ALTERNATIVOS DE SOLUCIÓN DE CONFLICTOS"]
[null,"14. PROVISION CONTINGENTES MECANISMOS ALTERNATIVOS DE SOLUCIÓN DE CONFLICTOS - ADMINISTRATIVAS"]
[null,"CONTRACTUAL DECLARATORIA DE INCUMPLIMIENTO"]
[null,"Nombre del demandante","Identificación ","No. de Proceso (23 Digitos)","Cantidad","Valor"]
[null,null,null,null,null,0]
[null,null,null,null,null,0]
[null,null,null,null,null,0]
[null,"Total No procesos y valor  Contractual decalratoria de incumplimiento",null,null,{"$f":"SUM(E583:E586)","v":0},{"$f":"SUM(F583:F586)","v":0}]
[]
[null,"NULIDAD DE ACTOS ADMINISTRTIVOS (NO TIENE VALOR)"]
[null,"Nombre del demandante","Identificación ","No. de Proceso (23 Digitos)","Cantidad","Valor"]
[null,null,null,null,null,0]
[null,null,null,null,null,0]
[null,null,null,null,null,0]
[null,"Total No procesos y valor Nulidad de actos administrativos sin valor",null,null,{"$f":"SUM(E591:E593)","v":0},{"$f":"SUM(F591:F593)","v":0}]
[]
[null,"NULIDAD DE ACTOS ADMINISTRATIVOS CON VALOR"]
[null,"Nombre del demandante","Identificación ","No. de Proceso (23 Digitos)","Cantidad","Valor"]
[null,null,null,null,null,0]
[null,null,null,null,null,0]
[null,null,null,null,null,0]
[null,"Total No procesos y valor Nulidad de Actos Administrativos con valor",null,null,{"$f":"SUM(E598:E600)","v":0},{"$f":"SUM(F598:F600)","v":0}]
[]
[null,"REPARACIÓN DIRECTA"]
[null,"Nombre del demandante","Identificación ","No. de Proceso (23 Digitos)","Cantidad","Valor"]
[null,null,null,null,null,0]
[null,null,null,null,null,0]
[null,null,null,null,null,0]
[null,"Total No procesos y valor Reparación directa",null,null,{"$f":"SUM(E605:E607)","v":0},{"$f":"SUM(F605:F607)","v":0}]
[]
[null,"OTRAS ACCIONES CONTENCIOSAS ADMINISTRATIVAS"]
[null,"Nombre del demandante","Identificación ","No. de Proceso (23 Digitos)","Cantidad","Valor"]
[null,null,null,null,null,0]
[null,null,null,null,null,0]
[null,null,null,null,null,0]
[null,"Total No procesos y valor Otras Acciones Contenciosas Administrativas",null,null,{"$f":"SUM(E612:E614)","v":0},{"$f":"SUM(F612:F614)","v":0}]
[]
[null,"EJECUTIVOS"]
[null,"Nombre del demandante","Identificación ","No. de Proceso (23 Digitos)","Cantidad","Valor"]
[null,null,null,null,null,0]
[null,null,null,null,null,0]
[null,null,null,null,null,0]
[null,"Total No procesos y valor  Sucesión Ejecutivos",null,null,{"$f":"SUM(E619:E621)","v":0},{"$f":"SUM(F619:F621)","v":0}]
[null,"TOTAL MECANISMOS ALTERNATIVOS DE SOLUCIÓN DE CONFLICTOS - ADMINISTRATIVAS",null,null,{"$f":"E587+E594+E601+E608+E615+E622","v":0},{"$f":"F587+F594+F601+F608+F615+F622","v":0}]
[null,"TOTAL CUENTA 271015 MECANISMOS ALTERNATIVOS DE SOLUCIÓN DE CONFLICTOS",null,null,{"$f":"E623","v":0},{"$f":"F623","v":0}]
[]
[null,"246003 LAUDOS ARBITRALES Y CONCILIACIONES EXTRAJUDICIALES"]
[null,"15. CAUSACION PASIVO DE LAUDOS ARBITRALES Y CONCILIACIONES EXTRAJUDUCIALES - ADMINISTRATIVAS"]
[null,"CONTRACTUAL DECLARATORIA DE INCUMPLIMIENTO"]
[null,"Nombre del demandante","Identificación ","No. de Proceso (23 Digitos)","Cantidad","Valor"]
[null,null,null,null,null,0]
[null,null,null,null,null,0]
[null,null,null,null,null,0]
[null,"Total No procesos y valor  Contractual decalratoria de incumplimiento",null,null,{"$f":"SUM(E629:E632)","v":0},{"$f":"SUM(F629:F632)","v":0}]
[]
[null,"NULIDAD DE ACTOS ADMINISTRTIVOS (NO TIENE VALOR)"]
[null,"Nombre del demandante","Identificación ","No. de Proceso (23 Digitos)","Cantidad","Valor"]
[null,null,null,null,null,0]
[null,null,null,null,null,0]
[null,null,null,null,null,0]
[null,"Total No procesos y valor Nulidad de actos administrativos sin valor",null,null,{"$f":"SUM(E637:E639)","v":0},{"$f":"SUM(F637:F639)","v":0}]
[]
[null,"NULIDAD DE ACTOS ADMINISTRATIVOS CON VALOR"]
[null,"Nombre del demandante","Identificación ","No. de Proceso (23 Digitos)","Cantidad","Valor"]
[null,null,null,null,null,0]
[null,null,null,null,null,0]
[null,null,null,null,null,0]
[null,"Total No procesos y valor Nulidad de Actos Administrativos con valor",null,null,{"$f":"SUM(E644:E646)","v":0},{"$f":"SUM(F644:F646)","v":0}]
[]
[null,"REPARACIÓN DIRECTA"]
[null,"Nombre del demandante","Identificación ","No. de Proceso (23 Digitos)","Cantidad","Valor"]
[null,null,null,null,null,0]
[null,null,null,null,null,0]
[null,null,null,null,null,0]
[null,"Total No procesos y valor Reparación directa",null,null,{"$f":"SUM(E651:E653)","v":0},{"$f":"SUM(F651:F653)","v":0}]
[]
[null,"OTRAS ACCIONES CONTENCIOSAS ADMINISTRATIVAS"]
[null,"Nombre del demandante","Identificación ","No. de Proceso (23 Digitos)","Cantidad","Valor"]
[null,null,null,null,null,0]
[null,null,null,null,null,0]
[null,null,null,null,null,0]
[null,"Total No procesos y valor Otras Acciones Contenciosas Administrativas",null,null,{"$f":"SUM(E658:E660)","v":0},{"$f":"SUM(F658:F660)","v":0}]
[]
[null,"EJECUTIVOS"]
[null,"Nombre del demandante","Identificación ","No. de Proceso (23 Digitos)","Cantidad","Valor"]
[null,null,null,null,null,0]
[null,null,null,null,null,0]
[null,null,null,null,null,0]
[null,"Total No procesos y valor  Sucesión Ejecutivos",null,null,{"$f":"SUM(E665:E667)","v":0},{"$f":"SUM(F665:F667)","v":0}]
[null,"TOTAL LAUDOS ARBITRALES Y CONCILIACIONES EXTRAJUDICIALES - ADMINISTRATIVAS",null,null,{"$f":"E633+E640+E647+E654+E661+E668","v":0},{"$f":"F633+F640+F647+F654+F661+F668","v":0}]
[null,"246003 LAUDOS ARBITRALES Y CONCILIACIONES EXTRAJUDICIALES"]
[null,"912090  OTRAS OBLIGACIONES POR LITIGIOS Y DEMANDAS."]
[null,"16. OTRAS OBLIGACIONES POR LITIGIOS O DEMANDAS"]
[null,"Procesos de Arbitramento"]
[null,"Nombre del demandante","Identificación ","No. de Proceso (23 Digitos)","Cantidad","Valor"]
[null,null,null,null,null,0]
[null,null,null,null,null,0]
[null,null,null,null,null,0]
[null,"Total No procesos y valor  Contractual decalratoria de incumplimiento",null,null,{"$f":"SUM(E674:E677)","v":0},{"$f":"SUM(F675:F677)","v":0}]
[null,"Otros "]
[null,"Nombre del demandante","Identificación ","No. de Proceso (23 Digitos)","Cantidad","Valor"]
[null,null,null,null,null,0]
[null,null,null,null,null,0]
[null,null,null,null,null,0]
[null,"Total No procesos y valor  Contractual decalratoria de incumplimiento",null,null,{"$f":"SUM(E680:E683)","v":0},{"$f":"SUM(F681:F683)","v":0}]
[]
[null,"TOTAL CUENTA 912090  OTRAS OBLIGACIONES POR LITIGIOS O DEMANDAS",null,null,{"$f":"E678+E684","v":0},{"$f":"F678+F684","v":0}]
[null,"271090  OTRAS PROVISIONES PARA CONTINGENCIAS"]
[null,"17. OTRAS PROVISIONES PARA CONTINGENCIAS"]
[null,"Procesos de Arbitramento"]
[null,"Nombre del demandante","Identificación ","No. de Proceso (23 Digitos)","Cantidad","Valor"]
[null,null,null,null,null,0]
[null,null,null,null,null,0]
[null,null,null,null,null,0]
[null,"Total No procesos y valor  Contractual decalratoria de incumplimiento",null,null,{"$f":"SUM(E690:E693)","v":0},{"$f":"SUM(F691:F693)","v":0}]
[null,"Otros "]
[null,"Nombre del demandante","Identificación ","No. de Proceso (23 Digitos)","Cantidad","Valor"]
[null,null,null,null,null,0]
[null,null,null,null,null,0]
[null,null,null,null,null,0]
[null,"Total No procesos y valor  Contractual decalratoria de incumplimiento",null,null,{"$f":"SUM(E696:E699)","v":0},{"$f":"SUM(F697:F699)","v":0}]
[]
[null,"TOTAL CUENTA 271090  OTRAS PROVISIONES PARA CONTINGENCIAS",null,null,{"$f":"E694+E700","v":0},{"$f":"F694+F700","v":0}]
[null,"246090 OTROS CREDITOS JUDICIALES"]
[null,"18. OTROS CREDITOS JUDICIALES"]
[null,"Procesos de Arbitramento"]
[null,"Nombre del demandante","Identificación ","No. de Proceso (23 Digitos)","Cantidad","Valor"]
[null,null,null,null,null,0]
[null,null,null,null,null,0]
[null,null,null,null,null,0]
[null,"Total No procesos y valor  Contractual decalratoria de incumplimiento",null,null,{"$f":"SUM(E706:E709)","v":0},{"$f":"SUM(F706:F709)","v":0}]
[null,"Otros "]
[null,"Nombre del demandante","Identificación ","No. de Proceso (23 Digitos)","Cantidad","Valor"]
[null,null,null,null,null,0]
[null,null,null,null,null,0]
[null,null,null,null,null,0]
[null,"Total No procesos y valor  Contractual decalratoria de incumplimiento",null,null,{"$f":"SUM(E712:E715)","v":0},{"$f":"SUM(F712:F715)","v":0}]
[]
[null,"TOTAL CUENTA 271090  OTROS CREDITOS JUDICIALES",null,null,{"$f":"E710+E716","v":0},{"$f":"F710+F716","v":0}]
[null,"TOTAL PROCESOS ADMINISTRATIVOS",null,null,{"$f":"+E486+E532+E578+E624+E686+E669+E702+E718","v":0},{"$f":"+F486+F532+F578+F624+F686+F669+F702+F718","v":0}]
[]
[null,"RESUMEN CUENTAS"]
[null,"CUENTA","DESCRIPCION CUENTA",null,"CANTIDAD","VALOR"]
[null,912001,"CIVILES",null,{"$f":"E72","v":0},{"$f":"F72","v":0}]
[null,271005,"LITIGIOS",null,{"$f":"E132","v":0},{"$f":"F132","v":0}]
[null,246002,"SENTENCIAS",null,{"$f":"E192","v":0},{"$f":"F192","v":0}]
[null,271015,"SENTENCIAS",null,{"$f":"E252","v":0},{"$f":"F252","v":0}]
[null,246003,"MECANISMOS ALTERNATIVOS DE SOLUCIÓN DE CONFLICTOS - ADMINISTRATIVAS",null,{"$f":"E311","v":0},{"$f":"F311","v":0}]
[null,912002,"LABORALES",null,{"$f":"E337","v":0},{"$f":"F337","v":0}]
[null,271005,"LITIGIOS",null,{"$f":"E362","v":0},{"$f":"F362","v":0}]
[null,246002,"SENTENCIAS",null,{"$f":"E578","v":0},{"$f":"F578","v":0}]
[null,246003,"LAUDOS ARBRITALES Y CONCILIACIONES EXTRADUCIALES",null,{"$f":"E437","v":0},{"$f":"F437","v":0}]
[null,912004,"ADMINISTRATIVAS",null,{"$f":"E486","v":0},{"$f":"F486","v":0}]
[null,271005,"LITIGIOS",null,{"$f":"E532","v":0},{"$f":"F532","v":0}]
[null,246002,"SENTENCIAS",null,{"$f":"E578","v":0},{"$f":"F578","v":0}]
[null,271015,"MECANISMOS ALTERNATIVOS DE SOLUCIÓN DE CONFLICTOS",null,{"$f":"E624","v":0},{"$f":"F624","v":0}]
[null,246003,"LAUDOS ARBITRALES Y CONCILIACIONES EXTRAJUDUCIALES",null,{"$f":"E669","v":0},{"$f":"F669","v":0}]
[null,"912090","OTRAS OBLIGACIONES POR LITIGIOS O DEMANDAS",null,{"$f":"E686","v":0},{"$f":"F686","v":0}]
[null,"271090","OTRAS PROVISIONES PARA CONTINGENCIAS",null,{"$f":"E710","v":0},{"$f":"F702","v":0}]
[null,"246090","OTROS CREDITOS JUDICIALES",null,{"$f":"E718","v":0},{"$f":"F718","v":0}]
[null,"TOTAL",null,null,{"$f":"SUM(E723:E737)","v":0},{"$f":"SUM(F723:F737)","v":0}]
[]
[]
[null,"RESUMEN INFORME FINANCIERO DE PROCESOS JURDICOS DONDE EL ICBE ES DEMANDADO"]
[null,"CONCEPTO",null,null,"CANTIDAD","VALOR"]
[null,"PROCESOS CIVILES",null,null,{"$f":"E312","v":0},{"$f":"F312","v":0}]
[null,"PROCESOS LABORALES",null,null,{"$f":"+E438","v":0},{"$f":"+F438","v":0}]
[null,"PROCESOS ADMINISTRATIVOS",null,null,{"$f":"+E719","v":0},{"$f":"+F719","v":0}]
[null,"TOTAL",null,null,{"$f":"SUM(E745:E747)","v":0},{"$f":"SUM(F745:F747)","v":0}]
[]
[]
[]
[null,"              Coordinador Grupo Jurídico"]
[]
[]
[]
[]
[null,"Elaboro:"]
[null,"Reviso:"]
[null,"Aprobo:"]
[]
[]
[]
[null,"Antes de imprimir este documento… piense en el medio ambiente!  "]
[null,"     Cualquier copia impresa de este documento se considera como COPIA NO CONTROLADA."]

{"sheet":"DETALLE ","index":3,"n_rows":689,"n_cols":13,"rows_kept":689,"cut":false,"hidden":false,"merged":[[8,3,8,4],[500,1,500,3],[500,4,500,5],[0,1,0,7],[1,1,1,7],[2,1,2,7],[3,1,4,7],[6,3,6,4],[7,3,7,4]]}
[null,"Instituto Colombiano de Bienestar Familiar"]
[null,"LITIGIOS Y MECANISMOS ALTERNATIVOS DE SOLUCIÓN DE CONFLICTOS"]
[null,"INFORME DE OFICINA JURÍDICA"]
[null," DETALLE PROCESOS DONDE AL ICBF ES DEMANDANTE Y DEMANDADO"]
[]
[]
[null,"REGIONAL:  "]
[null,"MES DE CORTE:"]
[null,"FECHA DE ELABORACION:"]
[]
["Ord.","REGIONAL","PCI","PROCESO","CUENTA","Naturaleza del Proceso","DE:","CARACTERISTICA","Nombre del demandado","Identificación ","No. de Proceso (23 Digitos)","Q.","Valor"]
[1,null,{"$f":"VLOOKUP(B12,$K$503:$L$536,2,FALSE)","v":{"$error":"#N/A"}},null,null,{"$f":"VLOOKUP(E12,$E$503:$F$524,2,FALSE)","v":{"$error":"#N/A"}}]
[2,null,{"$error":"#N/A"},null,null,{"$error":"#N/A"}]
[3,null,{"$error":"#N/A"},null,null,{"$error":"#N/A"}]
[4,null,{"$error":"#N/A"},null,null,{"$error":"#N/A"}]
[5,null,{"$error":"#N/A"},null,null,{"$error":"#N/A"}]
[6,null,{"$error":"#N/A"},null,null,{"$error":"#N/A"}]
[7,null,{"$error":"#N/A"},null,null,{"$error":"#N/A"}]
[8,null,{"$error":"#N/A"},null,null,{"$error":"#N/A"}]
[9,null,{"$error":"#N/A"},null,null,{"$error":"#N/A"}]
[10,null,{"$error":"#N/A"},null,null,{"$error":"#N/A"}]
[11,null,{"$error":"#N/A"},null,null,{"$error":"#N/A"}]
[12,null,{"$error":"#N/A"},null,null,{"$error":"#N/A"}]
[13,null,{"$error":"#N/A"},null,null,{"$error":"#N/A"}]
[14,null,{"$error":"#N/A"},null,null,{"$error":"#N/A"}]
[15,null,{"$error":"#N/A"},null,null,{"$error":"#N/A"}]
[16,null,{"$error":"#N/A"},null,null,{"$error":"#N/A"}]
[17,null,{"$error":"#N/A"},null,null,{"$error":"#N/A"}]
[18,null,{"$error":"#N/A"},null,null,{"$error":"#N/A"}]
[19,null,{"$error":"#N/A"},null,null,{"$error":"#N/A"}]
[20,null,{"$error":"#N/A"},null,null,{"$error":"#N/A"}]
[21,null,{"$error":"#N/A"},null,null,{"$error":"#N/A"}]
[22,null,{"$error":"#N/A"},null,null,{"$error":"#N/A"}]
[23,null,{"$error":"#N/A"},null,null,{"$error":"#N/A"}]
[24,null,{"$error":"#N/A"},null,null,{"$error":"#N/A"}]
[25,null,{"$error":"#N/A"},null,null,{"$error":"#N/A"}]
[26,null,{"$error":"#N/A"},null,null,{"$error":"#N/A"}]
[27,null,{"$error":"#N/A"},null,null,{"$error":"#N/A"}]
[28,null,{"$error":"#N/A"},null,null,{"$error":"#N/A"}]
[29,null,{"$error":"#N/A"},null,null,{"$error":"#N/A"}]
[30,null,{"$error":"#N/A"},null,null,{"$error":"#N/A"}]
[31,null,{"$error":"#N/A"},null,null,{"$error":"#N/A"}]
[32,null,{"$error":"#N/A"},null,null,{"$error":"#N/A"}]
[33,null,{"$error":"#N/A"},null,null,{"$error":"#N/A"}]
[34,null,{"$error":"#N/A"},null,null,{"$error":"#N/A"}]
[35,null,{"$error":"#N/A"},null,null,{"$error":"#N/A"}]
[36,null,{"$error":"#N/A"},null,null,{"$error":"#N/A"}]
[37,null,{"$error":"#N/A"},null,null,{"$error":"#N/A"}]
[38,null,{"$error":"#N/A"},null,null,{"$error":"#N/A"}]
[39,null,{"$error":"#N/A"},null,null,{"$error":"#N/A"}]
[40,null,{"$error":"#N/A"},null,null,{"$error":"#N/A"}]
[41,null,{"$error":"#N/A"},null,null,{"$error":"#N/A"}]
[42,null,{"$error":"#N/A"},null,null,{"$error":"#N/A"}]
[43,null,{"$error":"#N/A"},null,null,{"$error":"#N/A"}]
[44,null,{"$error":"#N/A"},null,null,{"$error":"#N/A"}]
[45,null,{"$error":"#N/A"},null,null,{"$error":"#N/A"}]
[46,null,{"$error":"#N/A"},null,null,{"$error":"#N/A"}]
[47,null,{"$error":"#N/A"},null,null,{"$error":"#N/A"}]
[48,null,{"$error":"#N/A"},null,null,{"$error":"#N/A"}]
[49,null,{"$error":"#N/A"},null,null,{"$error":"#N/A"}]
[50,null,{"$error":"#N/A"},null,null,{"$error":"#N/A"}]
[51,null,{"$error":"#N/A"},null,null,{"$error":"#N/A"}]
[52,null,{"$error":"#N/A"},null,null,{"$error":"#N/A"}]
[53,null,{"$error":"#N/A"},null,null,{"$error":"#N/A"}]
[54,null,{"$error":"#N/A"},null,null,{"$error":"#N/A"}]
[55,null,{"$error":"#N/A"},null,null,{"$error":"#N/A"}]
[56,null,{"$error":"#N/A"},null,null,{"$error":"#N/A"}]
[57,null,{"$error":"#N/A"},null,null,{"$error":"#N/A"}]
[58,null,{"$error":"#N/A"},null,null,{"$error":"#N/A"}]
[59,null,{"$error":"#N/A"},null,null,{"$error":"#N/A"}]
[60,null,{"$error":"#N/A"},null,null,{"$error":"#N/A"}]
[61,null,{"$error":"#N/A"},null,null,{"$error":"#N/A"}]
[62,null,{"$error":"#N/A"},null,null,{"$error":"#N/A"}]
[63,null,{"$error":"#N/A"},null,null,{"$error":"#N/A"}]
[64,null,{"$error":"#N/A"},null,null,{"$error":"#N/A"}]
[65,null,{"$f":"VLOOKUP(B76,$K$503:$L$536,2,FALSE)","v":{"$error":"#N/A"}},null,null,{"$f":"VLOOKUP(E76,$E$503:$F$524,2,FALSE)","v":{"$error":"#N/A"}}]
[66,null,{"$error":"#N/A"},null,null,{"$error":"#N/A"}]
[67,null,{"$error":"#N/A"},null,null,{"$error":"#N/A"}]
[68,null,{"$error":"#N/A"},null,null,{"$error":"#N/A"}]
[69,null,{"$error":"#N/A"},null,null,{"$error":"#N/A"}]
[70,null,{"$error":"#N/A"},null,null,{"$error":"#N/A"}]
[71,null,{"$error":"#N/A"},null,null,{"$error":"#N/A"}]
[72,null,{"$error":"#N/A"},null,null,{"$error":"#N/A"}]
[73,null,{"$error":"#N/A"},null,null,{"$error":"#N/A"}]
[74,null,{"$error":"#N/A"},null,null,{"$error":"#N/A"}]
[75,null,{"$error":"#N/A"},null,null,{"$error":"#N/A"}]
[76,null,{"$error":"#N/A"},null,null,{"$error":"#N/A"}]
[77,null,{"$error":"#N/A"},null,null,{"$error":"#N/A"}]
[78,null,{"$error":"#N/A"},null,null,{"$error":"#N/A"}]
[79,null,{"$error":"#N/A"},null,null,{"$error":"#N/A"}]
[80,null,{"$error":"#N/A"},null,null,{"$error":"#N/A"}]
[81,null,{"$error":"#N/A"},null,null,{"$error":"#N/A"}]
[82,null,{"$error":"#N/A"},null,null,{"$error":"#N/A"}]
[83,null,{"$error":"#N/A"},null,null,{"$error":"#N/A"}]
[84,null,{"$error":"#N/A"},null,null,{"$error":"#N/A"}]
[85,null,{"$error":"#N/A"},null,null,{"$error":"#N/A"}]
[86,null,{"$error":"#N/A"},null,null,{"$error":"#N/A"}]
[87,null,{"$error":"#N/A"},null,null,{"$error":"#N/A"}]
[88,null,{"$error":"#N/A"},null,null,{"$error":"#N/A"}]
[89,null,{"$error":"#N/A"},null,null,{"$error":"#N/A"}]
[90,null,{"$error":"#N/A"},null,null,{"$error":"#N/A"}]
[91,null,{"$error":"#N/A"},null,null,{"$error":"#N/A"}]
[92,null,{"$error":"#N/A"},null,null,{"$error":"#N/A"}]
[93,null,{"$error":"#N/A"},null,null,{"$error":"#N/A"}]
[94,null,{"$error":"#N/A"},null,null,{"$error":"#N/A"}]
[95,null,{"$error":"#N/A"},null,null,{"$error":"#N/A"}]
[96,null,{"$error":"#N/A"},null,null,{"$error":"#N/A"}]
[97,null,{"$error":"#N/A"},null,null,{"$error":"#N/A"}]
[98,null,{"$error":"#N/A"},null,null,{"$error":"#N/A"}]
[99,null,{"$error":"#N/A"},null,null,{"$error":"#N/A"}]
[100,null,{"$error":"#N/A"},null,null,{"$error":"#N/A"}]
[101,null,{"$error":"#N/A"},null,null,{"$error":"#N/A"}]
[102,null,{"$error":"#N/A"},null,null,{"$error":"#N/A"}]
[103,null,{"$error":"#N/A"},null,null,{"$error":"#N/A"}]
[104,null,{"$error":"#N/A"},null,null,{"$error":"#N/A"}]
[105,null,{"$error":"#N/A"},null,null,{"$error":"#N/A"}]
[106,null,{"$error":"#N/A"},null,null,{"$error":"#N/A"}]
[107,null,{"$error":"#N/A"},null,null,{"$error":"#N/A"}]
[108,null,{"$error":"#N/A"},null,null,{"$error":"#N/A"}]
[109,null,{"$error":"#N/A"},null,null,{"$error":"#N/A"}]
[110,null,{"$error":"#N/A"},null,null,{"$error":"#N/A"}]
[111,null,{"$error":"#N/A"},null,null,{"$error":"#N/A"}]
[112,null,{"$error":"#N/A"},null,null,{"$error":"#N/A"}]
[113,null,{"$error":"#N/A"},null,null,{"$error":"#N/A"}]
[114,null,{"$error":"#N/A"},null,null,{"$error":"#N/A"}]
[115,null,{"$error":"#N/A"},null,null,{"$error":"#N/A"}]
[116,null,{"$error":"#N/A"},null,null,{"$error":"#N/A"}]
[117,null,{"$error":"#N/A"},null,null,{"$error":"#N/A"}]
[118,null,{"$error":"#N/A"},null,null,{"$error":"#N/A"}]
[119,null,{"$error":"#N/A"},null,null,{"$error":"#N/A"}]
[120,null,{"$error":"#N/A"},null,null,{"$error":"#N/A"}]
[121,null,{"$error":"#N/A"},null,null,{"$error":"#N/A"}]
[122,null,{"$error":"#N/A"},null,null,{"$error":"#N/A"}]
[123,null,{"$error":"#N/A"},null,null,{"$error":"#N/A"}]
[124,null,{"$error":"#N/A"},null,null,{"$error":"#N/A"}]
[125,null,{"$error":"#N/A"},null,null,{"$error":"#N/A"}]
[126,null,{"$error":"#N/A"},null,null,{"$error":"#N/A"}]
[127,null,{"$error":"#N/A"},null,null,{"$error":"#N/A"}]
[128,null,{"$error":"#N/A"},null,null,{"$error":"#N/A"}]
[129,null,{"$f":"VLOOKUP(B140,$K$503:$L$536,2,FALSE)","v":{"$error":"#N/A"}},null,null,{"$f":"VLOOKUP(E140,$E$503:$F$524,2,FALSE)","v":{"$error":"#N/A"}}]
[130,null,{"$error":"#N/A"},null,null,{"$error":"#N/A"}]
[131,null,{"$error":"#N/A"},null,null,{"$error":"#N/A"}]
[132,null,{"$error":"#N/A"},null,null,{"$error":"#N/A"}]
[133,null,{"$error":"#N/A"},null,null,{"$error":"#N/A"}]
[134,null,{"$error":"#N/A"},null,null,{"$error":"#N/A"}]
[135,null,{"$error":"#N/A"},null,null,{"$error":"#N/A"}]
[136,null,{"$error":"#N/A"},null,null,{"$error":"#N/A"}]
[137,null,{"$error":"#N/A"},null,null,{"$error":"#N/A"}]
[138,null,{"$error":"#N/A"},null,null,{"$error":"#N/A"}]
[139,null,{"$error":"#N/A"},null,null,{"$error":"#N/A"}]
[140,null,{"$error":"#N/A"},null,null,{"$error":"#N/A"}]
[141,null,{"$error":"#N/A"},null,null,{"$error":"#N/A"}]
[142,null,{"$error":"#N/A"},null,null,{"$error":"#N/A"}]
[143,null,{"$error":"#N/A"},null,null,{"$error":"#N/A"}]
[144,null,{"$error":"#N/A"},null,null,{"$error":"#N/A"}]
[145,null,{"$error":"#N/A"},null,null,{"$error":"#N/A"}]
[146,null,{"$error":"#N/A"},null,null,{"$error":"#N/A"}]
[147,null,{"$error":"#N/A"},null,null,{"$error":"#N/A"}]
[148,null,{"$error":"#N/A"},null,null,{"$error":"#N/A"}]
[149,null,{"$error":"#N/A"},null,null,{"$error":"#N/A"}]
[150,null,{"$error":"#N/A"},null,null,{"$error":"#N/A"}]
[151,null,{"$error":"#N/A"},null,null,{"$error":"#N/A"}]
[152,null,{"$error":"#N/A"},null,null,{"$error":"#N/A"}]
[153,null,{"$error":"#N/A"},null,null,{"$error":"#N/A"}]
[154,null,{"$error":"#N/A"},null,null,{"$error":"#N/A"}]
[155,null,{"$error":"#N/A"},null,null,{"$error":"#N/A"}]
[156,null,{"$error":"#N/A"},null,null,{"$error":"#N/A"}]
[157,null,{"$error":"#N/A"},null,null,{"$error":"#N/A"}]
[158,null,{"$error":"#N/A"},null,null,{"$error":"#N/A"}]
[159,null,{"$error":"#N/A"},null,null,{"$error":"#N/A"}]
[160,null,{"$error":"#N/A"},null,null,{"$error":"#N/A"}]
[161,null,{"$error":"#N/A"},null,null,{"$error":"#N/A"}]
[162,null,{"$error":"#N/A"},null,null,{"$error":"#N/A"}]
[163,null,{"$error":"#N/A"},null,null,{"$error":"#N/A"}]
[164,null,{"$error":"#N/A"},null,null,{"$error":"#N/A"}]
[165,null,{"$error":"#N/A"},null,null,{"$error":"#N/A"}]
[166,null,{"$error":"#N/A"},null,null,{"$error":"#N/A"}]
[167,null,{"$error":"#N/A"},null,null,{"$error":"#N/A"}]
[168,null,{"$error":"#N/A"},null,null,{"$error":"#N/A"}]
[169,null,{"$error":"#N/A"},null,null,{"$error":"#N/A"}]
[170,null,{"$error":"#N/A"},null,null,{"$error":"#N/A"}]
[171,null,{"$error":"#N/A"},null,null,{"$error":"#N/A"}]
[172,null,{"$error":"#N/A"},null,null,{"$error":"#N/A"}]
[173,null,{"$error":"#N/A"},null,null,{"$error":"#N/A"}]
[174,null,{"$error":"#N/A"},null,null,{"$error":"#N/A"}]
[175,null,{"$error":"#N/A"},null,null,{"$error":"#N/A"}]
[176,null,{"$error":"#N/A"},null,null,{"$error":"#N/A"}]
[177,null,{"$error":"#N/A"},null,null,{"$error":"#N/A"}]
[178,null,{"$error":"#N/A"},null,null,{"$error":"#N/A"}]
[179,null,{"$error":"#N/A"},null,null,{"$error":"#N/A"}]
[180,null,{"$error":"#N/A"},null,null,{"$error":"#N/A"}]
[181,null,{"$error":"#N/A"},null,null,{"$error":"#N/A"}]
[182,null,{"$error":"#N/A"},null,null,{"$error":"#N/A"}]
[183,null,{"$error":"#N/A"},null,null,{"$error":"#N/A"}]
[184,null,{"$error":"#N/A"},null,null,{"$error":"#N/A"}]
[185,null,{"$error":"#N/A"},null,null,{"$error":"#N/A"}]
[186,null,{"$error":"#N/A"},null,null,{"$error":"#N/A"}]
[187,null,{"$error":"#N/A"},null,null,{"$error":"#N/A"}]
[188,null,{"$error":"#N/A"},null,null,{"$error":"#N/A"}]
[189,null,{"$error":"#N/A"},null,null,{"$error":"#N/A"}]
[190,null,{"$error":"#N/A"},null,null,{"$error":"#N/A"}]
[191,null,{"$error":"#N/A"},null,null,{"$error":"#N/A"}]
[192,null,{"$error":"#N/A"},null,null,{"$error":"#N/A"}]
[193,null,{"$f":"VLOOKUP(B204,$K$503:$L$536,2,FALSE)","v":{"$error":"#N/A"}},null,null,{"$f":"VLOOKUP(E204,$E$503:$F$524,2,FALSE)","v":{"$error":"#N/A"}}]
[194,null,{"$error":"#N/A"},null,null,{"$error":"#N/A"}]
[195,null,{"$error":"#N/A"},null,null,{"$error":"#N/A"}]
[196,null,{"$error":"#N/A"},null,null,{"$error":"#N/A"}]
[197,null,{"$error":"#N/A"},null,null,{"$error":"#N/A"}]
[198,null,{"$error":"#N/A"},null,null,{"$error":"#N/A"}]
[199,null,{"$error":"#N/A"},null,null,{"$error":"#N/A"}]
[200,null,{"$error":"#N/A"},null,null,{"$error":"#N/A"}]
[201,null,{"$error":"#N/A"},null,null,{"$error":"#N/A"}]
[202,null,{"$error":"#N/A"},null,null,{"$error":"#N/A"}]
[203,null,{"$error":"#N/A"},null,null,{"$error":"#N/A"}]
[204,null,{"$error":"#N/A"},null,null,{"$error":"#N/A"}]
[205,null,{"$error":"#N/A"},null,null,{"$error":"#N/A"}]
[206,null,{"$error":"#N/A"},null,null,{"$error":"#N/A"}]
[207,null,{"$error":"#N/A"},null,null,{"$error":"#N/A"}]
[208,null,{"$error":"#N/A"},null,null,{"$error":"#N/A"}]
[209,null,{"$error":"#N/A"},null,null,{"$error":"#N/A"}]
[210,null,{"$error":"#N/A"},null,null,{"$error":"#N/A"}]
[211,null,{"$error":"#N/A"},null,null,{"$error":"#N/A"}]
[212,null,{"$error":"#N/A"},null,null,{"$error":"#N/A"}]
[213,null,{"$error":"#N/A"},null,null,{"$error":"#N/A"}]
[214,null,{"$error":"#N/A"},null,null,{"$error":"#N/A"}]
[215,null,{"$error":"#N/A"},null,null,{"$error":"#N/A"}]
[216,null,{"$error":"#N/A"},null,null,{"$error":"#N/A"}]
[217,null,{"$error":"#N/A"},null,null,{"$error":"#N/A"}]
[218,null,{"$error":"#N/A"},null,null,{"$error":"#N/A"}]
[219,null,{"$error":"#N/A"},null,null,{"$error":"#N/A"}]
[220,null,{"$error":"#N/A"},null,null,{"$error":"#N/A"}]
[221,null,{"$error":"#N/A"},null,null,{"$error":"#N/A"}]
[222,null,{"$error":"#N/A"},null,null,{"$error":"#N/A"}]
[223,null,{"$error":"#N/A"},null,null,{"$error":"#N/A"}]
[224,null,{"$error":"#N/A"},null,null,{"$error":"#N/A"}]
[225,null,{"$error":"#N/A"},null,null,{"$error":"#N/A"}]
[226,null,{"$error":"#N/A"},null,null,{"$error":"#N/A"}]
[227,null,{"$error":"#N/A"},null,null,{"$error":"#N/A"}]
[228,null,{"$error":"#N/A"},null,null,{"$error":"#N/A"}]
[229,null,{"$error":"#N/A"},null,null,{"$error":"#N/A"}]
[230,null,{"$error":"#N/A"},null,null,{"$error":"#N/A"}]
[231,null,{"$error":"#N/A"},null,null,{"$error":"#N/A"}]
[232,null,{"$error":"#N/A"},null,null,{"$error":"#N/A"}]
[233,null,{"$error":"#N/A"},null,null,{"$error":"#N/A"}]
[234,null,{"$error":"#N/A"},null,null,{"$error":"#N/A"}]
[235,null,{"$error":"#N/A"},null,null,{"$error":"#N/A"}]
[236,null,{"$error":"#N/A"},null,null,{"$error":"#N/A"}]
[237,null,{"$error":"#N/A"},null,null,{"$error":"#N/A"}]
[238,null,{"$error":"#N/A"},null,null,{"$error":"#N/A"}]
[239,null,{"$error":"#N/A"},null,null,{"$error":"#N/A"}]
[240,null,{"$error":"#N/A"},null,null,{"$error":"#N/A"}]
[241,null,{"$error":"#N/A"},null,null,{"$error":"#N/A"}]
[242,null,{"$error":"#N/A"},null,null,{"$error":"#N/A"}]
[243,null,{"$error":"#N/A"},null,null,{"$error":"#N/A"}]
[244,null,{"$error":"#N/A"},null,null,{"$error":"#N/A"}]
[245,null,{"$error":"#N/A"},null,null,{"$error":"#N/A"}]
[246,null,{"$error":"#N/A"},null,null,{"$error":"#N/A"}]
[247,null,{"$error":"#N/A"},null,null,{"$error":"#N/A"}]
[248,null,{"$error":"#N/A"},null,null,{"$error":"#N/A"}]
[249,null,{"$error":"#N/A"},null,null,{"$error":"#N/A"}]
[250,null,{"$error":"#N/A"},null,null,{"$error":"#N/A"}]
[251,null,{"$error":"#N/A"},null,null,{"$error":"#N/A"}]
[252,null,{"$error":"#N/A"},null,null,{"$error":"#N/A"}]
[253,null,{"$error":"#N/A"},null,null,{"$error":"#N/A"}]
[254,null,{"$error":"#N/A"},null,null,{"$error":"#N/A"}]
[255,null,{"$error":"#N/A"},null,null,{"$error":"#N/A"}]
[256,null,{"$error":"#N/A"},null,null,{"$error":"#N/A"}]
[257,null,{"$f":"VLOOKUP(B268,$K$503:$L$536,2,FALSE)","v":{"$error":"#N/A"}},null,null,{"$f":"VLOOKUP(E268,$E$503:$F$524,2,FALSE)","v":{"$error":"#N/A"}}]
[258,null,{"$error":"#N/A"},null,null,{"$error":"#N/A"}]
[259,null,{"$error":"#N/A"},null,null,{"$error":"#N/A"}]
[260,null,{"$error":"#N/A"},null,null,{"$error":"#N/A"}]
[261,null,{"$error":"#N/A"},null,null,{"$error":"#N/A"}]
[262,null,{"$error":"#N/A"},null,null,{"$error":"#N/A"}]
[263,null,{"$error":"#N/A"},null,null,{"$error":"#N/A"}]
[264,null,{"$error":"#N/A"},null,null,{"$error":"#N/A"}]
[265,null,{"$error":"#N/A"},null,null,{"$error":"#N/A"}]
[266,null,{"$error":"#N/A"},null,null,{"$error":"#N/A"}]
[267,null,{"$error":"#N/A"},null,null,{"$error":"#N/A"}]
[268,null,{"$error":"#N/A"},null,null,{"$error":"#N/A"}]
[269,null,{"$error":"#N/A"},null,null,{"$error":"#N/A"}]
[270,null,{"$error":"#N/A"},null,null,{"$error":"#N/A"}]
[271,null,{"$error":"#N/A"},null,null,{"$error":"#N/A"}]
[272,null,{"$error":"#N/A"},null,null,{"$error":"#N/A"}]
[273,null,{"$error":"#N/A"},null,null,{"$error":"#N/A"}]
[274,null,{"$error":"#N/A"},null,null,{"$error":"#N/A"}]
[275,null,{"$error":"#N/A"},null,null,{"$error":"#N/A"}]
[276,null,{"$error":"#N/A"},null,null,{"$error":"#N/A"}]
[277,null,{"$error":"#N/A"},null,null,{"$error":"#N/A"}]
[278,null,{"$error":"#N/A"},null,null,{"$error":"#N/A"}]
[279,null,{"$error":"#N/A"},null,null,{"$error":"#N/A"}]
[280,null,{"$error":"#N/A"},null,null,{"$error":"#N/A"}]
[281,null,{"$error":"#N/A"},null,null,{"$error":"#N/A"}]
[282,null,{"$error":"#N/A"},null,null,{"$error":"#N/A"}]
[283,null,{"$error":"#N/A"},null,null,{"$error":"#N/A"}]
[284,null,{"$error":"#N/A"},null,null,{"$error":"#N/A"}]
[285,null,{"$error":"#N/A"},null,null,{"$error":"#N/A"}]
[286,null,{"$error":"#N/A"},null,null,{"$error":"#N/A"}]
[287,null,{"$error":"#N/A"},null,null,{"$error":"#N/A"}]
[288,null,{"$error":"#N/A"},null,null,{"$error":"#N/A"}]
[289,null,{"$error":"#N/A"},null,null,{"$error":"#N/A"}]
[290,null,{"$error":"#N/A"},null,null,{"$error":"#N/A"}]
[null,null,null,null,null,null,null,null,null,null,null,{"$f":"SUM(L12:L301)","v":0},{"$f":"SUM(M12:M301)","v":0}]
[]
[]
[]
[]
[]
[]
[]
[]
[]
[]
[]
[]
[]
[]
[]
[]
[]
[]
[]
[]
[]
[]
[]
[]
[]
[]
[]
[]
[]
[]
[]
[]
[]
[]
[]
[]
[]
[]
[]
[]
[]
[]
[]
[]
[]
[]
[]
[]
[]
[]
[]
[]
[]
[]
[]
[]
[]
[]
[]
[]
[]
[]
[]
[]
[]
[]
[]
[]
[]
[]
[]
[]
[]
[]
[]
[]
[]
[]
[]
[]
[]
[]
[]
[]
[]
[]
[]
[]
[]
[]
[]
[]
[]
[]
[]
[]
[]
[]
[]
[]
[]
[]
[]
[]
[]
[]
[]
[]
[]
[]
[]
[]
[]
[]
[]
[]
[]
[]
[]
[]
[]
[]
[]
[]
[]
[]
[]
[]
[]
[]
[]
[]
[]
[]
[]
[]
[]
[]
[]
[]
[]
[]
[]
[]
[]
[]
[]
[]
[]
[]
[]
[]
[]
[]
[]
[]
[]
[]
[]
[]
[]
[]
[]
[]
[]
[]
[]
[]
[]
[]
[]
[]
[]
[]
[]
[]
[]
[]
[]
[]
[]
[]
[]
[]
[]
[]
[]
[]
[]
[]
[]
[]
[]
[]
[]
[]
[]
[]
[null,"Tipo de proceso",null,null,"Naturaleza del proceso"]
[null,"Código",null,"Descripción","Codigo","Nombre","CLASE DE PROCESO","ACCION","TIPO AUXILIAR CONTABLE",null,"DESCRIPCIÓN AUXILIAR","CODIGO AUXILIAR"]
[null,"01",null,"ICBF ES DEMANDANTE","812001","CIVILES","1. LITIGIOS Y DEMANDAS CIVILES","EL ICBF ES DEMANDANTE","PCI",null,"SEDE NACIONAL","41-06-00-001"]
[null,"02",null,"ICBF ES DEMANDADO","147502","PRÉSTAMOS CONC","2. BIENES MOSTRENCOS EN DINERO","RESTITUCIÓN DEL BIEN INMUEBLE","",null,"ANTIOQUIA","41-06-00-005"]
[null,null,null,null,"831536","DEUDORES","3. BIENES MOSTRENCOS - BIENES MUEBLES O EN ESPECIE","EXPROPIACIÓN DEL BIEN INMUEBLE","PCI",null,"ATLANTICO","41-06-00-008"]
[null,null,null,null,"812003","PENALES","4. BIENES VACANTES - TERRENOS Y EDIFICACIONES","ENTREGA MATERIAL DEL INMUEBLE","PCI",null,"BOGOTA","41-06-00-011"]
[null,null,null,null,"812004","ADMNISTRATIVAS","5. BIENES MOSTRENCOS - INVERSIONES","DECLARATORIA DE PERTENENCIA DEL INMUEBLE","PCI",null,"BOLIVAR","41-06-00-013"]
[null,null,null,null,"836101","INTERNAS","6. VOCACIONES HEREDITARIAS EN DINERO","REIVINDICATORIA DE DOMINIO","PCI",null,"BOYACÁ ","41-06-00-015"]
[null,null,null,null,"147509","PRESTACIÓN DE SERVICIOS","7. VOCACIONES HEREDITARIAS INVERSIONES","PAGO DE TÍTULOS VALORES","PCI",null,"CALDAS","41-06-00-017"]
[null,null,null,null,"912001","CIVILES","8. VOCACIONES HEREDITARIAS BIENES MUEBLES O EN ESPECIE","EJECUTIVOS","PCI",null,"CAQUETÁ","41-06-00-018"]
[null,null,null,null,"271005","LITIGIOS","9. VOCACIONES HEREDITARIAS  TERRENOS Y EDIFICACIONES","OTROS","PCI",null,"CAUCA","41-06-00-019"]
[null,null,null,null,"246002","SENTENCIAS","10. BIENES VACANTES - INCAUTADOS POR LA FISCALIA","PETICIÓN DE HERENCIA","PCI",null,"CESAR","41-06-00-020"]
[null,null,null,null,"271015","MECANISMOS ALTERNATI","11. BIENES MOSTRENCOS-INCAUTADOS POR FISCALIA","SUCESIÓN O VOCACIÓN HEREDITARIA","PCI",null,"CÓRDOBA","41-06-00-023"]
[null,null,null,null,"246003","LAUDOS ARBITRALES Y ","1. PRÉSTAMOS DE VIVIENDA NUEVOS JURISDICCIÓN ORDINARIA","OTRAS","PCI",null,"CUNDINAMARCA","41-06-00-025"]
[null,null,null,null,"912002","LABORALES","2. PRÉSTAMOS DE VIVIENDA ANTIGUOS JURISDICCIÓN ORDINARIA ","PETICIÓN DE HERENCIA","PCI",null,"CHOCÓ","41-06-00-027"]
[null,null,null,null,"271100","LITIGIOS","3. INTERESES PRÉSTAMOS DE VIVIENDA NUEVOS JURISDICCIÓN ORDINARIA","SUCESIÓN O VOCACIÓN HEREDITARIA","PCI",null,"HUILA","41-06-00-041"]
[null,null,null,null,"246002","SENTENCIAS","4. INTERESES PRÉSTAMOS DE VIVIENDA ANTIGUOS JURISDICCIÓN ORDINARIA","OTRAS","PCI",null,"GUAJIRA","41-06-00-044"]
[null,null,null,null,"271015","MECANISMOS ATERNATIV","5. PRESTAMOS DE CALAMIDAD DOMESTICA NUEVOS JURISDICCIÓN ORDINARIA","PETICIÓN DE HERENCIA","PCI",null,"MAGDALENA","41-06-00-047"]
[null,null,null,null,"246003","LAUDOS ARBRITALES Y ","6. PRESTAMOS DE CALAMIDAD DOMESTICA ANTIGUOS JURISDICCIÓN  ORDINARIA ","SUCESIÓN O VOCACIÓN HEREDITARIA","PCI",null,"META","41-06-00-050"]
[null,null,null,null,"912004","ADMINISTRATIVAS","7. INTERESES PRESTAMOS DE CALAMIDAD DOMESTICA NUEVOS JURISDICCIÓN ORDINARIA","OTRAS","PCI",null,"NARIÑO","41-06-00-052"]
[null,null,null,null,"271005","LITIGIOS","8. INTERESES PRESTAMOS DE CALAMIDAD DOMESTICA ANTIGUOS JURISDICCIÓN ORDINARIA","SUCESIÓN O VOCACIÓN HEREDITARIA","PCI",null,"NORTE DE SANTAN","41-06-00-054"]
[null,null,null,null,"246002","SENTENCIAS","1. JURISDICCIÓN LABORAL ORDINARIA APORTES 3% RESOLUCIONES","OTRAS","PCI",null,"QUINDIO","41-06-00-063"]
[null,null,null,null,"271015","MECANISMOS ALTERNATI","2. JURISDICCIÓN LABORAL ORDINARIA APORTES 3% PAGARÉS","1. PRÉSTAMOS DE VIVIENDA NUEVOS JURISDICCIÓN ORDINARIA","PCI",null,"RISARALDA","41-06-00-066"]
[null,null,null,null,"246003","LAUDOS ARBITRALES Y ","3. JURISDICCIÓN LABORAL ORDINARIA APORTES 3% ACUERDOS O CONVENIOS DE PAGOS","2. PRÉSTAMOS DE VIVIENDA ANTIGUOS JURISDICCIÓN ORDINARIA ","PCI",null,"SANTANDER","41-06-00-068"]
[null,null,null,null,"912090","OTROS LITIGIOS Y MECANISMOS ALTERNATIVOS DE SOLUCIÓN DE CONFLICTOS","4. JURISDICCIÓN LABORAL ORDINARIA APORTES 3% INTERESES","3. INTERESES PRÉSTAMOS DE VIVIENDA NUEVOS JURISDICCIÓN ORDINARIA","PCI",null,"SUCRE","41-06-00-070"]
[null,null,null,null,"271090","OTRAS PROVISIONES PARA CONTINGENCIAS","1. LITIGIOS Y DEMANDAS PENALES","4. INTERESES PRÉSTAMOS DE VIVIENDA ANTIGUOS JURISDICCIÓN ORDINARIA","PCI",null,"TOLIMA","41-06-00-073"]
[null,null,null,null,"246090","OTROS CREDITOS JUDICIALES","1. LITIGIOS Y DEMANDAS ADMINISTRATIVAS","5. PRESTAMOS DE CALAMIDAD DOMESTICA NUEVOS JURISDICCIÓN ORDINARIA","PCI",null,"VALLE","41-06-00-076"]
[null,null,null,null,null,null,"2. ACCIONES DE REPETICIÓN","6. PRESTAMOS DE CALAMIDAD DOMESTICA ANTIGUOS JURISDICCIÓN  ORDINARIA ","PCI",null,"ARAUCA","41-06-00-081"]
[null,null,null,null,null,null,"3. MULTAS A PROVEEDORES Y CONTRATISTAS JURISDICCIÓN ORDINARIA","7. INTERESES PRESTAMOS DE CALAMIDAD DOMESTICA NUEVOS JURISDICCIÓN ORDINARIA","PCI",null,"CASANARE","41-06-00-085"]
[null,null,null,null,null,null,"1. LITIGIOS Y DEMANDAS CIVILES","8. INTERESES PRESTAMOS DE CALAMIDAD DOMESTICA ANTIGUOS JURISDICCIÓN ORDINARIA","PCI",null,"PUTUMAYO","41-06-00-086"]
[null,null,null,null,null,null,"2. PROVISION PARA CONTIGENCIAS - LITIGIOS Y DEMANDAS CIVILES","COBRO DE APORTES PARAFISCALES 3%","PCI",null,"SAN ANDRES","41-06-00-088"]
[null,null,null,null,null,null,"3. CAUSACION PASIVO SENTENCIAS - CIVILES","EJECUTIVOS","PCI",null,"AMAZONAS","41-06-00-091"]
[null,null,null,null,null,null,"4. PROVISION CONTINGENTE MECANISMOS ALTERNATIVOS DE SOLUCIÓN DE CONFLICTOS - CIVILES","OTROS","PCI",null,"GUAINIA","41-06-00-094"]
[null,null,null,null,null,null,"5. CAUSACION PASIVO LAUDOS ARBITRALES Y CONCILIACIONES EXTRAJUDICIALES-CIVILES","EJECUTIVOS","PCI",null,"GUAVIARE","41-06-00-095"]
[null,null,null,null,null,null,"6. LITIGIOS O DEMANDAS LABORALES","OTROS","PCI",null,"VAUPÉS","41-06-00-097"]
[null,null,null,null,null,null,"7. PROVISIÓN PARA CONTINGENCIAS LITIGIOS- LABORALES","EJECUTIVOS","PCI",null,"VICHADA","41-06-00-099"]
[null,null,null,null,null,null,"8. CAUSACION PASIVO SENTENCIAS LABORALES","OTROS","PCI",null,null,{"$f":"MID(K534,25,15)","v":""}]
[null,null,null,null,null,null,"9.  PROVISION CONTINGENTE MECANISMOS ALTERNATIVOS DE SOLUCIÓN DE CONFLICTOS  LABORALES","COBRO DE APORTES PARAFISCALES 3%","PCI",null,null,{"$f":"MID(K535,25,15)","v":""}]
[null,null,null,null,null,null,"10. CAUSACION PASIVO LAUDOS ARBRITALES Y CONCILIACIONES EXTRADUCIALES LABORALES","EJECUTIVOS","PCI",null,null,{"$f":"MID(K536,25,15)","v":""}]
[null,null,null,null,null,null,"11. LITIGIOS O DEMANDAS ADMINISTRATIVAS","OTROS"]
[null,null,null,null,null,null,"12. PROVISIÓN PARA CONTINGENCIAS LITIGIOS- ADMINISTRATIVOS","ESTAFA"]
[null,null,null,null,null,null,"13. SENTENCIAS ADMINISTRATIVAS","HURTO"]
[null,null,null,null,null,null,"14. PROVISION CONTINGENTES MECANISMOS ALTERNATIVOS DE SOLUCIÓN DE CONFLICTOS - ADMINISTRATIVAS","PECULADO"]
[null,null,null,null,null,null,"15. CAUSACION PASIVO DE LAUDOS ARBITRALES Y CONCILIACIONES EXTRAJUDUCIALES - ADMINISTRATIVAS","ABUSO DE CONFIANZA CALIFICADO"]
[null,null,null,null,null,null,"16. OTRAS OBLIGACIONES POR LITIGIOS O DEMANDAS","APROPIACIÓN INDEBIDA"]
[null,null,null,null,null,null,"17. OTRAS PROVISIONES PARA CONTINGENCIAS","FALSEDAD EN DOCUMENTO"]
[null,null,null,null,null,null,"18. OTROS CREDITOS JUDICIALES","MANEJO INDEBIDO DE CONTRATOS"]
[null,null,null,null,null,null,null,"OTROS"]
[null,null,null,null,null,null,null," CONTRACTUAL DECLARATORIA DE INCUMPLIMIENTO"]
[null,null,null,null,null,null,null,"NULIDAD DE ACTOS ADMINISTRATIVOS (NO TIENE VALOR)"]
[null,null,null,null,null,null,null,"NULIDAD DE ACTOS ADMINISTRATIVOS CON VALOR"]
[null,null,null,null,null,null,null,"REPARACIÓN DIRECTA"]
[null,null,null,null,null,null,null,"OTRAS ACCIONES CONTENCIOSAS ADMINISTRATIVAS"]
[null,null,null,null,null,null,null,"EL ICBF ES DEMANDADO"]
[null,null,null,null,null,null,null,"RESTITUCIÓN DE BIEN INMUEBLE"]
[null,null,null,null,null,null,null,"EXPROPIACIÓN DEL BIEN INMUEBLE"]
[null,null,null,null,null,null,null,"ENTREGA MATERIAL DEL INMUEBLE"]
[null,null,null,null,null,null,null,"DECLARATORIA DE PERTENENCIA DEL INMUEBLE"]
[null,null,null,null,null,null,null,"REIVINDICATORIA DE DOMINIO"]
[null,null,null,null,null,null,null,"PAGO DE TÍTULOS VALORES"]
[null,null,null,null,null,null,null,"PETICIÓN DE HERENCIA"]
[null,null,null,null,null,null,null,"OTROS"]
[null,null,null,null,null,null,null,"PROVISION PARA CONTIGENCIAS - LITIGIOS CIVILES"]
[null,null,null,null,null,null,null,"RESTITUCIÓN DEL BIEN INMUEBLE"]
[null,null,null,null,null,null,null,"EXPROPIACIÓN DEL BIEN INMUEBLE"]
[null,null,null,null,null,null,null,"ENTREGA MATERIAL DEL INMUEBLE"]
[null,null,null,null,null,null,null,"DECLARATORIA DE PERTENENCIA DEL INMUEBLE"]
[null,null,null,null,null,null,null,"REIVINDICATORIA DE DOMINIO"]
[null,null,null,null,null,null,null,"PAGO DE TÍTULOS VALORES"]
[null,null,null,null,null,null,null,"PETICIÓN DE HERENCIA"]
[null,null,null,null,null,null,null,"OTROS"]
[null,null,null,null,null,null,null,"RESTITUCIÓN DEL BIEN INMUEBLE"]
[null,null,null,null,null,null,null,"EXPROPIACIÓN DEL BIEN INMUEBLE"]
[null,null,null,null,null,null,null,"ENTREGA MATERIAL DEL INMUEBLE"]
[null,null,null,null,null,null,null,"DECLARATORIA DE PERTENENCIA DEL INMUEBLE"]
[null,null,null,null,null,null,null,"REIVINDICATORIA DE DOMINIO"]
[null,null,null,null,null,null,null,"PAGO DE TÍTULOS VALORES"]
[null,null,null,null,null,null,null,"PETICIÓN DE HERENCIA"]
[null,null,null,null,null,null,null,"OTROS"]
[null,null,null,null,null,null,null,"MECANISMOS ALTERNATIVOS DE SOLUCIÓN DE CONFLICTOS - CIVILES"]
[null,null,null,null,null,null,null,"RESTITUCIÓN DEL BIEN INMUEBLE"]
[null,null,null,null,null,null,null,"EXPROPIACIÓN DEL BIEN INMUEBLE"]
[null,null,null,null,null,null,null,"ENTREGA MATERIAL DEL INMUEBLE"]
[null,null,null,null,null,null,null,"DECLARATORIA DE PERTENENCIA DEL INMUEBLE"]
[null,null,null,null,null,null,null,"REIVINDICATORIA DE DOMINIO"]
[null,null,null,null,null,null,null,"PAGO DE TÍTULOS VALORES"]
[null,null,null,null,null,null,null,"PETICIÓN DE HERENCIA"]
[null,null,null,null,null,null,null,"OTROS"]
[null,null,null,null,null,null,null,"LAUDOS ARBITRALES Y CONCILIACIONES EXTRAJUDICIALES-CIVILES"]
[null,null,null,null,null,null,null,"RESTITUCIÓN DEL BIEN INMUEBLE"]
[null,null,null,null,null,null,null,"EXPROPIACIÓN DEL BIEN INMUEBLE"]
[null,null,null,null,null,null,null,"ENTREGA MATERIAL DEL INMUEBLE"]
[null,null,null,null,null,null,null,"DECLARATORIA DE PERTENENCIA DEL INMUEBLE"]
[null,null,null,null,null,null,null,"REIVINDICATORIA DE DOMINIO"]
[null,null,null,null,null,null,null,"PAGO DE TÍTULOS VALORES"]
[null,null,null,null,null,null,null,"DEMANDADO"]
[null,null,null,null,null,null,null,"RESTITUCIÓN DE BIEN INMUEBLE"]
[null,null,null,null,null,null,null,"EXPROPIACIÓN DEL BIEN INMUEBLE"]
[null,null,null,null,null,null,null,"ENTREGA MATERIAL DEL INMUEBLE"]
[null,null,null,null,null,null,null,"DECLARATORIA DE PERTENENCIA DEL INMUEBLE"]
[null,null,null,null,null,null,null,"REIVINDICATORIA DE DOMINIO"]
[null,null,null,null,null,null,null,"PAGO DE TÍTULOS VALORES"]
[null,null,null,null,null,null,null,"PETICIÓN DE HERENCIA"]
[null,null,null,null,null,null,null,"OTROS"]
[null,null,null,null,null,null,null,"RESTITUCIÓN DEL BIEN INMUEBLE"]
[null,null,null,null,null,null,null,"EXPROPIACIÓN DEL BIEN INMUEBLE"]
[null,null,null,null,null,null,null,"ENTREGA MATERIAL DEL INMUEBLE"]
[null,null,null,null,null,null,null,"DECLARATORIA DE PERTENENCIA DEL INMUEBLE"]
[null,null,null,null,null,null,null,"REIVINDICATORIA DE DOMINIO"]
[null,null,null,null,null,null,null,"PAGO DE TÍTULOS VALORES"]
[null,null,null,null,null,null,null,"PETICIÓN DE HERENCIA"]
[null,null,null,null,null,null,null,"OTROS"]
[null,null,null,null,null,null,null,"RESTITUCIÓN DEL BIEN INMUEBLE"]
[null,null,null,null,null,null,null,"EXPROPIACIÓN DEL BIEN INMUEBLE"]
[null,null,null,null,null,null,null,"ENTREGA MATERIAL DEL INMUEBLE"]
[null,null,null,null,null,null,null,"DECLARATORIA DE PERTENENCIA DEL INMUEBLE"]
[null,null,null,null,null,null,null,"REIVINDICATORIA DE DOMINIO"]
[null,null,null,null,null,null,null,"PAGO DE TÍTULOS VALORES"]
[null,null,null,null,null,null,null,"PETICIÓN DE HERENCIA"]
[null,null,null,null,null,null,null,"OTROS"]
[null,null,null,null,null,null,null,"RESTITUCIÓN DEL BIEN INMUEBLE"]
[null,null,null,null,null,null,null,"EXPROPIACIÓN DEL BIEN INMUEBLE"]
[null,null,null,null,null,null,null,"ENTREGA MATERIAL DEL INMUEBLE"]
[null,null,null,null,null,null,null,"DECLARATORIA DE PERTENENCIA DEL INMUEBLE"]
[null,null,null,null,null,null,null,"REIVINDICATORIA DE DOMINIO"]
[null,null,null,null,null,null,null,"PAGO DE TÍTULOS VALORES"]
[null,null,null,null,null,null,null,"PETICIÓN DE HERENCIA"]
[null,null,null,null,null,null,null,"OTROS"]
[null,null,null,null,null,null,null,"RESTITUCIÓN DEL BIEN INMUEBLE"]
[null,null,null,null,null,null,null,"EXPROPIACIÓN DEL BIEN INMUEBLE"]
[null,null,null,null,null,null,null,"ENTREGA MATERIAL DEL INMUEBLE"]
[null,null,null,null,null,null,null,"DECLARATORIA DE PERTENENCIA DEL INMUEBLE"]
[null,null,null,null,null,null,null,"REIVINDICATORIA DE DOMINIO"]
[null,null,null,null,null,null,null,"PAGO DE TÍTULOS VALORES"]
[null,null,null,null,null,null,null,"PETICIÓN DE HERENCIA"]
[null,null,null,null,null,null,null,"OTROS"]
[]
[null,null,null,null,null,null,null,"DECLARATORIA DE RELACIÓN LABORAL"]
[null,null,null,null,null,null,null,"EJECUTIVOS"]
[null,null,null,null,null,null,null,"OTROS"]
[null,null,null,null,null,null,null,"DECLARATORIA DE RELACIÓN LABORAL"]
[null,null,null,null,null,null,null,"EJECUTIVOS"]
[null,null,null,null,null,null,null,"OTROS"]
[null,null,null,null,null,null,null,"DECLARATORIA DE RELACIÓN LABORAL"]
[null,null,null,null,null,null,null,"EJECUTIVOS"]
[null,null,null,null,null,null,null,"OTROS"]
[null,null,null,null,null,null,null,"DECLARATORIA DE RELACIÓN LABORAL"]
[null,null,null,null,null,null,null,"EJECUTIVOS"]
[]
[null,null,null,null,null,null,null,"OTROS"]
[null,null,null,null,null,null,null,"DECLARATORIA DE RELACIÓN LABORAL"]
[null,null,null,null,null,null,null,"EJECUTIVOS"]
[null,null,null,null,null,null,null,"OTROS"]
[]
[null,null,null,null,null,null,null,"NULIDAD DE ACTOS ADMINISTRATIVOS (NO TIENE VALOR)"]
[null,null,null,null,null,null,null,"NULIDAD DE ACTOS ADMINISTRATIVOS CON VALOR"]
[null,null,null,null,null,null,null,"REPARACIÓN DIRECTA"]
[null,null,null,null,null,null,null,"OTRAS ACCIONES CONTENCIOSAS ADMINISTRATIVAS"]
[null,null,null,null,null,null,null,"EJECUTIVOS"]
[null,null,null,null,null,null,null,"CONTRACTUAL DECLARATORIA DE INCUMPLIMIENTO"]
[null,null,null,null,null,null,null,"NULIDAD DE ACTOS ADMINISTRTIVOS (NO TIENE VALOR)"]
[null,null,null,null,null,null,null,"NULIDAD DE ACTOS ADMINISTRATIVOS CON VALOR"]
[null,null,null,null,null,null,null,"REPARACIÓN DIRECTA"]
[null,null,null,null,null,null,null,"OTRAS ACCIONES CONTENCIOSAS ADMINISTRATIVAS"]
[null,null,null,null,null,null,null,"EJECUTIVOS"]
[null,null,null,null,null,null,null,"CONTRACTUAL DECLARATORIA DE INCUMPLIMIENTO"]
[null,null,null,null,null,null,null,"NULIDAD DE ACTOS ADMINISTRTIVOS (NO TIENE VALOR)"]
[null,null,null,null,null,null,null,"NULIDAD DE ACTOS ADMINISTRATIVOS CON VALOR"]
[null,null,null,null,null,null,null,"REPARACIÓN DIRECTA"]
[null,null,null,null,null,null,null,"OTRAS ACCIONES CONTENCIOSAS ADMINISTRATIVAS"]
[null,null,null,null,null,null,null,"EJECUTIVOS"]
[null,null,null,null,null,null,null,"CONTRACTUAL DECLARATORIA DE INCUMPLIMIENTO"]
[null,null,null,null,null,null,null,"NULIDAD DE ACTOS ADMINISTRTIVOS (NO TIENE VALOR)"]
[null,null,null,null,null,null,null,"NULIDAD DE ACTOS ADMINISTRATIVOS CON VALOR"]
[null,null,null,null,null,null,null,"REPARACIÓN DIRECTA"]
[null,null,null,null,null,null,null,"OTRAS ACCIONES CONTENCIOSAS ADMINISTRATIVAS"]
[null,null,null,null,null,null,null,"EJECUTIVOS"]
[null,null,null,null,null,null,null,"CONTRACTUAL DECLARATORIA DE INCUMPLIMIENTO"]
[null,null,null,null,null,null,null,"NULIDAD DE ACTOS ADMINISTRTIVOS (NO TIENE VALOR)"]
[null,null,null,null,null,null,null,"NULIDAD DE ACTOS ADMINISTRATIVOS CON VALOR"]
[null,null,null,null,null,null,null,"REPARACIÓN DIRECTA"]
[null,null,null,null,null,null,null,"OTRAS ACCIONES CONTENCIOSAS ADMINISTRATIVAS"]
[null,null,null,null,null,null,null,"EJECUTIVOS"]
[null,null,null,null,null,null,null,"Procesos de Arbitramento"]
[null,null,null,null,null,null,null,"Otros "]
[null,null,null,null,null,null,null,"Procesos de Arbitramento"]
[null,null,null,null,null,null,null,"Otros "]
[null,null,null,null,null,null,null,"Procesos de Arbitramento"]
[null,null,null,null,null,null,null,"Otros "]

{"sheet":"Incluir VS Excluir","index":4,"n_rows":28,"n_cols":6,"rows_kept":28,"cut":false,"hidden":false,"merged":[[4,1,4,5],[5,1,5,5],[13,1,13,5],[14,1,14,5]]}
[]
[]
[]
[null,"Incluir: Ajustar "]
[null,"CUENTA: XXXXXXX"]
[]
[null,"Nombre del demandado","Identificación ","No. de Proceso (23 Digitos)","Cantidad","Valor"]
[null,null,null,null,null,0]
[null,null,null,null,null,0]
[null,null,null,null,null,0]
[]
[]
[null,"Excluir: Ajustar "]
[null,"CUENTA: XXXXXX"]
[]
[null,"Nombre del demandado","Identificación ","No. de Proceso (23 Digitos)","Cantidad","Valor"]
[null,null,null,null,null,0]
[null,null,null,null,null,0]
[null,null,null,null,null,0]
[]
[]
[]
[null,null,null,null,"Cantidad","VALOR"]
[null,"SALDO CON CORTE ANTERIOR"]
[]
[null,"SALDO CON CORTE PRESENTE MES",null,null,{"$f":"'ICBF es Ddo.'!E688+'ICBF es Ddo.'!E693+'ICBF es Ddo.'!E697","v":0},{"$f":"'ICBF es Ddo.'!F688+'ICBF es Ddo.'!F693+'ICBF es Ddo.'!F697","v":0}]
[]
[null,null,"TOTAL",null,{"$f":"E26-E24","v":0},{"$f":"F26-F24","v":0}]

{"sheet":"VALIDACION","index":5,"n_rows":46,"n_cols":8,"rows_kept":46,"cut":false,"hidden":false,"merged":[[21,5,21,7],[6,5,6,7],[5,1,5,7],[3,2,3,6],[0,2,0,6],[1,2,1,6],[2,2,2,6],[3,9,3,13],[20,1,20,7]]}
[null,null,"Instituto Colombiano de Bienestar Familiar"]
[null,null,"RESUMEN DEL INFORME FINANCIERO DE PROCESOS JURIDICOS DEL ICBF"]
[null,null,"OFICINA ASESORA JURIDICA "]
[null,null,{"$f":"'ICBF es Ddante.'!C11:D11","v":0}]
[]
[null,"RESUMEN FINANCIERO PROCESOS JURIDICOS DONDE EL ICBF ES DEMANDADO"]
[null,null,null,null,null,"NO. DE PROCESOS"]
[null,"CUENTA","DESCRIPCION CUENTA","REGIONAL","VALOR","ICBF DEMANDANTE","ICBF DEMANDADO","TOTAL PROCESOS"]
[null,{"$f":"'ICBF es Ddo.'!B723","v":912001},{"$f":"'ICBF es Ddo.'!C723","v":"CIVILES"},{"$f":"C4","v":0},{"$f":"'ICBF es Ddo.'!F723","v":0},null,{"$f":"'ICBF es Ddo.'!E723","v":0},{"$f":"F9+G9","v":0}]
[null,{"$f":"'ICBF es Ddo.'!B728","v":912002},{"$f":"'ICBF es Ddo.'!C728","v":"LABORALES"},{"$f":"D9","v":0},{"$f":"'ICBF es Ddo.'!F728","v":0},null,{"$f":"'ICBF es Ddo.'!E728","v":0},{"$f":"F10+G10","v":0}]
[null,912004,{"$f":"'ICBF es Ddo.'!C732","v":"ADMINISTRATIVAS"},{"$f":"D10","v":0},{"$f":"'ICBF es Ddo.'!F732","v":0},null,{"$f":"'ICBF es Ddo.'!E732","v":0},0]
[null,{"$f":"'ICBF es Ddo.'!B737","v":"912090"},{"$f":"'ICBF es Ddo.'!C737","v":"OTRAS OBLIGACIONES POR LITIGIOS O DEMANDAS"},0,{"$f":"'ICBF es Ddo.'!F737","v":0},null,{"$f":"'ICBF es Ddo.'!E737","v":0},0]
[null,{"$f":"'ICBF es Ddo.'!B724","v":271005},{"$f":"'ICBF es Ddo.'!C724","v":"LITIGIOS"},0,{"$f":"'ICBF es Ddo.'!F724+'ICBF es Ddo.'!F729+'ICBF es Ddo.'!F733","v":0},null,{"$f":"'ICBF es Ddo.'!E724+'ICBF es Ddo.'!E729+'ICBF es Ddo.'!E733","v":0},0]
[null,{"$f":"'ICBF es Ddo.'!B726","v":271015},{"$f":"'ICBF es Ddo.'!C726","v":"SENTENCIAS"},0,{"$f":"'ICBF es Ddo.'!F726+'ICBF es Ddo.'!F735","v":0},null,{"$f":"'ICBF es Ddo.'!E726+'ICBF es Ddo.'!E735","v":0},0]
[null,{"$f":"'ICBF es Ddo.'!B738","v":"271090"},{"$f":"'ICBF es Ddo.'!C738","v":"OTRAS PROVISIONES PARA CONTINGENCIAS"},0,{"$f":"'ICBF es Ddo.'!F702","v":0},null,{"$f":"'ICBF es Ddo.'!E702","v":0}]
[null,{"$f":"'ICBF es Ddo.'!B725","v":246002},{"$f":"'ICBF es Ddo.'!C725","v":"SENTENCIAS"},0,{"$f":"'ICBF es Ddo.'!F730+'ICBF es Ddo.'!F734","v":0},null,{"$f":"'ICBF es Ddo.'!E725+'ICBF es Ddo.'!E730+'ICBF es Ddo.'!E734","v":0},0]
[null,{"$f":"'ICBF es Ddo.'!B727","v":246003},{"$f":"'ICBF es Ddo.'!C727","v":"MECANISMOS ALTERNATIVOS DE SOLUCIÓN DE CONFLICTOS - ADMINISTRATIVAS"},0,{"$f":"'ICBF es Ddo.'!F727+'ICBF es Ddo.'!F731+'ICBF es Ddo.'!F736","v":0},null,{"$f":"'ICBF es Ddo.'!E727+'ICBF es Ddo.'!E731+'ICBF es Ddo.'!E736","v":0},0]
[null,{"$f":"'ICBF es Ddo.'!B739","v":"246090"},{"$f":"'ICBF es Ddo.'!C739","v":"OTROS CREDITOS JUDICIALES"},0,{"$f":"'ICBF es Ddo.'!F718","v":0},null,{"$f":"'ICBF es Ddo.'!E718","v":0}]
[null,null,null,null,{"$f":"SUM(E9:E17)","v":0},null,{"$f":"SUM(G9:G17)","v":0},{"$f":"SUM(H9:H17)","v":0}]
[]
[null,"RESUMEN FINANCIERO PROCESOS JURIDICOS DONDE EL ICBF ES DEMANDANTE"]
[null,null,null,null,null,"NO. DE PROCESOS"]
[null,"CUENTA","DESCRIPCION CUENTA","REGIONAL","VALOR","ICBF DEMANDANTE","ICBF DEMANDADO","TOTAL PROCESOS"]
[null,{"$f":"'ICBF es Ddante.'!B499","v":812001},{"$f":"'ICBF es Ddante.'!C499","v":"CIVILES"},{"$f":"'ICBF es Ddante.'!$C$11","v":0},{"$f":"'ICBF es Ddante.'!F499","v":0},{"$f":"'ICBF es Ddante.'!E499","v":0},null,{"$f":"F24+G24","v":0}]
[null,{"$f":"'ICBF es Ddante.'!B500","v":147502},{"$f":"'ICBF es Ddante.'!C500","v":"PRÉSTAMOS CONCEDIDOS"},{"$f":"'ICBF es Ddante.'!$C$11","v":0},{"$f":"'ICBF es Ddante.'!F500","v":0},{"$f":"'ICBF es Ddante.'!E500","v":0},null,{"$f":"F25+G25","v":0}]
[null,{"$f":"'ICBF es Ddante.'!B501","v":831536},{"$f":"'ICBF es Ddante.'!C501","v":"DEUDORES"},{"$f":"'ICBF es Ddante.'!$C$11","v":0},{"$f":"'ICBF es Ddante.'!F501","v":0},{"$f":"'ICBF es Ddante.'!E501","v":0},null,0]
[null,{"$f":"'ICBF es Ddante.'!B502","v":812003},{"$f":"'ICBF es Ddante.'!C502","v":"PENALES"},{"$f":"'ICBF es Ddante.'!$C$11","v":0},{"$f":"'ICBF es Ddante.'!F502","v":0},{"$f":"'ICBF es Ddante.'!E502","v":0},null,0]
[null,{"$f":"'ICBF es Ddante.'!B503","v":812004},{"$f":"'ICBF es Ddante.'!C503","v":"ADMINISTRATIVAS"},{"$f":"'ICBF es Ddante.'!$C$11","v":0},{"$f":"'ICBF es Ddante.'!F503","v":0},{"$f":"'ICBF es Ddante.'!E503","v":0},null,0]
[null,{"$f":"'ICBF es Ddante.'!B504","v":836101},{"$f":"'ICBF es Ddante.'!C504","v":"INTERNAS"},{"$f":"'ICBF es Ddante.'!$C$11","v":0},{"$f":"'ICBF es Ddante.'!F504","v":0},{"$f":"'ICBF es Ddante.'!E504","v":0},null,0]
[null,{"$f":"'ICBF es Ddante.'!B505","v":147509},{"$f":"'ICBF es Ddante.'!C505","v":"PRESTACIÓN DE SERVICIOS"},{"$f":"'ICBF es Ddante.'!$C$11","v":0},{"$f":"'ICBF es Ddante.'!F505","v":0},{"$f":"'ICBF es Ddante.'!E505","v":0},null,0]
[]
[null,null,null,null,{"$f":"SUM(E24:E30)","v":0},{"$f":"SUM(F24:F30)","v":0},{"$f":"SUM(G24:G30)","v":0},{"$f":"SUM(H24:H30)","v":0}]
[]
[null,null,"RESUMEN:"]
[]
[null,null,"PROCESOS DONDE EL ICBF ES DEMANDANTE",null,{"$f":"E32","v":0},{"$f":"F32","v":0},0,0]
[null,null,"PROCESOS DONDE EL ICBF ES DEMANDADO",null,{"$f":"SUM(E38:E40)","v":0},{"$f":"SUM(F38:F40)","v":0},0,0]
[null,null,"* Pretensiones………………………….",null,{"$f":"E9+E10+E11+E12","v":0},{"$f":"F9+F10+F11+F12","v":0},0,0]
[null,null,"* Provisiones contingentes…………….",null,{"$f":"E13+E15+E14","v":0},{"$f":"F13+F15+F14","v":0},0,0]
[null,null,"* Cuentas por Pagar……………………",null,{"$f":"E16+E17+E18","v":0},{"$f":"F16+F17+F18","v":0},0,0]
[]
[null,null,"TOTAL PROCESOS JURIDICOS DEL ICBF",null,{"$f":"E36+E37","v":0},{"$f":"F36+F37","v":0},{"$f":"G36+G37","v":0},0]
[]
[null,"Elaboro:"]
[null,"Reviso:"]
[null,"Aprobo:"]

{"sheet":"CUENTAS","index":6,"n_rows":62,"n_cols":5,"rows_kept":62,"cut":false,"hidden":false,"merged":[[46,3,49,3],[46,4,49,4],[3,3,10,3],[3,4,10,4],[14,3,16,3],[14,4,16,4],[18,3,20,3],[18,4,20,4],[30,3,40,3],[30,4,40,4],[26,3,28,3],[26,4,28,4],[22,3,24,3],[22,4,24,4]]}
[]
[null,"DESCRIPCION CUENTA","8 DIGITOS ANTES","6 DIGITOS HOY","DESCRIPCION CUENTA"]
[]
[null,"14750207 PRÉSTAMOS DE VIVIENDA NUEVOS JURISDICCIÓN ORDINARIA",14750207,147502,"PRÉSTAMOS CONCEDIDOS"]
[null,"14750208 PRÉSTAMOS DE VIVIENDA ANTIGUOS JURISDICCIÓN  ORDINARIA ",14750208]
[null,"14750209 INTERESES PRÉSTAMOS DE VIVIENDA NUEVOS JURISDICCIÓN ORDINARIA",14750209]
[null,"14750210 INTERESES PRÉSTAMOS DE VIVIENDA ANTIGUOS JURISDICCIÓN ORDINARIA",14750210]
[null,"14750211 PRESTAMOS DE CALAMIDAD DOMESTICA NUEVOS JURISDICCIÓN ORDINARIA",14750211]
[null,"14750212 PRESTAMOS DE CALAMIDAD DOMESTICA ANTIGUOS JURISDICCIÓN  ORDINARIA ",14750212]
[null,"14750213 INTERESES PRESTAMOS DE CALAMIDAD DOMESTICA JURISDICCIÓN ORDINARIA",14750213]
[null,"14750214 INTERESES PRESTAMOS DE CALAMIDAD DOMESTICA ANTIGUOS JURISDICCIÓN ORDINARIA",14750214]
[]
[null,"14750905 MULTAS A PROVEEDORES Y CONTRATISTAS JURISDICCIÓN ORDINARIA",14750905,147509,"PRESTACION DE SERVICIOS"]
[]
[null,"24600201 SENTENCIAS  - CIVILES",24600201,246002,"SENTENCIAS"]
[null,"24600202 SENTENCIAS LABORALES",24600202]
[null,"24600204 SENTENCIAS - ADMINISTRATIVAS",24600204]
[]
[null,"24600301 LAUDOS ARBITRALES Y CONCILIACIONES EXTRAJUDICIALES-CIVILES",24600301,246003,"LAUDOS ARBITRALES Y CONCILIACIONES EXTRAJUDICIALES"]
[null,"24600302 LAUDOS ARBRITALES Y CONCILIACIONES EXTRADUCIALES LABORALES",24600302]
[null,"24600303 LAUDOS ARBITRALES Y CONCILIACIONES EXTRAJUDUCIALES- ADMINISTRATIVAS",24600303]
[]
[null,"27100501 PROVISION PARA CONTIGENCIAS - LITIGIOS CIVILES",27100501,271005,"LITIGIOS"]
[null,"27100502  PROVISIÓN PARA CONTINGENCIAS LITIGIOS- LABORALES",27100502]
[null,"27100504 PROVISIÓN PARA CONTINGENCIAS-LITIGIOS-ADMINISTRATIVOS",27100504]
[]
[null,"27101501 MECANISMOS ALTERNATIVOS DE SOLUCIÓN DE CONFLICTOS-CIVILES",27101501,271015,"MECANISMOS ALTERNATIVOS DE SOLUCIÓN DE CONFLICTOS"]
[null,"27101502 MECANISMOS ALTERNATIVOS DE SOLUCIÓN DE CONFLICTOS  LABORALES",27101502]
[null,"27101503 MECANISMOS ALTERNATIVOS DE SOLUCIÓN DE CONFLICTOS- ADMINISTRATIVAS",27101503]
[]
[null,"81200101 LITIGIOS Y DEMANDAS CIVILES",81200101,812001,"CIVILES"]
[null,"81200102 BIENES MOSTRENCOS EN DINERO",81200102]
[null,"81200103 BIEN MOSTRENCO- BIENES MUEBLES O EN ESPECIE",81200103]
[null,"81200104 BIENES VACANTES - TERRENOS Y EDIFICACIONES",81200104]
[null,"81200105 BIENES MOSTRENCOS INVERSIONES",81200105]
[null,"81200106 VOCACIONES HEREDITARIAS EN DINERO",81200106]
[null,"81200107 VOCACIONES HEREDITARIAS INVERSIONES",81200107]
[null,"81200108 VOCACIONES HEREDITARIAS  BIENES MUEBLES O EN ESPECIE",81200108]
[null,"81200109 VOCACIONES HEREDITARIAS  TERRENOS Y EDIFICACIONES",81200109]
[null,"81200110 BIENES VACANTES-INCAUTADOS POR LA FISCALIA",81200110]
[null,"81200111 BIENES MOSTRENCOS-INCAUTADOS POR FISCALIA",81200111]
[]
[null,"81200301 LITIGIOS Y DEMANDAS PENALES",81200301,812003,"PENALES"]
[]
[null,"81200401 LITIGIOS Y DEMANDAS ADMINISTRATIVAS",81200401,812004,"ADMINISTRATIVAS"]
[]
[null,"83153601 JURISDICCIÓN LABORAL ORDINARIA APORTES 3% RESOLUCIONES",83153601,831536,"DEUDORES"]
[null,"83153602 JURISDICCIÓN LABORAL ORDINARIA APORTES 3% PAGARÉS",83153602]
[null,"83153603 JURISDICCIÓN LABORAL ORDINARIA APORTES 3% ACUERDOS O CONVENIOS DE PAGOS",83153603]
[null,"83153604 JURISDICCIÓN LABORAL ORDINARIA APORTES 3% INTERESES",83153604]
[]
[null,"83610103 ACCIONES DE REPETICIÓN",83610103,836101,"INTERNAS"]
[]
[null,"91200101 LITIGIOS O DEMANDAS CIVILES",91200101,912001,"CIVILES"]
[]
[null,"91200201 LITIGIOS O DEMANDAS LABORALES",91200201,912002,"LABORALES"]
[]
[null,"91200401 LITIGIOS O DEMANDAS ADMINISTRATIVAS",91200401,912004,"ADMINISTRATIVAS"]
[]
[null,null,null,912090,"OTRAS OBLIGACIONES POR LITIGIOS O DEMANDAS"]
[null,null,null,271090,"OTRAS PROVISIONES PARA CONTINGENCIAS"]
[null,null,null,246090,"OTROS CREDITOS JUDICIALES"]

{"sheet":"T.1","index":7,"n_rows":41,"n_cols":8,"rows_kept":41,"cut":false,"hidden":false,"merged":[[85,5,85,7]]}
[]
[]
[]
[]
[]
[]
[]
[]
[]
[]
[]
[]
[]
[]
[]
[]
[]
[]
[]
[]
[]
[]
[null,"CUENTA","DESCRIPCION CUENTA","REGIONAL","VALOR","ICBF DEMANDANTE","ICBF DEMANDADO","TOTAL PROCESOS"]
[null,null,null,null,null,null,null,{"$f":"SUM(F24:G24)","v":0}]
[null,null,null,null,null,null,null,{"$f":"SUM(F25:G25)","v":0}]
[null,null,null,null,null,null,null,0]
[null,null,null,null,null,null,null,0]
[null,null,null,null,null,null,null,0]
[null,null,null,null,null,null,null,0]
[null,null,null,null,null,null,null,0]
[null,null,null,null,null,null,null,0]
[null,null,null,null,null,null,null,0]
[null,null,null,null,null,null,null,0]
[null,null,null,null,null,null,null,0]
[null,null,null,null,null,null,null,0]
[null,null,null,null,null,null,null,0]
[null,null,null,null,null,null,null,0]
[null,null,null,null,null,null,null,0]
[null,null,null,null,null,null,null,0]
[null,null,null,null,null,null,null,0]
[null,null,null,null,{"$f":"SUM(E24:E40)","v":0},{"$f":"SUM(F24:F40)","v":0},0,0]

{"sheet":"Oficio","index":8,"n_rows":39,"n_cols":7,"rows_kept":39,"cut":false,"hidden":false,"merged":[[22,2,22,6],[23,2,23,6]]}
[]
[]
[]
[]
[]
[]
[]
[]
[null,null,"Bogotá"]
[]
[null,null,"CONTADOR "]
[null,null,"xxxxxxxxxxxxxxxxxxxxxxx"]
[]
[]
[]
[null,null,"Asunto:"]
[]
[]
[]
[]
[null,null,"Remito…………………"]
[null,null,"Incluir: Ajustar "]
[]
[]
[null,null,"Nombre del demandado","Identificación ","No. de Proceso (23 Digitos)","Cantidad","Valor"]
[null,null,null,null,null,null,0]
[null,null,null,null,null,null,0]
[null,null,null,null,null,null,0]
[]
[]
[]
[null,null,"Cordial Saludo."]
[]
[]
[]
[]
[null,null,"XXXXXXXXXXXXXXXXXXXXXXXXX"]
[null,null,"Coordinador Grupo Juridico"]
[null,null,"Regional"]

{"sheet":"F9","index":9,"n_rows":1327,"n_cols":37,"rows_kept":1327,"cut":false,"hidden":false,"merged":[[1,3,1,7],[2,3,2,7],[8,1,8,22]]}
[]
[null,"Tipo Modalidad",51,"M-1: CUENTA O INFORME ANUAL CONSOLIDADO"]
[null,"Formulario",389,"F9: RELACIÓN DE PROCESOS JUDICIALES (Registre las cifras EN PESOS)"]
[null,"Moneda Informe",1]
[null,"Entidad",454]
[null,"Fecha"]
[null,"Periodicidad",12,"ANUAL"]
[]
["[1]","RELACIÓN DE PROCESOS JUDICIALES (Registre las cifras en PESOS)"]
[null,null,2,3,4,7,8,12,16,20,39,40,44,46,47,48,51,52,56,60,63,64,68]
["a","b","FORMULARIO CON INFORMACIÓN","JUSTIFICACIÓN","No. DEL PROCESO","FECHA ADMISIÓN DEMANDA","CALIDAD EN QUE ACTÚA LA ENTIDAD","CIUDAD ACTUAL DEL PROCESO","ACCIÓN","DEMANDADO o DEMANDANTE","APODERADO / TIPO","APODERADO / NOMBRE","APODERADO / HONORARIOS","FORMA DE TÉRMINACIÓN ANORMAL","VALOR DEL ACUERDO","ETAPA DEL PROCESO","CUANTÍA ESTIMADA DEL PROCESO","MONTO DE LA PROVISIÓN / CONTABLE","FALLO O SENTENCIA","VALOR FALLO O SENTENCIA","INSTANCIA DEL FALLO","FECHA DE TERMINACIÓN","OBSERVACIONES","CEDULA",null,null,"TIPO DE PROCESO","JUZGADO DE CONOCIMIENTO","PRETENSIONES RECLAMADAS","SI/NO","VALOR","FECHA","FECHA DE LA EJECUTORIA","VALOR PAGADO","INTERESES MORATORIOS (si hubo lugar a ello)","VALOR POR CANCELAR","ESTADO ACTUAL DEL PROCESO"]
[1,"FILA_01"]
[2]
[3]
[4]
[5]
[6]
[7]
[8]
[9]
[10]
[11]
[12]
[13]
[15]
[16]
[17]
[18]
[19]
[20]
[21]
[22]
[23]
[24]
[25]
[26]
[27]
[28]
[29]
[30]
[31]
[32]
[33]
[34]
[35]
[36]
[37]
[38]
[39]
[40]
[41]
[42]
[43]
[44]
[45]
[46]
[47]
[48]
[49]
[50]
[51]
[52]
[53]
[54]
[55]
[56]
[57]
[58]
[59]
[60]
[61]
[62]
[63]
[64]
[65]
[66]
[67]
[68]
[69]
[79]
[80]
[81]
[82]
[83]
[84]
[]
[]
[]
[]
[]
[]
[]
[]
[]
[]
[]
[]
[]
[]
[]
[]
[]
[]
[]
[]
[]
[]
[]
[]
[]
[]
[]
[]
[]
[]
[]
[]
[]
[]
[]
[]
[]
[]
[]
[]
[]
[]
[]
[]
[]
[]
[]
[]
[]
[]
[]
[]
[]
[]
[]
[]
[]
[]
[]
[]
[]
[]
[]
[]
[]
[]
[]
[]
[]
[]
[]
[]
[]
[]
[]
[]
[]
[]
[]
[]
[]
[]
[164,270,160,100,161,103,115]
[]
[]
["1 SI","1 DEMANDADO","1 AMAZONAS - DEPARTAMENTO","1 CIVIL","1 FUNCIONARIO INTERNO","1 ALEGATOS","1 A FAVOR"]
["2 NO","2 DEMANDANTE","2 ANTIOQUIA - DEPARTAMENTO","2 COMERCIAL","2 APODERADO EXTERNO","2 ETAPA EXTRAJUDICIAL","2 EN CONTRA"]
[null,"3 FORMULARIO SIN INFORMACIÓN","3 ARAUCA - DEPARTAMENTO","3 CONSTITUCIONAL","3 FORMULARIO SIN INFORMACIÓN","3 FALLO DE PRIMERA INSTANCIA","3 EN PROCESO (NO FALLADO AÚN)"]
[null,null,"4 ATLÁNTICO - DEPARTAMENTO","4 CONTENCIOSO",null,"4 FALLO DE SEGUNDA INSTANCIA","4 FORMULARIO SIN INFORMACIÓN"]
[null,null,"5 BOGOTÁ D.C. - DISTRITO CAPITAL","5 LABORAL",null,"5 NOTIFICACIÓN"]
[null,null,"6 BOLÍVAR - DEPARTAMENTO","6 PENAL",null,"6 PARA FALLO"]
[null,null,"7 BOYACÁ - DEPARTAMENTO","7 OTRO",null,"7 PRUEBAS ó INVESTIGACIÓN"]
[null,null,"8 CALDAS - DEPARTAMENTO","8 FORMULARIO SIN INFORMACIÓN",null,"8 RECURSO EXTRAORDINARIO"]
[null,null,"9 CAQUETÁ - DEPARTAMENTO",null,null,"9 RESPUESTA DEMANDA (EXCEPCIONES)"]
[null,null,"10 CASANARE - DEPARTAMENTO",null,null,"10 OTROS"]
[null,null,"11 CAUCA - DEPARTAMENTO",null,null,"11 FORMULARIO SIN INFORMACIÓN"]
[null,null,"12 CESAR - DEPARTAMENTO"]
[null,null,"13 CHOCÓ - DEPARTAMENTO"]
[null,null,"14 CÓRDOBA - DEPARTAMENTO"]
[null,null,"15 CUNDINAMARCA - DEPARTAMENTO"]
[null,null,"16 GUAINÍA - DEPARTAMENTO"]
[null,null,"17 GUAVIARE - DEPARTAMENTO"]
[null,null,"18 HUILA - DEPARTAMENTO"]
[null,null,"19 LA GUAJIRA - DEPARTAMENTO"]
[null,null,"20 MAGDALENA - DEPARTAMENTO"]
[null,null,"21 META - DEPARTAMENTO"]
[null,null,"22 NARIÑO - DEPARTAMENTO"]
[null,null,"23 NORTE DE SANTANDER - DEPARTAMENTO"]
[null,null,"24 PUTUMAYO - DEPARTAMENTO"]
[null,null,"25 QUINDÍO - DEPARTAMENTO"]
[null,null,"26 RISARALDA - DEPARTAMENTO"]
[null,null,"27 SAN ANDRÉS  PROVIDENCIA Y SANTA CATALINA - DEPARTAMENTO"]
[null,null,"28 SANTANDER - DEPARTAMENTO"]
[null,null,"29 SUCRE - DEPARTAMENTO"]
[null,null,"30 TOLIMA - DEPARTAMENTO"]
[null,null,"31 VALLE DEL CAUCA - DEPARTAMENTO"]
[null,null,"32 VAUPÉS - DEPARTAMENTO"]
[null,null,"33 VICHADA - DEPARTAMENTO"]
[null,null,"34 ABEJORRAL - ANTIOQUIA"]
[null,null,"35 ABREGO - NORTE DE SANTANDER"]
[null,null,"36 ABRIAQUÍ - ANTIOQUIA"]
[null,null,"37 ACACÍAS - META"]
[null,null,"38 ACANDÍ - CHOCÓ"]
[null,null,"39 ACEVEDO - HUILA"]
[null,null,"40 ACHÍ - BOLÍVAR"]
[null,null,"41 AGRADO - HUILA"]
[null,null,"42 AGUA DE DIOS - CUNDINAMARCA"]
[null,null,"43 AGUACHICA - CESAR"]
[null,null,"44 AGUADA - SANTANDER"]
[null,null,"45 AGUADAS - CALDAS"]
[null,null,"46 AGUAZUL - CASANARE"]
[null,null,"47 AGUSTÍN CODAZZI - CESAR"]
[null,null,"48 AIPE - HUILA"]
[null,null,"49 ALBÁN - CUNDINAMARCA"]
[null,null,"50 ALBÁN - NARIÑO"]
[null,null,"51 ALBANIA - CAQUETA"]
[null,null,"52 ALBANIA - LA GUAJIRA"]
[null,null,"53 ALBANIA - SANTANDER"]
[null,null,"54 ALCALÁ - VALLE DEL CAUCA"]
[null,null,"55 ALDANA - NARIÑO"]
[null,null,"56 ALEJANDRÍA - ANTIOQUIA"]
[null,null,"57 ALGARROBO - MAGDALENA"]
[null,null,"58 ALGECIRAS - HUILA"]
[null,null,"59 ALMAGUER - CAUCA"]
[null,null,"60 ALMEIDA - BOYACÁ"]
[null,null,"61 ALPUJARRA - TOLIMA"]
[null,null,"62 ALTAMIRA - HUILA"]
[null,null,"63 ALTO BAUDÓ - CHOCÓ"]
[null,null,"64 ALTOS DEL ROSARIO - BOLÍVAR"]
[null,null,"65 ALVARADO - TOLIMA"]
[null,null,"66 AMAGÁ - ANTIOQUIA"]
[null,null,"67 AMALFI - ANTIOQUIA"]
[null,null,"68 AMBALEMA - TOLIMA"]
[null,null,"69 ANAPOIMA - CUNDINAMARCA"]
[null,null,"70 ANCUYÁ - NARIÑO"]
[null,null,"71 ANDALUCÍA - VALLE DEL CAUCA"]
[null,null,"72 ANDES - ANTIOQUIA"]
[null,null,"73 ANGELÓPOLIS - ANTIOQUIA"]
[null,null,"74 ANGOSTURA - ANTIOQUIA"]
[null,null,"75 ANOLAIMA - CUNDINAMARCA"]
[null,null,"76 ANORÍ - ANTIOQUIA"]
[null,null,"77 ANSERMA - CALDAS"]
[null,null,"78 ANSERMANUEVO - VALLE DEL CAUCA"]
[null,null,"79 ANZA - ANTIOQUIA"]
[null,null,"80 ANZOÁTEGUI - TOLIMA"]
[null,null,"81 APARTADÓ - ANTIOQUIA"]
[null,null,"82 APÍA - RISARALDA"]
[null,null,"83 APULO - CUNDINAMARCA"]
[null,null,"84 AQUITANIA - BOYACÁ"]
[null,null,"85 ARACATACA - MAGDALENA"]
[null,null,"86 ARANZAZU - CALDAS"]
[null,null,"87 ARATOCA - SANTANDER"]
[null,null,"88 ARAUCA - ARAUCA"]
[null,null,"89 ARAUQUITA - ARAUCA"]
[null,null,"90 ARBELÁEZ - CUNDINAMARCA"]
[null,null,"91 ARBOLEDA - NARIÑO"]
[null,null,"92 ARBOLEDAS - NORTE DE SANTANDER"]
[null,null,"93 ARBOLETES - ANTIOQUIA"]
[null,null,"94 ARCABUCO - BOYACÁ"]
[null,null,"95 ARENAL - BOLÍVAR"]
[null,null,"96 ARGELIA - ANTIOQUIA"]
[null,null,"97 ARGELIA - CAUCA"]
[null,null,"98 ARGELIA - VALLE DEL CAUCA"]
[null,null,"99 ARIGUANÍ - MAGDALENA"]
[null,null,"100 ARJONA - BOLÍVAR"]
[null,null,"101 ARMENIA - ANTIOQUIA"]
[null,null,"102 ARMENIA - QUINDÍO"]
[null,null,"103 ARMERO - TOLIMA"]
[null,null,"104 ARROYOHONDO - BOLÍVAR"]
[null,null,"105 ASTREA - CESAR"]
[null,null,"106 ATACO - TOLIMA"]
[null,null,"107 ATRATO - CHOCÓ"]
[null,null,"108 AYAPEL - CÓRDOBA"]
[null,null,"109 BAGADÓ - CHOCÓ"]
[null,null,"110 BAHÍA SOLANO - CHOCÓ"]
[null,null,"111 BAJO BAUDÓ - CHOCÓ"]
[null,null,"112 BALBOA - CAUCA"]
[null,null,"113 BALBOA - RISARALDA"]
[null,null,"114 BARANOA - ATLÁNTICO"]
[null,null,"115 BARAYA - HUILA"]
[null,null,"116 BARBACOAS - NARIÑO"]
[null,null,"117 BARBOSA - ANTIOQUIA"]
[null,null,"118 BARBOSA - SANTANDER"]
[null,null,"119 BARICHARA - SANTANDER"]
[null,null,"120 BARRANCA DE UPÍA - META"]
[null,null,"121 BARRANCABERMEJA - SANTANDER"]
[null,null,"122 BARRANCAS - LA GUAJIRA"]
[null,null,"123 BARRANCO DE LOBA - BOLÍVAR"]
[null,null,"124 BARRANCO MINAS - GUAINÍA"]
[null,null,"125 BARRANQUILLA - ATLÁNTICO"]
[null,null,"126 BECERRIL - CESAR"]
[null,null,"127 BELALCÁZAR - CALDAS"]
[null,null,"128 BELÉN - BOYACÁ"]
[null,null,"129 BELÉN - NARIÑO"]
[null,null,"130 BELÉN DE LOS ANDAQUÍES - CAQUETA"]
[null,null,"131 BELÉN DE UMBRÍA - RISARALDA"]
[null,null,"132 BELLO - ANTIOQUIA"]
[null,null,"133 BELMIRA - ANTIOQUIA"]
[null,null,"134 BELTRÁN - CUNDINAMARCA"]
[null,null,"135 BERBEO - BOYACÁ"]
[null,null,"136 BETANIA - ANTIOQUIA"]
[null,null,"137 BETÉITIVA - BOYACÁ"]
[null,null,"138 BETULIA - ANTIOQUIA"]
[null,null,"139 BETULIA - SANTANDER"]
[null,null,"140 BITUIMA - CUNDINAMARCA"]
[null,null,"141 BOAVITA - BOYACÁ"]
[null,null,"142 BOCHALEMA - NORTE DE SANTANDER"]
[null,null,"143 BOGOTÁ D.C. - BOGOTÁ"]
[null,null,"144 BOJACÁ - CUNDINAMARCA"]
[null,null,"145 BOJAYA - CHOCÓ"]
[null,null,"146 BOLÍVAR - CAUCA"]
[null,null,"147 BOLÍVAR - SANTANDER"]
[null,null,"148 BOLÍVAR - VALLE DEL CAUCA"]
[null,null,"149 BOSCONIA - CESAR"]
[null,null,"150 BOYACÁ - BOYACÁ"]
[null,null,"151 BRICEÑO - ANTIOQUIA"]
[null,null,"152 BRICEÑO - BOYACÁ"]
[null,null,"153 BUCARAMANGA - SANTANDER"]
[null,null,"154 BUCARASICA - NORTE DE SANTANDER"]
[null,null,"155 BUENAVENTURA - VALLE DEL CAUCA"]
[null,null,"156 BUENAVISTA - BOYACÁ"]
[null,null,"157 BUENAVISTA - CÓRDOBA"]
[null,null,"158 BUENAVISTA - QUINDÍO"]
[null,null,"159 BUENAVISTA - SUCRE"]
[null,null,"160 BUENOS AIRES - CAUCA"]
[null,null,"161 BUESACO - NARIÑO"]
[null,null,"162 BUGALAGRANDE - VALLE DEL CAUCA"]
[null,null,"163 BURITICÁ - ANTIOQUIA"]
[null,null,"164 BUSBANZÁ - BOYACÁ"]
[null,null,"165 CABRERA - CUNDINAMARCA"]
[null,null,"166 CABRERA - SANTANDER"]
[null,null,"167 CABUYARO - META"]
[null,null,"168 CACAHUAL - GUAINÍA"]
[null,null,"169 CÁCERES - ANTIOQUIA"]
[null,null,"170 CACHIPAY - CUNDINAMARCA"]
[null,null,"171 CACHIRÁ - NORTE DE SANTANDER"]
[null,null,"172 CÁCOTA - NORTE DE SANTANDER"]
[null,null,"173 CAICEDO - ANTIOQUIA"]
[null,null,"174 CAICEDONIA - VALLE DEL CAUCA"]
[null,null,"175 CAIMITO - SUCRE"]
[null,null,"176 CAJAMARCA - TOLIMA"]
[null,null,"177 CAJIBÍO - CAUCA"]
[null,null,"178 CAJICÁ - CUNDINAMARCA"]
[null,null,"179 CALAMAR - BOLÍVAR"]
[null,null,"180 CALAMAR - GUAVIARE"]
[null,null,"181 CALARCA - QUINDÍO"]
[null,null,"182 CALDAS - ANTIOQUIA"]
[null,null,"183 CALDAS - BOYACÁ"]
[null,null,"184 CALDONO - CAUCA"]
[null,null,"185 CALI - VALLE DEL CAUCA"]
[null,null,"186 CALIFORNIA - SANTANDER"]
[null,null,"187 CALIMA - VALLE DEL CAUCA"]
[null,null,"188 CALOTO - CAUCA"]
[null,null,"189 CAMPAMENTO - ANTIOQUIA"]
[null,null,"190 CAMPO DE LA CRUZ - ATLÁNTICO"]
[null,null,"191 CAMPOALEGRE - HUILA"]
[null,null,"192 CAMPOHERMOSO - BOYACÁ"]
[null,null,"193 CANALETE - CÓRDOBA"]
[null,null,"194 CANDELARIA - ATLÁNTICO"]
[null,null,"195 CANDELARIA - VALLE DEL CAUCA"]
[null,null,"196 CANTAGALLO - BOLÍVAR"]
[null,null,"197 CAÑASGORDAS - ANTIOQUIA"]
[null,null,"198 CAPARRAPÍ - CUNDINAMARCA"]
[null,null,"199 CAPITANEJO - SANTANDER"]
[null,null,"200 CAQUEZA - CUNDINAMARCA"]
[null,null,"201 CARACOLÍ - ANTIOQUIA"]
[null,null,"202 CARAMANTA - ANTIOQUIA"]
[null,null,"203 CARCASÍ - SANTANDER"]
[null,null,"204 CAREPA - ANTIOQUIA"]
[null,null,"205 CARMEN DE APICALÁ - TOLIMA"]
[null,null,"206 CARMEN DE CARUPA - CUNDINAMARCA"]
[null,null,"207 CARMEN DEL DARIÉN - CHOCÓ"]
[null,null,"208 CAROLINA - ANTIOQUIA"]
[null,null,"209 CARTAGENA - BOLÍVAR"]
[null,null,"210 CARTAGENA DEL CHAIRÁ - CAQUETA"]
[null,null,"211 CARTAGO - VALLE DEL CAUCA"]
[null,null,"212 CARURU - VAUPES"]
[null,null,"213 CASABIANCA - TOLIMA"]
[null,null,"214 CASTILLA LA NUEVA - META"]
[null,null,"215 CAUCASIA - ANTIOQUIA"]
[null,null,"216 CEPITÁ - SANTANDER"]
[null,null,"217 CERETÉ - CÓRDOBA"]
[null,null,"218 CERINZA - BOYACÁ"]
[null,null,"219 CERRITO - SANTANDER"]
[null,null,"220 CERRO SAN ANTONIO - MAGDALENA"]
[null,null,"221 CÉRTEGUI - CHOCÓ"]
[null,null,"222 CHACHAGÜÍ - NARIÑO"]
[null,null,"223 CHAGUANÍ - CUNDINAMARCA"]
[null,null,"224 CHALÁN - SUCRE"]
[null,null,"225 CHAMEZA - CASANARE"]
[null,null,"226 CHAPARRAL - TOLIMA"]
[null,null,"227 CHARALÁ - SANTANDER"]
[null,null,"228 CHARTA - SANTANDER"]
[null,null,"229 CHÍA - CUNDINAMARCA"]
[null,null,"230 CHIGORODÓ - ANTIOQUIA"]
[null,null,"231 CHIMÁ - CÓRDOBA"]
[null,null,"232 CHIMA - SANTANDER"]
[null,null,"233 CHIMICHAGUA - CESAR"]
[null,null,"234 CHINÁCOTA - NORTE DE SANTANDER"]
[null,null,"235 CHINAVITA - BOYACÁ"]
[null,null,"236 CHINCHINÁ - CALDAS"]
[null,null,"237 CHINÚ - CÓRDOBA"]
[null,null,"238 CHIPAQUE - CUNDINAMARCA"]
[null,null,"239 CHIPATÁ - SANTANDER"]
[null,null,"240 CHIQUINQUIRÁ - BOYACÁ"]
[null,null,"241 CHÍQUIZA - BOYACÁ"]
[null,null,"242 CHIRIGUANÁ - CESAR"]
[null,null,"243 CHISCAS - BOYACÁ"]
[null,null,"244 CHITA - BOYACÁ"]
[null,null,"245 CHITAGÁ - NORTE DE SANTANDER"]
[null,null,"246 CHITARAQUE - BOYACÁ"]
[null,null,"247 CHIVATÁ - BOYACÁ"]
[null,null,"248 CHIVOLO - MAGDALENA"]
[null,null,"249 CHIVOR - BOYACÁ"]
[null,null,"250 CHOACHÍ - CUNDINAMARCA"]
[null,null,"251 CHOCÓNTÁ - CUNDINAMARCA"]
[null,null,"252 CICUCO - BOLÍVAR"]
[null,null,"253 CIÉNAGA - MAGDALENA"]
[null,null,"254 CIÉNAGA DE ORO - CÓRDOBA"]
[null,null,"255 CIÉNEGA - BOYACÁ"]
[null,null,"256 CIMITARRA - SANTANDER"]
[null,null,"257 CIRCASIA - QUINDÍO"]
[null,null,"258 CISNEROS - ANTIOQUIA"]
[null,null,"259 CIUDAD BOLÍVAR - ANTIOQUIA"]
[null,null,"260 CLEMENCIA - BOLÍVAR"]
[null,null,"261 COCORNÁ - ANTIOQUIA"]
[null,null,"262 COELLO - TOLIMA"]
[null,null,"263 COGUA - CUNDINAMARCA"]
[null,null,"264 COLOMBIA - HUILA"]
[null,null,"265 COLÓN - NARIÑO"]
[null,null,"266 COLÓN - PUTUMAYO"]
[null,null,"267 COLOSO - SUCRE"]
[null,null,"268 CÓMBITA - BOYACÁ"]
[null,null,"269 CONCEPCIÓN - ANTIOQUIA"]
[null,null,"270 CONCEPCIÓN - SANTANDER"]
[null,null,"271 CONCORDIA - ANTIOQUIA"]
[null,null,"272 CONCORDIA - MAGDALENA"]
[null,null,"273 CONDOTO - CHOCÓ"]
[null,null,"274 CONFINES - SANTANDER"]
[null,null,"275 CONSACÁ - NARIÑO"]
[null,null,"276 CONTADERO - NARIÑO"]
[null,null,"277 CONTRATACIÓN - SANTANDER"]
[null,null,"278 CONVENCIÓN - NORTE DE SANTANDER"]
[null,null,"279 COPACABANA - ANTIOQUIA"]
[null,null,"280 COPER - BOYACÁ"]
[null,null,"281 CÓRDOBA - BOLÍVAR"]
[null,null,"282 CÓRDOBA - NARIÑO"]
[null,null,"283 CÓRDOBA - QUINDÍO"]
[null,null,"284 CORINTO - CAUCA"]
[null,null,"285 COROMORO - SANTANDER"]
[null,null,"286 COROZAL - SUCRE"]
[null,null,"287 CORRALES - BOYACÁ"]
[null,null,"288 COTA - CUNDINAMARCA"]
[null,null,"289 COTORRA - CÓRDOBA"]
[null,null,"290 COVARACHÍA - BOYACÁ"]
[null,null,"291 COVEÑAS - SUCRE"]
[null,null,"292 COYAIMA - TOLIMA"]
[null,null,"293 CRAVO NORTE - ARAUCA"]
[null,null,"294 CUASPUD - NARIÑO"]
[null,null,"295 CUBARÁ - BOYACÁ"]
[null,null,"296 CUCAITA - BOYACÁ"]
[null,null,"297 CUCUNUBÁ - CUNDINAMARCA"]
[null,null,"298 CÚCUTA - NORTE DE SANTANDER"]
[null,null,"299 CUCUTILLA - NORTE DE SANTANDER"]
[null,null,"300 CUÍTIVA - BOYACÁ"]
[null,null,"301 CUMARAL - META"]
[null,null,"302 CUMARIBO - VICHADA"]
[null,null,"303 CUMBAL - NARIÑO"]
[null,null,"304 CUMBITARA - NARIÑO"]
[null,null,"305 CUNDAY - TOLIMA"]
[null,null,"306 CURILLO - CAQUETA"]
[null,null,"307 CURITÍ - SANTANDER"]
[null,null,"308 CURUMANÍ - CESAR"]
[null,null,"309 DABEIBA - ANTIOQUIA"]
[null,null,"310 DAGUA - VALLE DEL CAUCA"]
[null,null,"311 DIBULLA - LA GUAJIRA"]
[null,null,"312 DISTRACCIÓN - LA GUAJIRA"]
[null,null,"313 DOLORES - TOLIMA"]
[null,null,"314 DONMATÍAS - ANTIOQUIA"]
[null,null,"315 DOSQUEBRADAS - RISARALDA"]
[null,null,"316 DUITAMA - BOYACÁ"]
[null,null,"317 DURANIA - NORTE DE SANTANDER"]
[null,null,"318 EBÉJICO - ANTIOQUIA"]
[null,null,"319 EL ÁGUILA - VALLE DEL CAUCA"]
[null,null,"320 EL BAGRE - ANTIOQUIA"]
[null,null,"321 EL BANCO - MAGDALENA"]
[null,null,"322 EL CAIRO - VALLE DEL CAUCA"]
[null,null,"323 EL CALVARIO - META"]
[null,null,"324 EL CANTÓN DEL SAN PABLO - CHOCÓ"]
[null,null,"325 EL CARMEN - NORTE DE SANTANDER"]
[null,null,"326 EL CARMEN DE ATRATO - CHOCÓ"]
[null,null,"327 EL CARMEN DE BOLÍVAR - BOLÍVAR"]
[null,null,"328 EL CARMEN DE CHUCURÍ - SANTANDER"]
[null,null,"329 EL CARMEN DE VIBORAL - ANTIOQUIA"]
[null,null,"330 EL CASTILLO - META"]
[null,null,"331 EL CERRITO - VALLE DEL CAUCA"]
[null,null,"332 EL CHARCO - NARIÑO"]
[null,null,"333 EL COCUY - BOYACÁ"]
[null,null,"334 EL COLEGIO - CUNDINAMARCA"]
[null,null,"335 EL COPEY - CESAR"]
[null,null,"336 EL DONCELLO - CAQUETA"]
[null,null,"337 EL DORADO - META"]
[null,null,"338 EL DOVIO - VALLE DEL CAUCA"]
[null,null,"339 EL ENCANTO - AMAZONAS"]
[null,null,"340 EL ESPINO - BOYACÁ"]
[null,null,"341 EL GUACAMAYO - SANTANDER"]
[null,null,"342 EL GUAMO - BOLÍVAR"]
[null,null,"343 EL LITORAL DEL SAN JUAN - CHOCÓ"]
[null,null,"344 EL MOLINO - LA GUAJIRA"]
[null,null,"345 EL PASO - CESAR"]
[null,null,"346 EL PAUJIL - CAQUETA"]
[null,null,"347 EL PEÑOL - NARIÑO"]
[null,null,"348 EL PEÑÓN - BOLÍVAR"]
[null,null,"349 EL PEÑÓN - CUNDINAMARCA"]
[null,null,"350 EL PEÑÓN - SANTANDER"]
[null,null,"351 EL PIÑON - MAGDALENA"]
[null,null,"352 EL PLAYÓN - SANTANDER"]
[null,null,"353 EL RETÉN - MAGDALENA"]
[null,null,"354 EL RETORNO - GUAVIARE"]
[null,null,"355 EL ROBLE - SUCRE"]
[null,null,"356 EL ROSAL - CUNDINAMARCA"]
[null,null,"357 EL ROSARIO - NARIÑO"]
[null,null,"358 EL SANTUARIO - ANTIOQUIA"]
[null,null,"359 EL TABLÓN DE GÓMEZ - NARIÑO"]
[null,null,"360 EL TAMBO - CAUCA"]
[null,null,"361 EL TAMBO - NARIÑO"]
[null,null,"362 EL TARRA - NORTE DE SANTANDER"]
[null,null,"363 EL ZULIA - NORTE DE SANTANDER"]
[null,null,"364 ELÍAS - HUILA"]
[null,null,"365 ENCINO - SANTANDER"]
[null,null,"366 ENCISO - SANTANDER"]
[null,null,"367 ENTRERRIOS - ANTIOQUIA"]
[null,null,"368 ENVIGADO - ANTIOQUIA"]
[null,null,"369 ESPINAL - TOLIMA"]
[null,null,"370 FACATATIVÁ - CUNDINAMARCA"]
[null,null,"371 FALAN - TOLIMA"]
[null,null,"372 FILADELFIA - CALDAS"]
[null,null,"373 FILANDIA - QUINDÍO"]
[null,null,"374 FIRAVITOBA - BOYACÁ"]
[null,null,"375 FLANDES - TOLIMA"]
[null,null,"376 FLORENCIA - CAQUETA"]
[null,null,"377 FLORENCIA - CAUCA"]
[null,null,"378 FLORESTA - BOYACÁ"]
[null,null,"379 FLORIÁN - SANTANDER"]
[null,null,"380 FLORIDA - VALLE DEL CAUCA"]
[null,null,"381 FLORIDABLANCA - SANTANDER"]
[null,null,"382 FOMEQUE - CUNDINAMARCA"]
[null,null,"383 FONSECA - LA GUAJIRA"]
[null,null,"384 FORTUL - ARAUCA"]
[null,null,"385 FOSCA - CUNDINAMARCA"]
[null,null,"386 FRANCISCO PIZARRO - NARIÑO"]
[null,null,"387 FREDONIA - ANTIOQUIA"]
[null,null,"388 FRESNO - TOLIMA"]
[null,null,"389 FRONTINO - ANTIOQUIA"]
[null,null,"390 FUENTE DE ORO - META"]
[null,null,"391 FUNDACIÓN - MAGDALENA"]
[null,null,"392 FUNES - NARIÑO"]
[null,null,"393 FUNZA - CUNDINAMARCA"]
[null,null,"394 FÚQUENE - CUNDINAMARCA"]
[null,null,"395 FUSAGASUGÁ - CUNDINAMARCA"]
[null,null,"396 GACHALA - CUNDINAMARCA"]
[null,null,"397 GACHANCIPÁ - CUNDINAMARCA"]
[null,null,"398 GACHANTIVÁ - BOYACÁ"]
[null,null,"399 GACHETÁ - CUNDINAMARCA"]
[null,null,"400 GALÁN - SANTANDER"]
[null,null,"401 GALAPA - ATLÁNTICO"]
[null,null,"402 GALERAS - SUCRE"]
[null,null,"403 GAMA - CUNDINAMARCA"]
[null,null,"404 GAMARRA - CESAR"]
[null,null,"405 GAMBITA - SANTANDER"]
[null,null,"406 GAMEZA - BOYACÁ"]
[null,null,"407 GARAGOA - BOYACÁ"]
[null,null,"408 GARZÓN - HUILA"]
[null,null,"409 GÉNOVA - QUINDÍO"]
[null,null,"410 GIGANTE - HUILA"]
[null,null,"411 GINEBRA - VALLE DEL CAUCA"]
[null,null,"412 GIRALDO - ANTIOQUIA"]
[null,null,"413 GIRARDOT - CUNDINAMARCA"]
[null,null,"414 GIRARDOTA - ANTIOQUIA"]
[null,null,"415 GIRÓN - SANTANDER"]
[null,null,"416 GÓMEZ PLATA - ANTIOQUIA"]
[null,null,"417 GONZÁLEZ - CESAR"]
[null,null,"418 GRAMALOTE - NORTE DE SANTANDER"]
[null,null,"419 GRANADA - ANTIOQUIA"]
[null,null,"420 GRANADA - CUNDINAMARCA"]
[null,null,"421 GRANADA - META"]
[null,null,"422 GUACA - SANTANDER"]
[null,null,"423 GUACAMAYAS - BOYACÁ"]
[null,null,"424 GUACARÍ - VALLE DEL CAUCA"]
[null,null,"425 GUACHENÉ - CAUCA"]
[null,null,"426 GUACHETÁ - CUNDINAMARCA"]
[null,null,"427 GUACHUCAL - NARIÑO"]
[null,null,"428 GUADALAJARA DE BUGA - VALLE DEL CAUCA"]
[null,null,"429 GUADALUPE - ANTIOQUIA"]
[null,null,"430 GUADALUPE - HUILA"]
[null,null,"431 GUADALUPE - SANTANDER"]
[null,null,"432 GUADUAS - CUNDINAMARCA"]
[null,null,"433 GUAITARILLA - NARIÑO"]
[null,null,"434 GUALMATÁN - NARIÑO"]
[null,null,"435 GUAMAL - MAGDALENA"]
[null,null,"436 GUAMAL - META"]
[null,null,"437 GUAMO - TOLIMA"]
[null,null,"438 GUAPI - CAUCA"]
[null,null,"439 GUAPOTÁ - SANTANDER"]
[null,null,"440 GUARANDA - SUCRE"]
[null,null,"441 GUARNE - ANTIOQUIA"]
[null,null,"442 GUASCA - CUNDINAMARCA"]
[null,null,"443 GUATAPE - ANTIOQUIA"]
[null,null,"444 GUATAQUÍ - CUNDINAMARCA"]
[null,null,"445 GUATAVITA - CUNDINAMARCA"]
[null,null,"446 GUATEQUE - BOYACÁ"]
[null,null,"447 GUÁTICA - RISARALDA"]
[null,null,"448 GUAVATÁ - SANTANDER"]
[null,null,"449 GUAYABAL DE SIQUIMA - CUNDINAMARCA"]
[null,null,"450 GUAYABETAL - CUNDINAMARCA"]
[null,null,"451 GUAYATÁ - BOYACÁ"]
[null,null,"452 GÜEPSA - SANTANDER"]
[null,null,"453 GÜICÁN - BOYACÁ"]
[null,null,"454 GUTIÉRREZ - CUNDINAMARCA"]
[null,null,"455 HACARÍ - NORTE DE SANTANDER"]
[null,null,"456 HATILLO DE LOBA - BOLÍVAR"]
[null,null,"457 HATO - SANTANDER"]
[null,null,"458 HATO COROZAL - CASANARE"]
[null,null,"459 HATONUEVO - LA GUAJIRA"]
[null,null,"460 HELICONIA - ANTIOQUIA"]
[null,null,"461 HERRÁN - NORTE DE SANTANDER"]
[null,null,"462 HERVEO - TOLIMA"]
[null,null,"463 HISPANIA - ANTIOQUIA"]
[null,null,"464 HOBO - HUILA"]
[null,null,"465 HONDA - TOLIMA"]
[null,null,"466 IBAGUÉ - TOLIMA"]
[null,null,"467 ICONONZO - TOLIMA"]
[null,null,"468 ILES - NARIÑO"]
[null,null,"469 IMUÉS - NARIÑO"]
[null,null,"470 INÍRIDA - GUAINÍA"]
[null,null,"471 INZÁ - CAUCA"]
[null,null,"472 IPIALES - NARIÑO"]
[null,null,"473 IQUIRA - HUILA"]
[null,null,"474 ISNOS - HUILA"]
[null,null,"475 ISTMINA - CHOCÓ"]
[null,null,"476 ITAGUI - ANTIOQUIA"]
[null,null,"477 ITUANGO - ANTIOQUIA"]
[null,null,"478 IZA - BOYACÁ"]
[null,null,"479 JAMBALÓ - CAUCA"]
[null,null,"480 JAMUNDÍ - VALLE DEL CAUCA"]
[null,null,"481 JARDÍN - ANTIOQUIA"]
[null,null,"482 JENESANO - BOYACÁ"]
[null,null,"483 JERICÓ - ANTIOQUIA"]
[null,null,"484 JERICÓ - BOYACÁ"]
[null,null,"485 JERUSALÉN - CUNDINAMARCA"]
[null,null,"486 JESÚS MARÍA - SANTANDER"]
[null,null,"487 JORDÁN - SANTANDER"]
[null,null,"488 JUAN DE ACOSTA - ATLÁNTICO"]
[null,null,"489 JUNÍN - CUNDINAMARCA"]
[null,null,"490 JURADÓ - CHOCÓ"]
[null,null,"491 LA APARTADA - CÓRDOBA"]
[null,null,"492 LA ARGENTINA - HUILA"]
[null,null,"493 LA BELLEZA - SANTANDER"]
[null,null,"494 LA CALERA - CUNDINAMARCA"]
[null,null,"495 LA CAPILLA - BOYACÁ"]
[null,null,"496 LA CEJA - ANTIOQUIA"]
[null,null,"497 LA CELIA - RISARALDA"]
[null,null,"498 LA CHORRERA - AMAZONAS"]
[null,null,"499 LA CRUZ - NARIÑO"]
[null,null,"500 LA CUMBRE - VALLE DEL CAUCA"]
[null,null,"501 LA DORADA - CALDAS"]
[null,null,"502 LA ESPERANZA - NORTE DE SANTANDER"]
[null,null,"503 LA ESTRELLA - ANTIOQUIA"]
[null,null,"504 LA FLORIDA - NARIÑO"]
[null,null,"505 LA GLORIA - CESAR"]
[null,null,"506 LA GUADALUPE - GUAINÍA"]
[null,null,"507 LA JAGUA DE IBIRICO - CESAR"]
[null,null,"508 LA JAGUA DEL PILAR - LA GUAJIRA"]
[null,null,"509 LA LLANADA - NARIÑO"]
[null,null,"510 LA MACARENA - META"]
[null,null,"511 LA MERCED - CALDAS"]
[null,null,"512 LA MESA - CUNDINAMARCA"]
[null,null,"513 LA MONTAÑITA - CAQUETA"]
[null,null,"514 LA PALMA - CUNDINAMARCA"]
[null,null,"515 LA PAZ - CESAR"]
[null,null,"516 LA PAZ - SANTANDER"]
[null,null,"517 LA PEDRERA - AMAZONAS"]
[null,null,"518 LA PEÑA - CUNDINAMARCA"]
[null,null,"519 LA PINTADA - ANTIOQUIA"]
[null,null,"520 LA PLATA - HUILA"]
[null,null,"521 LA PLAYA - NORTE DE SANTANDER"]
[null,null,"522 LA PRIMAVERA - VICHADA"]
[null,null,"523 LA SALINA - CASANARE"]
[null,null,"524 LA SIERRA - CAUCA"]
[null,null,"525 LA TEBAIDA - QUINDÍO"]
[null,null,"526 LA TOLA - NARIÑO"]
[null,null,"527 LA UNIÓN - ANTIOQUIA"]
[null,null,"528 LA UNIÓN - NARIÑO"]
[null,null,"529 LA UNIÓN - SUCRE"]
[null,null,"530 LA UNIÓN - VALLE DEL CAUCA"]
[null,null,"531 LA UVITA - BOYACÁ"]
[null,null,"532 LA VEGA - CAUCA"]
[null,null,"533 LA VEGA - CUNDINAMARCA"]
[null,null,"534 LA VICTORIA - AMAZONAS"]
[null,null,"535 LA VICTORIA - BOYACÁ"]
[null,null,"536 LA VICTORIA - VALLE DEL CAUCA"]
[null,null,"537 LA VIRGINIA - RISARALDA"]
[null,null,"538 LABATECA - NORTE DE SANTANDER"]
[null,null,"539 LABRANZAGRANDE - BOYACÁ"]
[null,null,"540 LANDÁZURI - SANTANDER"]
[null,null,"541 LEBRIJA - SANTANDER"]
[null,null,"542 LEIVA - NARIÑO"]
[null,null,"543 LEJANÍAS - META"]
[null,null,"544 LENGUAZAQUE - CUNDINAMARCA"]
[null,null,"545 LÉRIDA - TOLIMA"]
[null,null,"546 LETICIA - AMAZONAS"]
[null,null,"547 LÍBANO - TOLIMA"]
[null,null,"548 LIBORINA - ANTIOQUIA"]
[null,null,"549 LINARES - NARIÑO"]
[null,null,"550 LLORÓ - CHOCÓ"]
[null,null,"551 LÓPEZ - CAUCA"]
[null,null,"552 LORICA - CÓRDOBA"]
[null,null,"553 LOS ANDES - NARIÑO"]
[null,null,"554 LOS CÓRDOBAS - CÓRDOBA"]
[null,null,"555 LOS PALMITOS - SUCRE"]
[null,null,"556 LOS PATIOS - NORTE DE SANTANDER"]
[null,null,"557 LOS SANTOS - SANTANDER"]
[null,null,"558 LOURDES - NORTE DE SANTANDER"]
[null,null,"559 LURUACO - ATLÁNTICO"]
[null,null,"560 MACANAL - BOYACÁ"]
[null,null,"561 MACARAVITA - SANTANDER"]
[null,null,"562 MACEO - ANTIOQUIA"]
[null,null,"563 MACHETA - CUNDINAMARCA"]
[null,null,"564 MADRID - CUNDINAMARCA"]
[null,null,"565 MAGANGUÉ - BOLÍVAR"]
[null,null,"566 MAGÜI - NARIÑO"]
[null,null,"567 MAHATES - BOLÍVAR"]
[null,null,"568 MAICAO - LA GUAJIRA"]
[null,null,"569 MAJAGUAL - SUCRE"]
[null,null,"570 MÁLAGA - SANTANDER"]
[null,null,"571 MALAMBO - ATLÁNTICO"]
[null,null,"572 MALLAMA - NARIÑO"]
[null,null,"573 MANATÍ - ATLÁNTICO"]
[null,null,"574 MANAURE - CESAR"]
[null,null,"575 MANAURE - LA GUAJIRA"]
[null,null,"576 MANÍ - CASANARE"]
[null,null,"577 MANIZALES - CALDAS"]
[null,null,"578 MANTA - CUNDINAMARCA"]
[null,null,"579 MANZANARES - CALDAS"]
[null,null,"580 MAPIRIPÁN - META"]
[null,null,"581 MAPIRIPANA - GUAINÍA"]
[null,null,"582 MARGARITA - BOLÍVAR"]
[null,null,"583 MARÍA LA BAJA - BOLÍVAR"]
[null,null,"584 MARINILLA - ANTIOQUIA"]
[null,null,"585 MARIPÍ - BOYACÁ"]
[null,null,"586 MARMATO - CALDAS"]
[null,null,"587 MARQUETALIA - CALDAS"]
[null,null,"588 MARSELLA - RISARALDA"]
[null,null,"589 MARULANDA - CALDAS"]
[null,null,"590 MATANZA - SANTANDER"]
[null,null,"591 MEDELLÍN - ANTIOQUIA"]
[null,null,"592 MEDINA - CUNDINAMARCA"]
[null,null,"593 MEDIO ATRATO - CHOCÓ"]
[null,null,"594 MEDIO BAUDÓ - CHOCÓ"]
[null,null,"595 MEDIO SAN JUAN - CHOCÓ"]
[null,null,"596 MELGAR - TOLIMA"]
[null,null,"597 MERCADERES - CAUCA"]
[null,null,"598 MESETAS - META"]
[null,null,"599 MILÁN - CAQUETA"]
[null,null,"600 MIRAFLORES - BOYACÁ"]
[null,null,"601 MIRAFLORES - GUAVIARE"]
[null,null,"602 MIRANDA - CAUCA"]
[null,null,"603 MIRITI - PARANÁ - AMAZONAS"]
[null,null,"604 MISTRATÓ - RISARALDA"]
[null,null,"605 MITÚ - VAUPES"]
[null,null,"606 MOCOA - PUTUMAYO"]
[null,null,"607 MOGOTES - SANTANDER"]
[null,null,"608 MOLAGAVITA - SANTANDER"]
[null,null,"609 MOMIL - CÓRDOBA"]
[null,null,"610 MOMPÓS - BOLÍVAR"]
[null,null,"611 MONGUA - BOYACÁ"]
[null,null,"612 MONGUÍ - BOYACÁ"]
[null,null,"613 MONIQUIRÁ - BOYACÁ"]
[null,null,"614 MONTEBELLO - ANTIOQUIA"]
[null,null,"615 MONTECRISTO - BOLÍVAR"]
[null,null,"616 MONTELÍBANO - CÓRDOBA"]
[null,null,"617 MONTENEGRO - QUINDÍO"]
[null,null,"618 MONTERÍA - CÓRDOBA"]
[null,null,"619 MONTERREY - CASANARE"]
[null,null,"620 MOÑITOS - CÓRDOBA"]
[null,null,"621 MORALES - BOLÍVAR"]
[null,null,"622 MORALES - CAUCA"]
[null,null,"623 MORELIA - CAQUETA"]
[null,null,"624 MORICHAL - GUAINÍA"]
[null,null,"625 MORROA - SUCRE"]
[null,null,"626 MOSQUERA - CUNDINAMARCA"]
[null,null,"627 MOSQUERA - NARIÑO"]
[null,null,"628 MOTAVITA - BOYACÁ"]
[null,null,"629 MURILLO - TOLIMA"]
[null,null,"630 MURINDÓ - ANTIOQUIA"]
[null,null,"631 MUTATÁ - ANTIOQUIA"]
[null,null,"632 MUTISCUA - NORTE DE SANTANDER"]
[null,null,"633 MUZO - BOYACÁ"]
[null,null,"634 NARIÑO - ANTIOQUIA"]
[null,null,"635 NARIÑO - CUNDINAMARCA"]
[null,null,"636 NARIÑO - NARIÑO"]
[null,null,"637 NÁTAGA - HUILA"]
[null,null,"638 NATAGAIMA - TOLIMA"]
[null,null,"639 NECHÍ - ANTIOQUIA"]
[null,null,"640 NECOCLÍ - ANTIOQUIA"]
[null,null,"641 NEIRA - CALDAS"]
[null,null,"642 NEIVA - HUILA"]
[null,null,"643 NEMOCÓN - CUNDINAMARCA"]
[null,null,"644 NILO - CUNDINAMARCA"]
[null,null,"645 NIMAIMA - CUNDINAMARCA"]
[null,null,"646 NOBSA - BOYACÁ"]
[null,null,"647 NOCAIMA - CUNDINAMARCA"]
[null,null,"648 NORCASIA - CALDAS"]
[null,null,"649 NOROSÍ - BOLÍVAR"]
[null,null,"650 NÓVITA - CHOCÓ"]
[null,null,"651 NUEVA GRANADA - MAGDALENA"]
[null,null,"652 NUEVO COLÓN - BOYACÁ"]
[null,null,"653 NUNCHÍA - CASANARE"]
[null,null,"654 NUQUÍ - CHOCÓ"]
[null,null,"655 OBANDO - VALLE DEL CAUCA"]
[null,null,"656 OCAMONTE - SANTANDER"]
[null,null,"657 OCAÑA - NORTE DE SANTANDER"]
[null,null,"658 OIBA - SANTANDER"]
[null,null,"659 OICATÁ - BOYACÁ"]
[null,null,"660 OLAYA - ANTIOQUIA"]
[null,null,"661 OLAYA HERRERA - NARIÑO"]
[null,null,"662 ONZAGA - SANTANDER"]
[null,null,"663 OPORAPA - HUILA"]
[null,null,"664 ORITO - PUTUMAYO"]
[null,null,"665 OROCUÉ - CASANARE"]
[null,null,"666 ORTEGA - TOLIMA"]
[null,null,"667 OSPINA - NARIÑO"]
[null,null,"668 OTANCHE - BOYACÁ"]
[null,null,"669 OVEJAS - SUCRE"]
[null,null,"670 PACHAVITA - BOYACÁ"]
[null,null,"671 PACHO - CUNDINAMARCA"]
[null,null,"672 PACOA - VAUPES"]
[null,null,"673 PÁCORA - CALDAS"]
[null,null,"674 PADILLA - CAUCA"]
[null,null,"675 PÁEZ - BOYACÁ"]
[null,null,"676 PAEZ - CAUCA"]
[null,null,"677 PAICOL - HUILA"]
[null,null,"678 PAILITAS - CESAR"]
[null,null,"679 PAIME - CUNDINAMARCA"]
[null,null,"680 PAIPA - BOYACÁ"]
[null,null,"681 PAJARITO - BOYACÁ"]
[null,null,"682 PALERMO - HUILA"]
[null,null,"683 PALESTINA - CALDAS"]
[null,null,"684 PALESTINA - HUILA"]
[null,null,"685 PALMAR - SANTANDER"]
[null,null,"686 PALMAR DE VARELA - ATLÁNTICO"]
[null,null,"687 PALMAS DEL SOCORRO - SANTANDER"]
[null,null,"688 PALMIRA - VALLE DEL CAUCA"]
[null,null,"689 PALMITO - SUCRE"]
[null,null,"690 PALOCABILDO - TOLIMA"]
[null,null,"691 PAMPLONA - NORTE DE SANTANDER"]
[null,null,"692 PAMPLONITA - NORTE DE SANTANDER"]
[null,null,"693 PANA PANA - GUAINÍA"]
[null,null,"694 PANDI - CUNDINAMARCA"]
[null,null,"695 PANQUEBA - BOYACÁ"]
[null,null,"696 PAPUNAUA - VAUPES"]
[null,null,"697 PÁRAMO - SANTANDER"]
[null,null,"698 PARATEBUENO - CUNDINAMARCA"]
[null,null,"699 PASCA - CUNDINAMARCA"]
[null,null,"700 PASTO - NARIÑO"]
[null,null,"701 PATÍA - CAUCA"]
[null,null,"702 PAUNA - BOYACÁ"]
[null,null,"703 PAYA - BOYACÁ"]
[null,null,"704 PAZ DE ARIPORO - CASANARE"]
[null,null,"705 PAZ DE RÍO - BOYACÁ"]
[null,null,"706 PEDRAZA - MAGDALENA"]
[null,null,"707 PELAYA - CESAR"]
[null,null,"708 PENSILVANIA - CALDAS"]
[null,null,"709 PEÑOL - ANTIOQUIA"]
[null,null,"710 PEQUE - ANTIOQUIA"]
[null,null,"711 PEREIRA - RISARALDA"]
[null,null,"712 PESCA - BOYACÁ"]
[null,null,"713 PIAMONTE - CAUCA"]
[null,null,"714 PIEDECUESTA - SANTANDER"]
[null,null,"715 PIEDRAS - TOLIMA"]
[null,null,"716 PIENDAMÓ - CAUCA"]
[null,null,"717 PIJAO - QUINDÍO"]
[null,null,"718 PIJIÑO DEL CARMEN - MAGDALENA"]
[null,null,"719 PINCHOTE - SANTANDER"]
[null,null,"720 PINILLOS - BOLÍVAR"]
[null,null,"721 PIOJÓ - ATLÁNTICO"]
[null,null,"722 PISBA - BOYACÁ"]
[null,null,"723 PITAL - HUILA"]
[null,null,"724 PITALITO - HUILA"]
[null,null,"725 PIVIJAY - MAGDALENA"]
[null,null,"726 PLANADAS - TOLIMA"]
[null,null,"727 PLANETA RICA - CÓRDOBA"]
[null,null,"728 PLATO - MAGDALENA"]
[null,null,"729 POLICARPA - NARIÑO"]
[null,null,"730 POLONUEVO - ATLÁNTICO"]
[null,null,"731 PONEDERA - ATLÁNTICO"]
[null,null,"732 POPAYÁN - CAUCA"]
[null,null,"733 PORE - CASANARE"]
[null,null,"734 POTOSÍ - NARIÑO"]
[null,null,"735 PRADERA - VALLE DEL CAUCA"]
[null,null,"736 PRADO - TOLIMA"]
[null,null,"737 PROVIDENCIA - NARIÑO"]
[null,null,"738 PROVIDENCIA - SAN ANDRES"]
[null,null,"739 PUEBLO BELLO - CESAR"]
[null,null,"740 PUEBLO NUEVO - CÓRDOBA"]
[null,null,"741 PUEBLO RICO - RISARALDA"]
[null,null,"742 PUEBLORRICO - ANTIOQUIA"]
[null,null,"743 PUEBLOVIEJO - MAGDALENA"]
[null,null,"744 PUENTE NACIONAL - SANTANDER"]
[null,null,"745 PUERRES - NARIÑO"]
[null,null,"746 PUERTO ALEGRÍA - AMAZONAS"]
[null,null,"747 PUERTO ARICA - AMAZONAS"]
[null,null,"748 PUERTO ASÍS - PUTUMAYO"]
[null,null,"749 PUERTO BERRÍO - ANTIOQUIA"]
[null,null,"750 PUERTO BOYACÁ - BOYACÁ"]
[null,null,"751 PUERTO CAICEDO - PUTUMAYO"]
[null,null,"752 PUERTO CARREÑO - VICHADA"]
[null,null,"753 PUERTO COLOMBIA - ATLÁNTICO"]
[null,null,"754 PUERTO COLOMBIA - GUAINÍA"]
[null,null,"755 PUERTO CONCORDIA - META"]
[null,null,"756 PUERTO ESCONDIDO - CÓRDOBA"]
[null,null,"757 PUERTO GAITÁN - META"]
[null,null,"758 PUERTO GUZMÁN - PUTUMAYO"]
[null,null,"759 PUERTO LEGUÍZAMO - PUTUMAYO"]
[null,null,"760 PUERTO LIBERTADOR - CÓRDOBA"]
[null,null,"761 PUERTO LLERAS - META"]
[null,null,"762 PUERTO LÓPEZ - META"]
[null,null,"763 PUERTO NARE - ANTIOQUIA"]
[null,null,"764 PUERTO NARIÑO - AMAZONAS"]
[null,null,"765 PUERTO PARRA - SANTANDER"]
[null,null,"766 PUERTO RICO - CAQUETA"]
[null,null,"767 PUERTO RICO - META"]
[null,null,"768 PUERTO RONDÓN - ARAUCA"]
[null,null,"769 PUERTO SALGAR - CUNDINAMARCA"]
[null,null,"770 PUERTO SANTANDER - AMAZONAS"]
[null,null,"771 PUERTO SANTANDER - NORTE DE SANTANDER"]
[null,null,"772 PUERTO TEJADA - CAUCA"]
[null,null,"773 PUERTO TRIUNFO - ANTIOQUIA"]
[null,null,"774 PUERTO WILCHES - SANTANDER"]
[null,null,"775 PULÍ - CUNDINAMARCA"]
[null,null,"776 PUPIALES - NARIÑO"]
[null,null,"777 PURACÉ - CAUCA"]
[null,null,"778 PURIFICACIÓN - TOLIMA"]
[null,null,"779 PURÍSIMA - CÓRDOBA"]
[null,null,"780 QUEBRADANEGRA - CUNDINAMARCA"]
[null,null,"781 QUETAME - CUNDINAMARCA"]
[null,null,"782 QUIBDÓ - CHOCÓ"]
[null,null,"783 QUIMBAYA - QUINDÍO"]
[null,null,"784 QUINCHÍA - RISARALDA"]
[null,null,"785 QUÍPAMA - BOYACÁ"]
[null,null,"786 QUIPILE - CUNDINAMARCA"]
[null,null,"787 RAGONVALIA - NORTE DE SANTANDER"]
[null,null,"788 RAMIRIQUÍ - BOYACÁ"]
[null,null,"789 RÁQUIRA - BOYACÁ"]
[null,null,"790 RECETOR - CASANARE"]
[null,null,"791 REGIDOR - BOLÍVAR"]
[null,null,"792 REMEDIOS - ANTIOQUIA"]
[null,null,"793 REMOLINO - MAGDALENA"]
[null,null,"794 REPELÓN - ATLÁNTICO"]
[null,null,"795 RESTREPO - META"]
[null,null,"796 RESTREPO - VALLE DEL CAUCA"]
[null,null,"797 RETIRO - ANTIOQUIA"]
[null,null,"798 RICAURTE - CUNDINAMARCA"]
[null,null,"799 RICAURTE - NARIÑO"]
[null,null,"800 RÍO DE ORO - CESAR"]
[null,null,"801 RÍO IRÓ - CHOCÓ"]
[null,null,"802 RÍO QUITO - CHOCÓ"]
[null,null,"803 RÍO VIEJO - BOLÍVAR"]
[null,null,"804 RIOBLANCO - TOLIMA"]
[null,null,"805 RIOFRÍO - VALLE DEL CAUCA"]
[null,null,"806 RIOHACHA - LA GUAJIRA"]
[null,null,"807 RIONEGRO - ANTIOQUIA"]
[null,null,"808 RIONEGRO - SANTANDER"]
[null,null,"809 RIOSUCIO - CALDAS"]
[null,null,"810 RIOSUCIO - CHOCÓ"]
[null,null,"811 RISARALDA - CALDAS"]
[null,null,"812 RIVERA - HUILA"]
[null,null,"813 ROBERTO PAYÁN - NARIÑO"]
[null,null,"814 ROLDANILLO - VALLE DEL CAUCA"]
[null,null,"815 RONCESVALLES - TOLIMA"]
[null,null,"816 RONDÓN - BOYACÁ"]
[null,null,"817 ROSAS - CAUCA"]
[null,null,"818 ROVIRA - TOLIMA"]
[null,null,"819 SABANA DE TORRES - SANTANDER"]
[null,null,"820 SABANAGRANDE - ATLÁNTICO"]
[null,null,"821 SABANALARGA - ANTIOQUIA"]
[null,null,"822 SABANALARGA - ATLÁNTICO"]
[null,null,"823 SABANALARGA - CASANARE"]
[null,null,"824 SABANAS DE SAN ANGEL - MAGDALENA"]
[null,null,"825 SABANETA - ANTIOQUIA"]
[null,null,"826 SABOYÁ - BOYACÁ"]
[null,null,"827 SÁCAMA - CASANARE"]
[null,null,"828 SÁCHICA - BOYACÁ"]
[null,null,"829 SAHAGÚN - CÓRDOBA"]
[null,null,"830 SALADOBLANCO - HUILA"]
[null,null,"831 SALAMINA - CALDAS"]
[null,null,"832 SALAMINA - MAGDALENA"]
[null,null,"833 SALAZAR - NORTE DE SANTANDER"]
[null,null,"834 SALDAÑA - TOLIMA"]
[null,null,"835 SALENTO - QUINDÍO"]
[null,null,"836 SALGAR - ANTIOQUIA"]
[null,null,"837 SAMACÁ - BOYACÁ"]
[null,null,"838 SAMANÁ - CALDAS"]
[null,null,"839 SAMANIEGO - NARIÑO"]
[null,null,"840 SAMPUÉS - SUCRE"]
[null,null,"841 SAN AGUSTÍN - HUILA"]
[null,null,"842 SAN ALBERTO - CESAR"]
[null,null,"843 SAN ANDRÉS - SAN ANDRES"]
[null,null,"844 SAN ANDRÉS - SANTANDER"]
[null,null,"845 SAN ANDRÉS DE CUERQUÍA - ANTIOQUIA"]
[null,null,"846 SAN ANDRÉS DE SOTAVENTO - CÓRDOBA"]
[null,null,"847 SAN ANDRES DE TUMACO - NARIÑO"]
[null,null,"848 SAN ANTERO - CÓRDOBA"]
[null,null,"849 SAN ANTONIO - TOLIMA"]
[null,null,"850 SAN ANTONIO DEL TEQUENDAMA - CUNDINAMARCA"]
[null,null,"851 SAN BENITO - SANTANDER"]
[null,null,"852 SAN BENITO ABAD - SUCRE"]
[null,null,"853 SAN BERNARDO - CUNDINAMARCA"]
[null,null,"854 SAN BERNARDO - NARIÑO"]
[null,null,"855 SAN BERNARDO DEL VIENTO - CÓRDOBA"]
[null,null,"856 SAN CALIXTO - NORTE DE SANTANDER"]
[null,null,"857 SAN CARLOS - ANTIOQUIA"]
[null,null,"858 SAN CARLOS - CÓRDOBA"]
[null,null,"859 SAN CARLOS DE GUAROA - META"]
[null,null,"860 SAN CAYETANO - CUNDINAMARCA"]
[null,null,"861 SAN CAYETANO - NORTE DE SANTANDER"]
[null,null,"862 SAN CRISTÓBAL - BOLÍVAR"]
[null,null,"863 SAN DIEGO - CESAR"]
[null,null,"864 SAN EDUARDO - BOYACÁ"]
[null,null,"865 SAN ESTANISLAO - BOLÍVAR"]
[null,null,"866 SAN FELIPE - GUAINÍA"]
[null,null,"867 SAN FERNANDO - BOLÍVAR"]
[null,null,"868 SAN FRANCISCO - ANTIOQUIA"]
[null,null,"869 SAN FRANCISCO - CUNDINAMARCA"]
[null,null,"870 SAN FRANCISCO - PUTUMAYO"]
[null,null,"871 SAN GIL - SANTANDER"]
[null,null,"872 SAN JACINTO - BOLÍVAR"]
[null,null,"873 SAN JACINTO DEL CAUCA - BOLÍVAR"]
[null,null,"874 SAN JERÓNIMO - ANTIOQUIA"]
[null,null,"875 SAN JOAQUÍN - SANTANDER"]
[null,null,"876 SAN JOSÉ - CALDAS"]
[null,null,"877 SAN JOSÉ DE LA MONTAÑA - ANTIOQUIA"]
[null,null,"878 SAN JOSÉ DE MIRANDA - SANTANDER"]
[null,null,"879 SAN JOSÉ DE PARE - BOYACÁ"]
[null,null,"880 SAN JOSÉ DE URÉ - CÓRDOBA"]
[null,null,"881 SAN JOSÉ DEL FRAGUA - CAQUETA"]
[null,null,"882 SAN JOSÉ DEL GUAVIARE - GUAVIARE"]
[null,null,"883 SAN JOSÉ DEL PALMAR - CHOCÓ"]
[null,null,"884 SAN JUAN DE ARAMA - META"]
[null,null,"885 SAN JUAN DE BETULIA - SUCRE"]
[null,null,"886 SAN JUAN DE RÍO SECO - CUNDINAMARCA"]
[null,null,"887 SAN JUAN DE URABÁ - ANTIOQUIA"]
[null,null,"888 SAN JUAN DEL CESAR - LA GUAJIRA"]
[null,null,"889 SAN JUAN NEPOMUCENO - BOLÍVAR"]
[null,null,"890 SAN JUANITO - META"]
[null,null,"891 SAN LORENZO - NARIÑO"]
[null,null,"892 SAN LUIS - ANTIOQUIA"]
[null,null,"893 SAN LUIS - TOLIMA"]
[null,null,"894 SAN LUIS DE CUBARRAL - META"]
[null,null,"895 SAN LUIS DE GACENO - BOYACÁ"]
[null,null,"896 SAN LUIS DE PALENQUE - CASANARE"]
[null,null,"897 SAN LUIS DE SINCÉ - SUCRE"]
[null,null,"898 SAN MARCOS - SUCRE"]
[null,null,"899 SAN MARTÍN - CESAR"]
[null,null,"900 SAN MARTÍN - META"]
[null,null,"901 SAN MARTÍN DE LOBA - BOLÍVAR"]
[null,null,"902 SAN MATEO - BOYACÁ"]
[null,null,"903 SAN MIGUEL - PUTUMAYO"]
[null,null,"904 SAN MIGUEL - SANTANDER"]
[null,null,"905 SAN MIGUEL DE SEMA - BOYACÁ"]
[null,null,"906 SAN ONOFRE - SUCRE"]
[null,null,"907 SAN PABLO - BOLÍVAR"]
[null,null,"908 SAN PABLO - NARIÑO"]
[null,null,"909 SAN PABLO DE BORBUR - BOYACÁ"]
[null,null,"910 SAN PEDRO - SUCRE"]
[null,null,"911 SAN PEDRO - VALLE DEL CAUCA"]
[null,null,"912 SAN PEDRO DE CARTAGO - NARIÑO"]
[null,null,"913 SAN PEDRO DE LOS MILAGROS - ANTIOQUIA"]
[null,null,"914 SAN PEDRO DE URABA - ANTIOQUIA"]
[null,null,"915 SAN PELAYO - CÓRDOBA"]
[null,null,"916 SAN RAFAEL - ANTIOQUIA"]
[null,null,"917 SAN ROQUE - ANTIOQUIA"]
[null,null,"918 SAN SEBASTIÁN - CAUCA"]
[null,null,"919 SAN SEBASTIÁN DE BUENAVISTA - MAGDALENA"]
[null,null,"920 SAN SEBASTIÁN DE MARIQUITA - TOLIMA"]
[null,null,"921 SAN VICENTE - ANTIOQUIA"]
[null,null,"922 SAN VICENTE DE CHUCURÍ - SANTANDER"]
[null,null,"923 SAN VICENTE DEL CAGUÁN - CAQUETA"]
[null,null,"924 SAN ZENÓN - MAGDALENA"]
[null,null,"925 SANDONÁ - NARIÑO"]
[null,null,"926 SANTA ANA - MAGDALENA"]
[null,null,"927 SANTA BÁRBARA - ANTIOQUIA"]
[null,null,"928 SANTA BÁRBARA - NARIÑO"]
[null,null,"929 SANTA BÁRBARA - SANTANDER"]
[null,null,"930 SANTA BÁRBARA DE PINTO - MAGDALENA"]
[null,null,"931 SANTA CATALINA - BOLÍVAR"]
[null,null,"932 SANTA HELENA DEL OPÓN - SANTANDER"]
[null,null,"933 SANTA ISABEL - TOLIMA"]
[null,null,"934 SANTA LUCÍA - ATLÁNTICO"]
[null,null,"935 SANTA MARÍA - BOYACÁ"]
[null,null,"936 SANTA MARÍA - HUILA"]
[null,null,"937 SANTA MARTA - MAGDALENA"]
[null,null,"938 SANTA ROSA - BOLÍVAR"]
[null,null,"939 SANTA ROSA - CAUCA"]
[null,null,"940 SANTA ROSA DE CABAL - RISARALDA"]
[null,null,"941 SANTA ROSA DE OSOS - ANTIOQUIA"]
[null,null,"942 SANTA ROSA DE VITERBO - BOYACÁ"]
[null,null,"943 SANTA ROSA DEL SUR - BOLÍVAR"]
[null,null,"944 SANTA ROSALÍA - VICHADA"]
[null,null,"945 SANTA SOFÍA - BOYACÁ"]
[null,null,"946 SANTACRUZ - NARIÑO"]
[null,null,"947 SANTAFÉ DE ANTIOQUIA - ANTIOQUIA"]
[null,null,"948 SANTANA - BOYACÁ"]
[null,null,"949 SANTANDER DE QUILICHAO - CAUCA"]
[null,null,"950 SANTIAGO - NORTE DE SANTANDER"]
[null,null,"951 SANTIAGO - PUTUMAYO"]
[null,null,"952 SANTIAGO DE TOLÚ - SUCRE"]
[null,null,"953 SANTO DOMINGO - ANTIOQUIA"]
[null,null,"954 SANTO TOMÁS - ATLÁNTICO"]
[null,null,"955 SANTUARIO - RISARALDA"]
[null,null,"956 SAPUYES - NARIÑO"]
[null,null,"957 SARAVENA - ARAUCA"]
[null,null,"958 SARDINATA - NORTE DE SANTANDER"]
[null,null,"959 SASAIMA - CUNDINAMARCA"]
[null,null,"960 SATIVANORTE - BOYACÁ"]
[null,null,"961 SATIVASUR - BOYACÁ"]
[null,null,"962 SEGOVIA - ANTIOQUIA"]
[null,null,"963 SESQUILÉ - CUNDINAMARCA"]
[null,null,"964 SEVILLA - VALLE DEL CAUCA"]
[null,null,"965 SIACHOQUE - BOYACÁ"]
[null,null,"966 SIBATÉ - CUNDINAMARCA"]
[null,null,"967 SIBUNDOY - PUTUMAYO"]
[null,null,"968 SILOS - NORTE DE SANTANDER"]
[null,null,"969 SILVANIA - CUNDINAMARCA"]
[null,null,"970 SILVIA - CAUCA"]
[null,null,"971 SIMACOTA - SANTANDER"]
[null,null,"972 SIMIJACA - CUNDINAMARCA"]
[null,null,"973 SIMITÍ - BOLÍVAR"]
[null,null,"974 SINCELEJO - SUCRE"]
[null,null,"975 SIPÍ - CHOCÓ"]
[null,null,"976 SITIONUEVO - MAGDALENA"]
[null,null,"977 SOACHA - CUNDINAMARCA"]
[null,null,"978 SOATÁ - BOYACÁ"]
[null,null,"979 SOCHA - BOYACÁ"]
[null,null,"980 SOCORRO - SANTANDER"]
[null,null,"981 SOCOTÁ - BOYACÁ"]
[null,null,"982 SOGAMOSO - BOYACÁ"]
[null,null,"983 SOLANO - CAQUETA"]
[null,null,"984 SOLEDAD - ATLÁNTICO"]
[null,null,"985 SOLITA - CAQUETA"]
[null,null,"986 SOMONDOCO - BOYACÁ"]
[null,null,"987 SONSON - ANTIOQUIA"]
[null,null,"988 SOPETRÁN - ANTIOQUIA"]
[null,null,"989 SOPLAVIENTO - BOLÍVAR"]
[null,null,"990 SOPÓ - CUNDINAMARCA"]
[null,null,"991 SORA - BOYACÁ"]
[null,null,"992 SORACÁ - BOYACÁ"]
[null,null,"993 SOTAQUIRÁ - BOYACÁ"]
[null,null,"994 SOTARA - CAUCA"]
[null,null,"995 SUAITA - SANTANDER"]
[null,null,"996 SUAN - ATLÁNTICO"]
[null,null,"997 SUÁREZ - CAUCA"]
[null,null,"998 SUÁREZ - TOLIMA"]
[null,null,"999 SUAZA - HUILA"]
[null,null,"1000 SUBACHOQUE - CUNDINAMARCA"]
[null,null,"1001 SUCRE - CAUCA"]
[null,null,"1002 SUCRE - SANTANDER"]
[null,null,"1003 SUCRE - SUCRE"]
[null,null,"1004 SUESCA - CUNDINAMARCA"]
[null,null,"1005 SUPATÁ - CUNDINAMARCA"]
[null,null,"1006 SUPÍA - CALDAS"]
[null,null,"1007 SURATÁ - SANTANDER"]
[null,null,"1008 SUSA - CUNDINAMARCA"]
[null,null,"1009 SUSACÓN - BOYACÁ"]
[null,null,"1010 SUTAMARCHÁN - BOYACÁ"]
[null,null,"1011 SUTATAUSA - CUNDINAMARCA"]
[null,null,"1012 SUTATENZA - BOYACÁ"]
[null,null,"1013 TABIO - CUNDINAMARCA"]
[null,null,"1014 TADÓ - CHOCÓ"]
[null,null,"1015 TALAIGUA NUEVO - BOLÍVAR"]
[null,null,"1016 TAMALAMEQUE - CESAR"]
[null,null,"1017 TÁMARA - CASANARE"]
[null,null,"1018 TAME - ARAUCA"]
[null,null,"1019 TÁMESIS - ANTIOQUIA"]
[null,null,"1020 TAMINANGO - NARIÑO"]
[null,null,"1021 TANGUA - NARIÑO"]
[null,null,"1022 TARAIRA - VAUPES"]
[null,null,"1023 TARAPACÁ - AMAZONAS"]
[null,null,"1024 TARAZÁ - ANTIOQUIA"]
[null,null,"1025 TARQUI - HUILA"]
[null,null,"1026 TARSO - ANTIOQUIA"]
[null,null,"1027 TASCO - BOYACÁ"]
[null,null,"1028 TAURAMENA - CASANARE"]
[null,null,"1029 TAUSA - CUNDINAMARCA"]
[null,null,"1030 TELLO - HUILA"]
[null,null,"1031 TENA - CUNDINAMARCA"]
[null,null,"1032 TENERIFE - MAGDALENA"]
[null,null,"1033 TENJO - CUNDINAMARCA"]
[null,null,"1034 TENZA - BOYACÁ"]
[null,null,"1035 TEORAMA - NORTE DE SANTANDER"]
[null,null,"1036 TERUEL - HUILA"]
[null,null,"1037 TESALIA - HUILA"]
[null,null,"1038 TIBACUY - CUNDINAMARCA"]
[null,null,"1039 TIBANÁ - BOYACÁ"]
[null,null,"1040 TIBASOSA - BOYACÁ"]
[null,null,"1041 TIBIRITA - CUNDINAMARCA"]
[null,null,"1042 TIBÚ - NORTE DE SANTANDER"]
[null,null,"1043 TIERRALTA - CÓRDOBA"]
[null,null,"1044 TIMANÁ - HUILA"]
[null,null,"1045 TIMBÍO - CAUCA"]
[null,null,"1046 TIMBIQUÍ - CAUCA"]
[null,null,"1047 TINJACÁ - BOYACÁ"]
[null,null,"1048 TIPACOQUE - BOYACÁ"]
[null,null,"1049 TIQUISIO - BOLÍVAR"]
[null,null,"1050 TITIRIBÍ - ANTIOQUIA"]
[null,null,"1051 TOCA - BOYACÁ"]
[null,null,"1052 TOCAIMA - CUNDINAMARCA"]
[null,null,"1053 TOCANCIPÁ - CUNDINAMARCA"]
[null,null,"1054 TOGÜÍ - BOYACÁ"]
[null,null,"1055 TOLEDO - ANTIOQUIA"]
[null,null,"1056 TOLEDO - NORTE DE SANTANDER"]
[null,null,"1057 TOLÚ VIEJO - SUCRE"]
[null,null,"1058 TONA - SANTANDER"]
[null,null,"1059 TÓPAGA - BOYACÁ"]
[null,null,"1060 TOPAIPÍ - CUNDINAMARCA"]
[null,null,"1061 TORIBIO - CAUCA"]
[null,null,"1062 TORO - VALLE DEL CAUCA"]
[null,null,"1063 TOTA - BOYACÁ"]
[null,null,"1064 TOTORÓ - CAUCA"]
[null,null,"1065 TRINIDAD - CASANARE"]
[null,null,"1066 TRUJILLO - VALLE DEL CAUCA"]
[null,null,"1067 TUBARÁ - ATLÁNTICO"]
[null,null,"1068 TUCHÍN - CÓRDOBA"]
[null,null,"1069 TULUÁ - VALLE DEL CAUCA"]
[null,null,"1070 TUNJA - BOYACÁ"]
[null,null,"1071 TUNUNGUÁ - BOYACÁ"]
[null,null,"1072 TÚQUERRES - NARIÑO"]
[null,null,"1073 TURBACO - BOLÍVAR"]
[null,null,"1074 TURBANÁ - BOLÍVAR"]
[null,null,"1075 TURBO - ANTIOQUIA"]
[null,null,"1076 TURMEQUÉ - BOYACÁ"]
[null,null,"1077 TUTA - BOYACÁ"]
[null,null,"1078 TUTAZÁ - BOYACÁ"]
[null,null,"1079 UBALÁ - CUNDINAMARCA"]
[null,null,"1080 UBAQUE - CUNDINAMARCA"]
[null,null,"1081 ULLOA - VALLE DEL CAUCA"]
[null,null,"1082 UMBITA - BOYACÁ"]
[null,null,"1083 UNE - CUNDINAMARCA"]
[null,null,"1084 UNGUÍA - CHOCÓ"]
[null,null,"1085 UNIÓN PANAMERICANA - CHOCÓ"]
[null,null,"1086 URAMITA - ANTIOQUIA"]
[null,null,"1087 URIBE - META"]
[null,null,"1088 URIBIA - LA GUAJIRA"]
[null,null,"1089 URRAO - ANTIOQUIA"]
[null,null,"1090 URUMITA - LA GUAJIRA"]
[null,null,"1091 USIACURÍ - ATLÁNTICO"]
[null,null,"1092 ÚTICA - CUNDINAMARCA"]
[null,null,"1093 VALDIVIA - ANTIOQUIA"]
[null,null,"1094 VALENCIA - CÓRDOBA"]
[null,null,"1095 VALLE DE SAN JOSÉ - SANTANDER"]
[null,null,"1096 VALLE DE SAN JUAN - TOLIMA"]
[null,null,"1097 VALLE DEL GUAMUEZ - PUTUMAYO"]
[null,null,"1098 VALLEDUPAR - CESAR"]
[null,null,"1099 VALPARAÍSO - ANTIOQUIA"]
[null,null,"1100 VALPARAÍSO - CAQUETA"]
[null,null,"1101 VEGACHÍ - ANTIOQUIA"]
[null,null,"1102 VÉLEZ - SANTANDER"]
[null,null,"1103 VENADILLO - TOLIMA"]
[null,null,"1104 VENECIA - ANTIOQUIA"]
[null,null,"1105 VENECIA - CUNDINAMARCA"]
[null,null,"1106 VENTAQUEMADA - BOYACÁ"]
[null,null,"1107 VERGARA - CUNDINAMARCA"]
[null,null,"1108 VERSALLES - VALLE DEL CAUCA"]
[null,null,"1109 VETAS - SANTANDER"]
[null,null,"1110 VIANÍ - CUNDINAMARCA"]
[null,null,"1111 VICTORIA - CALDAS"]
[null,null,"1112 VIGÍA DEL FUERTE - ANTIOQUIA"]
[null,null,"1113 VIJES - VALLE DEL CAUCA"]
[null,null,"1114 VILLA CARO - NORTE DE SANTANDER"]
[null,null,"1115 VILLA DE LEYVA - BOYACÁ"]
[null,null,"1116 VILLA DE SAN DIEGO DE UBATE - CUNDINAMARCA"]
[null,null,"1117 VILLA DEL ROSARIO - NORTE DE SANTANDER"]
[null,null,"1118 VILLA RICA - CAUCA"]
[null,null,"1119 VILLAGARZÓN - PUTUMAYO"]
[null,null,"1120 VILLAGÓMEZ - CUNDINAMARCA"]
[null,null,"1121 VILLAHERMOSA - TOLIMA"]
[null,null,"1122 VILLAMARÍA - CALDAS"]
[null,null,"1123 VILLANUEVA - BOLÍVAR"]
[null,null,"1124 VILLANUEVA - CASANARE"]
[null,null,"1125 VILLANUEVA - LA GUAJIRA"]
[null,null,"1126 VILLANUEVA - SANTANDER"]
[null,null,"1127 VILLAPINZÓN - CUNDINAMARCA"]
[null,null,"1128 VILLARRICA - TOLIMA"]
[null,null,"1129 VILLAVICENCIO - META"]
[null,null,"1130 VILLAVIEJA - HUILA"]
[null,null,"1131 VILLETA - CUNDINAMARCA"]
[null,null,"1132 VIOTÁ - CUNDINAMARCA"]
[null,null,"1133 VIRACACHÁ - BOYACÁ"]
[null,null,"1134 VISTAHERMOSA - META"]
[null,null,"1135 VITERBO - CALDAS"]
[null,null,"1136 YACOPÍ - CUNDINAMARCA"]
[null,null,"1137 YACUANQUER - NARIÑO"]
[null,null,"1138 YAGUARÁ - HUILA"]
[null,null,"1139 YALÍ - ANTIOQUIA"]
[null,null,"1140 YARUMAL - ANTIOQUIA"]
[null,null,"1141 YAVARATÉ - VAUPES"]
[null,null,"1142 YOLOMBÓ - ANTIOQUIA"]
[null,null,"1143 YONDÓ - ANTIOQUIA"]
[null,null,"1144 YOPAL - CASANARE"]
[null,null,"1145 YOTOCO - VALLE DEL CAUCA"]
[null,null,"1146 YUMBO - VALLE DEL CAUCA"]
[null,null,"1147 ZAMBRANO - BOLÍVAR"]
[null,null,"1148 ZAPATOCA - SANTANDER"]
[null,null,"1149 ZAPAYÁN - MAGDALENA"]
[null,null,"1150 ZARAGOZA - ANTIOQUIA"]
[null,null,"1151 ZARZAL - VALLE DEL CAUCA"]
[null,null,"1152 ZETAQUIRA - BOYACÁ"]
[null,null,"1153 ZIPACÓN - CUNDINAMARCA"]
[null,null,"1154 ZIPAQUIRÁ - CUNDINAMARCA"]
[null,null,"1155 ZONA BANANERA - MAGDALENA"]
[null,null,"1156 OTRO"]
[null,null,"500000 FORMULARIO SIN INFORMACIÓN"]